﻿Directorate,Service,Division,Responsible Unit,Expense Type,Payment Date,Trans No,Net Amount,Supplier Name
Children & Culture,Children's Social Care,Commissioning and Social Work,Advice and Assessment Section 17,Childrens Act Section 17 - Interpreting/Translation,01/07/2020,5424745,"1,993.20",Oncall Interpreters LTD
Children & Culture,Children's Social Care,Children Looked After,S23 Family Placements P&V,Social Care - Day Care,01/07/2020,5432996,"4,200.00",COMPASS FOSTERING LONDON LIMITED
Children & Culture,Children's Social Care,Children Looked After,S23 Fam Pl P&V-F/Care,Childrens Act Section 23 - Placement Fee,01/07/2020,5432997,"4,977.60",COMPASS FOSTERING LONDON LIMITED
Children & Culture,Children's Social Care,Youth Justice,Youth Justice Team,Services - Professional Fees - Consultants Fees,01/07/2020,5433948,"1,800.00",Wardell Associates
Children & Culture,Children's Social Care,Support Service and Management Costs,Sch. Meals A/c - Central Production Unit,Kitchen Supplies - Food and Beverages,01/07/2020,5433956,320.98,Thomas Ridley & Son Ltd
Children & Culture,Children's Social Care,Support Service and Management Costs,Schools Catering,Kitchen Supplies - Food and Beverages,01/07/2020,5433958,856.99,Thomas Ridley & Son Ltd
Children & Culture,Children's Social Care,Support Service and Management Costs,Schools Catering,Kitchen Supplies - Food and Beverages,01/07/2020,5433963,632.12,Thomas Ridley & Son Ltd
Children & Culture,Children's Social Care,Service Strategy,CSC Childrens Resources M & A,Training Expenses - Staff External Training (UK Based),01/07/2020,5433974,525,L.A. Training
Children & Culture,Children's Social Care,Support Service and Management Costs,Schools Catering,Kitchen Supplies - Food and Beverages,01/07/2020,5433975,309.37,Prescott-Thomas LTD.
Children & Culture,Children's Social Care,Support Service and Management Costs,Schools Catering,Kitchen Supplies - Food and Beverages,01/07/2020,5433976,469.49,Prescott-Thomas LTD.
Children & Culture,Children's Social Care,Support Service and Management Costs,Schools Catering,Kitchen Supplies - Packaging,01/07/2020,5434425,376.87,Tri-Star Packaging Supplies LTD
Children & Culture,Children's Social Care,Support Service and Management Costs,Schools Catering,Kitchen Supplies - Packaging,01/07/2020,5434426,784.83,Tri-Star Packaging Supplies LTD
Children & Culture,Education Services,Other Strategic Functions,C&C Covid19 Response,Repairs and Maintenance - Responsive - Security,01/07/2020,5434427,"5,570.00",JC Coster (Metalworks) Ltd
Children & Culture,Cultural and Related Services,Open Spaces,Mile End Park,Repairs and Maintenance - Responsive - Drainage & Sewers,01/07/2020,5434532,"1,140.00",J&L Coster (Drainage) Ltd
Children & Culture,Children's Social Care,Children Looked After,S23-Other-Semi-Ind. Unit,Childrens Act Section 23 - Placement Fee,01/07/2020,5434558,"4,317.68",Real Life
Children & Culture,Children's Social Care,Support Service and Management Costs,Schools Catering,Kitchen Supplies - Food and Beverages,01/07/2020,5434572,270.16,Thomas Ridley & Son Ltd
Children & Culture,Children's Social Care,Support Service and Management Costs,Schools Catering,Kitchen Supplies - Food and Beverages,01/07/2020,5434579,384.07,Thomas Ridley & Son Ltd
Children & Culture,Children's Social Care,Support Service and Management Costs,Schools Catering,Kitchen Supplies - Food and Beverages,01/07/2020,5434580,304.81,Thomas Ridley & Son Ltd
Children & Culture,Children's Social Care,Support Service and Management Costs,Schools Catering,Kitchen Supplies - Food and Beverages,01/07/2020,5434582,381.41,Thomas Ridley & Son Ltd
Children & Culture,Education Services,Services to Young People and Other Community Learners,Holiday Childcare,Staff Advertising,01/07/2020,5434599,830.01,Penna PLC
Children & Culture,Children's Social Care,Support Service and Management Costs,Schools Catering,Kitchen Supplies - Food and Beverages,01/07/2020,5434601,405.08,Prescott-Thomas LTD.
Children & Culture,Children's Social Care,Support Service and Management Costs,Schools Catering,Kitchen Supplies - Packaging,01/07/2020,5434653,303.17,Tri-Star Packaging Supplies LTD
Children & Culture,Education Services,Other Strategic Functions,High Needs Out Of Borough Academies & Free Schools,Third Party Payments - Staff External Training (UK Based),01/07/2020,5434747,"6,149.28",Access To Music Ltd
Children & Culture,Children's Social Care,Family Support Services,Short Breaks and Family Support,Third Party Payments - Voluntary Associations,01/07/2020,5434866,"130,000.00",QALB Centre Short Break Services
Children & Culture,Children's Social Care,Support Service and Management Costs,Building Cleaning,Materials - Cleaning Materials,01/07/2020,5434879,"1,713.36",The Maintenance Supply Co Ltd
Children & Culture,No Service Specified,No Division Specified,Capital-Minor Works (SC),Other External Fees - Other External Fees,01/07/2020,5434933,"1,606.00",surelock security systems ltd
Children & Culture,Children's Social Care,Youth Justice,Youth Justice Team,Computing - Maint Agreements - Maintenance,01/07/2020,5435905,500,THE VIEWPOINT ORGANISATION LTD
Children & Culture,Children's Social Care,Commissioning and Social Work,Advice and Assessment Section 17,Childrens Act Section 17 - Other Placements Bed & Breakfast,01/07/2020,5436581,"1,829.00",Finefair Management
Children & Culture,Children's Social Care,Children Looked After,Virtual School PPG,Education & Training - Non Staff Tuition Fees,01/07/2020,5437465,"1,650.00",Anchor Teaching Ltd
Children & Culture,Children's Social Care,Children Looked After,Virtual School PPG,Education & Training - Non Staff Tuition Fees,01/07/2020,5437466,700,Anchor Teaching Ltd
Children & Culture,Children's Social Care,Children Looked After,Virtual School PPG,Education & Training - Non Staff Tuition Fees,01/07/2020,5437467,700,Anchor Teaching Ltd
Children & Culture,Children's Social Care,Children Looked After,S23 Fam Pl P&V-F/Care,Childrens Act Section 23 - Placement Fee,01/07/2020,5437728,"3,171.60",Synergy Fostering Ltd
Children & Culture,Children's Social Care,Children Looked After,S23 Fam Pl P&V-F/Care,Childrens Act Section 23 - Placement Fee,01/07/2020,5437729,"3,171.60",Synergy Fostering Ltd
Children & Culture,Children's Social Care,Support Service and Management Costs,Schools Catering,Kitchen Supplies - Packaging,01/07/2020,5438452,-609.53,Tri-Star Packaging Supplies LTD
Children & Culture,Children's Social Care,Support Service and Management Costs,Schools Catering,Kitchen Supplies - Packaging,01/07/2020,5438453,-609.53,Tri-Star Packaging Supplies LTD
Children & Culture,Education Services,Other Strategic Functions,SLS Trading Account,Agency Staff - Agency staff (general),01/07/2020,5440084,"1,410.00",Academics ltd
Children & Culture,Children's Social Care,Children Looked After,S23-Other-Mother & Baby Unit,Childrens Act Section 23 - Placement Fee,01/07/2020,5440284,"13,878.53",Care 2 Share LTD
Children & Culture,Children's Social Care,Children Looked After,S23-Other-Mother & Baby Unit,Childrens Act Section 23 - Placement Fee,01/07/2020,5440285,"14,192.80",Care 2 Share LTD
Children & Culture,Education Services,Other Strategic Functions,SEN External Travel,Non Staff Transport Costs - Reimbursement,01/07/2020,5440375,"18,335.00",Lindel Services LTD - T/A Fox Transport
Children & Culture,Education Services,Other Strategic Functions,SEN External Travel,Non Staff Transport Costs - Reimbursement,01/07/2020,5440376,"19,630.00",Lindel Services LTD - T/A Fox Transport
Children & Culture,Education Services,Other Strategic Functions,Schools Library,Non Staff Advertising - General,01/07/2020,5440391,"8,911.00",The Day News & Media Ltd
Children & Culture,Education Services,Other Strategic Functions,Special Education Needs DSG,Third Party Payments - Payments to Schools,01/07/2020,5440393,"4,512.00",Hillcrest Care Ltd
Children & Culture,Children's Social Care,Children Looked After,S23-Resi-P&V/OLA-Boarding Sch,Childrens Act Section 23 - Placement Fee,01/07/2020,5440393,"10,528.00",Hillcrest Care Ltd
Children & Culture,Children's Social Care,Commissioning and Social Work,Advice and Assessment Section 17,Childrens Act Section 17 - Other Placements Bed & Breakfast,01/07/2020,5440408,448,Apolonia Property Services (Exodus Housing)
Children & Culture,Children's Social Care,Family Support Services,CNN Pool: Children Direct Paym,Social Care - Direct Payments,01/07/2020,5440514,818.6,DH TOWER HAMLETS
Children & Culture,Children's Social Care,Family Support Services,CNN Pool: Children Direct Paym,Social Care - Direct Payments,01/07/2020,5440516,818.6,DH TOWER HAMLETS
Children & Culture,Children's Social Care,Family Support Services,CNN Pool: Children Direct Paym,Social Care - Direct Payments,01/07/2020,5440518,"18,630.00",DH TOWER HAMLETS
Children & Culture,Children's Social Care,Family Support Services,CNN Pool: Children Direct Paym,Social Care - Direct Payments,01/07/2020,5440521,818.6,DH TOWER HAMLETS
Children & Culture,Children's Social Care,Family Support Services,CNN Pool: Children Direct Paym,Social Care - Direct Payments,01/07/2020,5440525,"1,401.78",D D PAYROLL SERVICES
Children & Culture,Children's Social Care,Family Support Services,CNN Pool: Children Direct Paym,Social Care - Direct Payments,01/07/2020,5440527,"11,468.17",DH TOWER HAMLETS
Children & Culture,Children's Social Care,Family Support Services,CNN Pool: Children Direct Paym,Social Care - Direct Payments,01/07/2020,5440528,898.42,DH TOWER HAMLETS
Children & Culture,Children's Social Care,Family Support Services,CNN Pool: Children Direct Paym,Social Care - Direct Payments,01/07/2020,5440529,"1,113.00",DH TOWER HAMLETS
Children & Culture,Children's Social Care,Family Support Services,CNN Pool: Children Direct Paym,Social Care - Direct Payments,01/07/2020,5440532,818.6,DH TOWER HAMLETS
Children & Culture,Children's Social Care,Family Support Services,CNN Pool: Children Direct Paym,Social Care - Direct Payments,01/07/2020,5440534,"1,043.42",DH TOWER HAMLETS
Children & Culture,Children's Social Care,Family Support Services,CNN Pool: Children Direct Paym,Social Care - Direct Payments,01/07/2020,5440540,818.6,DH TOWER HAMLETS
Children & Culture,Children's Social Care,Family Support Services,CNN Pool: Children Direct Paym,Social Care - Direct Payments,01/07/2020,5440541,674.6,DH TOWER HAMLETS
Children & Culture,Children's Social Care,Family Support Services,CNN Pool: Children Direct Paym,Social Care - Direct Payments,01/07/2020,5440542,"2,385.41",DH TOWER HAMLETS
Children & Culture,Children's Social Care,Family Support Services,CNN Pool: Children Direct Paym,Social Care - Direct Payments,01/07/2020,5440546,"17,910.38",DH TOWER HAMLETS
Children & Culture,Children's Social Care,Family Support Services,CNN Pool: Children Direct Paym,Social Care - Direct Payments,01/07/2020,5440557,899.46,DH TOWER HAMLETS
Children & Culture,Children's Social Care,Family Support Services,CNN Pool: Children Direct Paym,Social Care - Direct Payments,01/07/2020,5440558,"15,248.16",DH TOWER HAMLETS
Children & Culture,Children's Social Care,Family Support Services,CNN Pool: Children Direct Paym,Social Care - Direct Payments,01/07/2020,5440561,548.4,DH TOWER HAMLETS
Children & Culture,Children's Social Care,Family Support Services,CNN Pool: Children Direct Paym,Social Care - Direct Payments,01/07/2020,5440563,"3,726.00",D D PAYROLL SERVICES
Children & Culture,Children's Social Care,Family Support Services,CNN Pool: Children Direct Paym,Social Care - Direct Payments,01/07/2020,5440564,818.6,DH TOWER HAMLETS
Children & Culture,Children's Social Care,Family Support Services,CNN Pool: Children Direct Paym,Social Care - Direct Payments,01/07/2020,5440565,"2,248.66",DH TOWER HAMLETS
Children & Culture,Children's Social Care,Family Support Services,CNN Pool: Children Direct Paym,Social Care - Direct Payments,01/07/2020,5440566,"1,124.33",DH TOWER HAMLETS
Children & Culture,Children's Social Care,Family Support Services,CNN Pool: Children Direct Paym,Social Care - Direct Payments,01/07/2020,5440567,899.46,D D PAYROLL SERVICES
Children & Culture,Children's Social Care,Family Support Services,CNN Pool: Children Direct Paym,Social Care - Direct Payments,01/07/2020,5440569,674.6,DH TOWER HAMLETS
Children & Culture,Children's Social Care,Family Support Services,CNN Pool: Children Direct Paym,Social Care - Direct Payments,01/07/2020,5440570,674.6,DH TOWER HAMLETS
Children & Culture,Children's Social Care,Family Support Services,CNN Pool: Children Direct Paym,Social Care - Direct Payments,01/07/2020,5440571,518.14,DH TOWER HAMLETS
Children & Culture,Children's Social Care,Family Support Services,CNN Pool: Children Direct Paym,Social Care - Direct Payments,01/07/2020,5440572,674.6,DH TOWER HAMLETS
Children & Culture,Children's Social Care,Family Support Services,CNN Pool: Children Direct Paym,Social Care - Direct Payments,01/07/2020,5440574,674.6,DH TOWER HAMLETS
Children & Culture,Children's Social Care,Family Support Services,CNN Pool: Children Direct Paym,Social Care - Direct Payments,01/07/2020,5440575,"2,626.70",DH TOWER HAMLETS
Children & Culture,Children's Social Care,Family Support Services,CNN Pool: Children Direct Paym,Social Care - Direct Payments,01/07/2020,5440576,674.6,DH TOWER HAMLETS
Children & Culture,Children's Social Care,Family Support Services,CNN Pool: Children Direct Paym,Social Care - Direct Payments,01/07/2020,5440577,818.6,DH TOWER HAMLETS
Children & Culture,Children's Social Care,Family Support Services,CNN Pool: Children Direct Paym,Social Care - Direct Payments,01/07/2020,5440578,674.6,DH TOWER HAMLETS
Children & Culture,Children's Social Care,Family Support Services,CNN Pool: Children Direct Paym,Social Care - Direct Payments,01/07/2020,5440579,"3,279.00",DH TOWER HAMLETS
Children & Culture,Children's Social Care,Family Support Services,CNN Pool: Children Direct Paym,Social Care - Direct Payments,01/07/2020,5440580,818.6,DH TOWER HAMLETS
Children & Culture,Children's Social Care,Family Support Services,CNN Pool: Children Direct Paym,Social Care - Direct Payments,01/07/2020,5440581,818.6,DH TOWER HAMLETS
Children & Culture,Children's Social Care,Family Support Services,CNN Pool: Children Direct Paym,Social Care - Direct Payments,01/07/2020,5440582,"1,007.62",DH TOWER HAMLETS
Children & Culture,Children's Social Care,Family Support Services,CNN Pool: Children Direct Paym,Social Care - Direct Payments,01/07/2020,5440583,674.6,DH TOWER HAMLETS
Children & Culture,Children's Social Care,Family Support Services,CNN Pool: Children Direct Paym,Social Care - Direct Payments,01/07/2020,5440585,818.6,DH TOWER HAMLETS
Children & Culture,Children's Social Care,Family Support Services,CNN Pool: Children Direct Paym,Social Care - Direct Payments,01/07/2020,5440586,"1,381.79",DH TOWER HAMLETS
Children & Culture,Children's Social Care,Family Support Services,CNN Pool: Children Direct Paym,Social Care - Direct Payments,01/07/2020,5440588,"1,349.20",DH TOWER HAMLETS
Children & Culture,Children's Social Care,Family Support Services,CNN Pool: Children Direct Paym,Social Care - Direct Payments,01/07/2020,5440589,899.42,DH TOWER HAMLETS
Children & Culture,Children's Social Care,Family Support Services,CNN Pool: Children Direct Paym,Social Care - Direct Payments,01/07/2020,5440590,672.75,D D PAYROLL SERVICES
Children & Culture,Children's Social Care,Family Support Services,CNN Pool: Children Direct Paym,Social Care - Direct Payments,01/07/2020,5440591,899.42,D D PAYROLL SERVICES
Children & Culture,Children's Social Care,Family Support Services,CNN Pool: Children Direct Paym,Social Care - Direct Payments,01/07/2020,5440592,"4,989.56",DH TOWER HAMLETS
Children & Culture,Children's Social Care,Family Support Services,CNN Pool: Children Direct Paym,Social Care - Direct Payments,01/07/2020,5440593,674.6,DH TOWER HAMLETS
Children & Culture,Children's Social Care,Family Support Services,CNN Pool: Children Direct Paym,Social Care - Direct Payments,01/07/2020,5440595,899.42,DH TOWER HAMLETS
Children & Culture,Children's Social Care,Family Support Services,CNN Pool: Children Direct Paym,Social Care - Direct Payments,01/07/2020,5440597,674.6,DH TOWER HAMLETS
Children & Culture,Children's Social Care,Family Support Services,CNN Pool: Children Direct Paym,Social Care - Direct Payments,01/07/2020,5440598,674.6,DH TOWER HAMLETS
Children & Culture,Children's Social Care,Family Support Services,CNN Pool: Children Direct Paym,Social Care - Direct Payments,01/07/2020,5440599,"1,883.66",DH TOWER HAMLETS
Children & Culture,Children's Social Care,Family Support Services,CNN Pool: Children Direct Paym,Social Care - Direct Payments,01/07/2020,5440600,674.6,DH TOWER HAMLETS
Children & Culture,Children's Social Care,Family Support Services,CNN Pool: Children Direct Paym,Social Care - Direct Payments,01/07/2020,5440601,674.6,DH TOWER HAMLETS
Children & Culture,Children's Social Care,Family Support Services,CNN Pool: Children Direct Paym,Social Care - Direct Payments,01/07/2020,5440602,674.6,DH TOWER HAMLETS
Children & Culture,Children's Social Care,Family Support Services,CNN Pool: Children Direct Paym,Social Care - Direct Payments,01/07/2020,5440604,674.6,DH TOWER HAMLETS
Children & Culture,Children's Social Care,Family Support Services,CNN Pool: Children Direct Paym,Social Care - Direct Payments,01/07/2020,5440605,674.6,DH TOWER HAMLETS
Children & Culture,Children's Social Care,Family Support Services,CNN Pool: Children Direct Paym,Social Care - Direct Payments,01/07/2020,5440606,"1,590.00",DH TOWER HAMLETS
Children & Culture,Children's Social Care,Family Support Services,CNN Pool: Children Direct Paym,Social Care - Direct Payments,01/07/2020,5440607,"3,039.00",DH TOWER HAMLETS
Children & Culture,Children's Social Care,Family Support Services,CNN Pool: Children Direct Paym,Social Care - Direct Payments,01/07/2020,5440608,818.6,DH TOWER HAMLETS
Children & Culture,Children's Social Care,Family Support Services,CNN Pool: Children Direct Paym,Social Care - Direct Payments,01/07/2020,5440610,732,DH TOWER HAMLETS
Children & Culture,Children's Social Care,Family Support Services,CNN Pool: Children Direct Paym,Social Care - Direct Payments,01/07/2020,5440611,674.6,DH TOWER HAMLETS
Children & Culture,Children's Social Care,Family Support Services,CNN Pool: Children Direct Paym,Social Care - Direct Payments,01/07/2020,5440613,674.6,DH TOWER HAMLETS
Children & Culture,Children's Social Care,Family Support Services,CNN Pool: Children Direct Paym,Social Care - Direct Payments,01/07/2020,5440614,674.6,DH TOWER HAMLETS
Children & Culture,Children's Social Care,Family Support Services,CNN Pool: Children Direct Paym,Social Care - Direct Payments,01/07/2020,5440615,674.6,DH TOWER HAMLETS
Children & Culture,Children's Social Care,Family Support Services,CNN Pool: Children Direct Paym,Social Care - Direct Payments,01/07/2020,5440616,674.6,DH TOWER HAMLETS
Children & Culture,Children's Social Care,Family Support Services,CNN Pool: Children Direct Paym,Social Care - Direct Payments,01/07/2020,5440617,674.6,DH TOWER HAMLETS
Children & Culture,Children's Social Care,Family Support Services,CNN Pool: Children Direct Paym,Social Care - Direct Payments,01/07/2020,5440618,674.6,DH TOWER HAMLETS
Children & Culture,Children's Social Care,Family Support Services,CNN Pool: Children Direct Paym,Social Care - Direct Payments,01/07/2020,5440619,674.6,DH TOWER HAMLETS
Children & Culture,Children's Social Care,Family Support Services,CNN Pool: Children Direct Paym,Social Care - Direct Payments,01/07/2020,5440620,674.6,DH TOWER HAMLETS
Children & Culture,Children's Social Care,Family Support Services,CNN Pool: Children Direct Paym,Social Care - Direct Payments,01/07/2020,5440621,674.6,DH TOWER HAMLETS
Children & Culture,Children's Social Care,Family Support Services,CNN Pool: Children Direct Paym,Social Care - Direct Payments,01/07/2020,5440622,674.6,DH TOWER HAMLETS
Children & Culture,Children's Social Care,Family Support Services,CNN Pool: Children Direct Paym,Social Care - Direct Payments,01/07/2020,5440623,"3,726.00",DH TOWER HAMLETS
Children & Culture,Children's Social Care,Family Support Services,CNN Pool: Children Direct Paym,Social Care - Direct Payments,01/07/2020,5440624,674.6,DH TOWER HAMLETS
Children & Culture,Children's Social Care,Family Support Services,CNN Pool: Children Direct Paym,Social Care - Direct Payments,01/07/2020,5440625,818.6,DH TOWER HAMLETS
Children & Culture,Children's Social Care,Children Looked After,S23 Fam Pl P&V-F/Care,Childrens Act Section 23 - Placement Fee,01/07/2020,5440711,"3,100.00",Aspirations Fostering
Children & Culture,Children's Social Care,Children Looked After,S23 Fam Pl P&V-F/Care,Childrens Act Section 23 - Placement Fee,01/07/2020,5440712,"3,000.00",Aspirations Fostering
Children & Culture,Children's Social Care,Children Looked After,S23-Other-Semi-Ind. Unit,Childrens Act Section 23 - Placement Fee,01/07/2020,5440734,"19,285.71",Silver Birch Care LTD
Children & Culture,Education Services,Other Strategic Functions,Special Education Needs DSG,Payments to Private Contractors - Other Establishments,01/07/2020,5440797,"2,525.00",SEN Support Services Ltd
Children & Culture,Education Services,Other Strategic Functions,Special Education Needs DSG,Payments to Private Contractors - Other Establishments,01/07/2020,5440798,"2,425.00",SEN Support Services Ltd
Children & Culture,Education Services,Early Years,3&4 Year old PVI�s,Third Party Payments - Voluntary Associations,01/07/2020,5440857,"12,247.20",St Paul�s (Nursery at Dock Street)
Children & Culture,Education Services,Early Years,Private Voluntary & Independant Extended Funding Hours,Third Party Payments - Voluntary Associations,01/07/2020,5440858,"6,660.00",St Paul�s (Nursery at Dock Street)
Children & Culture,Education Services,Early Years,Private Voluntary & Independant Extended Funding Hours,Third Party Payments - Voluntary Associations,01/07/2020,5440859,257.76,Bethnal Green Montessuri Nursery
Children & Culture,Education Services,Early Years,SSEYCG Two Year Old Pilot,Third Party Payments - Voluntary Associations,01/07/2020,5440860,585,Acola Kids Ltd
Children & Culture,Education Services,Early Years,SSEYCG Two Year Old Pilot,Third Party Payments - Voluntary Associations,01/07/2020,5440861,"7,020.00",Allen Gardens Playgroup
Children & Culture,Education Services,Early Years,SSEYCG Two Year Old Pilot,Third Party Payments - Voluntary Associations,01/07/2020,5440862,"1,755.00",Avebury Playgroup
Children & Culture,Education Services,Early Years,SSEYCG Two Year Old Pilot,Third Party Payments - Voluntary Associations,01/07/2020,5440863,585,Barkantine Community Nursery
Children & Culture,Education Services,Early Years,SSEYCG Two Year Old Pilot,Third Party Payments - Voluntary Associations,01/07/2020,5440864,"11,115.00",Barnardo's
Children & Culture,Education Services,Early Years,SSEYCG Two Year Old Pilot,Third Party Payments - Voluntary Associations,01/07/2020,5440865,"3,022.50",Burdett Estate playgroup
Children & Culture,Education Services,Early Years,SSEYCG Two Year Old Pilot,Third Party Payments - Voluntary Associations,01/07/2020,5440866,"12,285.00",Calvary Poplar Preschool
Children & Culture,Education Services,Early Years,SSEYCG Two Year Old Pilot,Third Party Payments - Voluntary Associations,01/07/2020,5440867,"1,170.00",SOMALI INTEGRATION TEAM
Children & Culture,Education Services,Early Years,SSEYCG Two Year Old Pilot,Third Party Payments - Voluntary Associations,01/07/2020,5440868,"11,700.00",DATE PALM PRIMARY
Children & Culture,Education Services,Early Years,SSEYCG Two Year Old Pilot,Third Party Payments - Voluntary Associations,01/07/2020,5440869,"1,170.00",EXCELLENCE CHRISTIAN SCHOOL
Children & Culture,Education Services,Early Years,SSEYCG Two Year Old Pilot,Third Party Payments - Voluntary Associations,01/07/2020,5440870,"11,115.00",GLOBAL KIDS DAY CARE
Children & Culture,Education Services,Early Years,SSEYCG Two Year Old Pilot,Third Party Payments - Voluntary Associations,01/07/2020,5440871,"11,700.00",GLOBAL KIDS DAY CARE
Children & Culture,Education Services,Early Years,SSEYCG Two Year Old Pilot,Third Party Payments - Voluntary Associations,01/07/2020,5440872,"8,190.00",Account 3 Ltd
Children & Culture,Education Services,Early Years,SSEYCG Two Year Old Pilot,Third Party Payments - Voluntary Associations,01/07/2020,5440873,"6,435.00",Headstart Nursery
Children & Culture,Education Services,Early Years,SSEYCG Two Year Old Pilot,Third Party Payments - Voluntary Associations,01/07/2020,5440874,"1,755.00",Incy Wincy Stars Childcare Ltd
Children & Culture,Education Services,Early Years,SSEYCG Two Year Old Pilot,Third Party Payments - Voluntary Associations,01/07/2020,5440875,"8,190.00",Iqra Pre School
Children & Culture,Education Services,Early Years,SSEYCG Two Year Old Pilot,Third Party Payments - Voluntary Associations,01/07/2020,5440876,"4,777.50",Iqra Preschool
Children & Culture,Education Services,Early Years,SSEYCG Two Year Old Pilot,Third Party Payments - Voluntary Associations,01/07/2020,5440877,"3,510.00",ISLAND HOUSE PRE SCHOOL PLAYGROUP
Children & Culture,Education Services,Early Years,SSEYCG Two Year Old Pilot,Third Party Payments - Voluntary Associations,01/07/2020,5440878,"9,360.00",Jingle Jungle Nursery
Children & Culture,Education Services,Early Years,SSEYCG Two Year Old Pilot,Third Party Payments - Voluntary Associations,01/07/2020,5440879,"6,162.00",Kids Kingdom Nursery
Children & Culture,Education Services,Early Years,SSEYCG Two Year Old Pilot,Third Party Payments - Voluntary Associations,01/07/2020,5440880,"12,285.00",Lincoln Hall Playgroup
Children & Culture,Education Services,Early Years,SSEYCG Two Year Old Pilot,Third Party Payments - Voluntary Associations,01/07/2020,5440881,"5,362.50",Little Miracles Nursery
Children & Culture,Education Services,Early Years,SSEYCG Two Year Old Pilot,Third Party Payments - Voluntary Associations,01/07/2020,5440882,"8,775.00",Little St Matthias Pre School
Children & Culture,Education Services,Early Years,SSEYCG Two Year Old Pilot,Third Party Payments - Voluntary Associations,01/07/2020,5440883,"5,850.00",Little Tigers Nursery
Children & Culture,Education Services,Early Years,SSEYCG Two Year Old Pilot,Third Party Payments - Voluntary Associations,01/07/2020,5440884,"2,340.00",MAGIC ROUNDABOUT NURSERIES LTD
Children & Culture,Education Services,Early Years,SSEYCG Two Year Old Pilot,Third Party Payments - Voluntary Associations,01/07/2020,5440885,"7,800.00",Matchbox Day Nursery Ltd
Children & Culture,Education Services,Early Years,SSEYCG Two Year Old Pilot,Third Party Payments - Voluntary Associations,01/07/2020,5440886,585,Matilda Community Day Nursery
Children & Culture,Education Services,Early Years,SSEYCG Two Year Old Pilot,Third Party Payments - Voluntary Associations,01/07/2020,5440887,"3,217.50",New City College
Children & Culture,Education Services,Early Years,SSEYCG Two Year Old Pilot,Third Party Payments - Voluntary Associations,01/07/2020,5440888,"2,340.00",London Early Years Foundation
Children & Culture,Education Services,Early Years,SSEYCG Two Year Old Pilot,Third Party Payments - Voluntary Associations,01/07/2020,5440889,"9,945.00",Puddle Jumpers Ltd
Children & Culture,Education Services,Early Years,SSEYCG Two Year Old Pilot,Third Party Payments - Voluntary Associations,01/07/2020,5440890,585,Rainbow Angels Nurseries & Learning Centres Ltd
Children & Culture,Education Services,Early Years,SSEYCG Two Year Old Pilot,Third Party Payments - Voluntary Associations,01/07/2020,5440891,"16,965.00",Rainbow House
Children & Culture,Education Services,Early Years,SSEYCG Two Year Old Pilot,Third Party Payments - Voluntary Associations,01/07/2020,5440892,"27,261.00",RANWELL PLAYGROUP
Children & Culture,Education Services,Early Years,SSEYCG Two Year Old Pilot,Third Party Payments - Voluntary Associations,01/07/2020,5440893,"4,095.00",Shining Futures Nursery
Children & Culture,Education Services,Early Years,SSEYCG Two Year Old Pilot,Third Party Payments - Voluntary Associations,01/07/2020,5440894,"8,775.00",Spring Nursery Limited
Children & Culture,Education Services,Early Years,SSEYCG Two Year Old Pilot,Third Party Payments - Voluntary Associations,01/07/2020,5440895,"2,925.00",Step By Step Nursery
Children & Culture,Education Services,Early Years,SSEYCG Two Year Old Pilot,Third Party Payments - Voluntary Associations,01/07/2020,5440896,"6,678.75",CATHOLIC CHILDREN'S SOCIETY(WESTMINSTER)
Children & Culture,Education Services,Early Years,SSEYCG Two Year Old Pilot,Third Party Payments - Voluntary Associations,01/07/2020,5440897,585,Bethnal Green Montessuri Nursery
Children & Culture,Education Services,Early Years,SSEYCG Two Year Old Pilot,Third Party Payments - Voluntary Associations,01/07/2020,5440898,"27,202.50",TATE HOUSE PLAYGROUP
Children & Culture,Education Services,Early Years,SSEYCG Two Year Old Pilot,Third Party Payments - Voluntary Associations,01/07/2020,5440899,"2,340.00",Tower Hamlets Opportunity Group
Children & Culture,Education Services,Early Years,SSEYCG Two Year Old Pilot,Third Party Payments - Voluntary Associations,01/07/2020,5440900,"6,435.00",VERNON PLAYGROUP
Children & Culture,Education Services,Early Years,SSEYCG Two Year Old Pilot,Third Party Payments - Voluntary Associations,01/07/2020,5440901,"3,510.00",WAPPING PLAYGROUP
Children & Culture,Education Services,Early Years,SSEYCG Two Year Old Pilot,Third Party Payments - Voluntary Associations,01/07/2020,5440902,"5,265.00",WEAVERSFIELD COMMUNITY NURSERY
Children & Culture,Education Services,Early Years,SSEYCG Two Year Old Pilot,Third Party Payments - Voluntary Associations,01/07/2020,5440903,"38,025.00",SELECT LEARNING LONDON LTD
Children & Culture,Education Services,Early Years,SSEYCG Two Year Old Pilot,Third Party Payments - Voluntary Associations,01/07/2020,5440913,585,THE NURSERY QUEEN MARY UNIVERSITY LONDON
Children & Culture,Education Services,Early Years,SSEYCG Two Year Old Pilot,Third Party Payments - Voluntary Associations,01/07/2020,5440914,"8,190.00",Little Limehouse Preschool
Children & Culture,Education Services,Early Years,SSEYCG Two Year Old Pilot,Third Party Payments - Voluntary Associations,01/07/2020,5440915,"2,340.00",ABERTOTS PLAY
Children & Culture,Education Services,Early Years,3&4 Year old PVI�s,Third Party Payments - Voluntary Associations,01/07/2020,5440916,"6,177.60",GREEN GABLES PRIMARY SCHOOL
Children & Culture,Education Services,Early Years,3&4 Year old PVI�s,Third Party Payments - Voluntary Associations,01/07/2020,5440917,"7,001.64",LANTERNS DAY NURSERY
Children & Culture,Education Services,Early Years,3&4 Year old PVI�s,Third Party Payments - Voluntary Associations,01/07/2020,5440918,"7,723.80",Little Limehouse Preschool
Children & Culture,Children's Social Care,Children Looked After,S23 Fam Pl In-Hse-S/Term F/C,Social Care - Day Care,01/07/2020,5442090,280,Toucan Nursery
Children & Culture,Children's Social Care,Children Looked After,S23 Fam Pl In-Hse-S/Term F/C,Childrens Act Section 23 - All Contact Expenses,01/07/2020,5442090,445,Toucan Nursery
Children & Culture,Children's Social Care,Children Looked After,S23-Other-Semi-Ind. Unit,Childrens Act Section 23 - Placement Fee,01/07/2020,5442095,"3,469.93",Inclusive Care Support Ltd
Children & Culture,Children's Social Care,Children Looked After,Special G/Ship Allowances,Childrens Act Section 23 - Commissioned Services,01/07/2020,5442146,459.25,New Directions Education Ltd
Children & Culture,Children's Social Care,Support Service and Management Costs,Schools Catering,Repairs and Maintenance - Responsive - General,01/07/2020,5442164,276,Lambourne Refrigeration
Children & Culture,Children's Social Care,Children Looked After,S23-Other-Semi-Ind. Unit,Childrens Act Section 23 - Non-Contact Trans/Travel Costs,01/07/2020,5442271,835,VCare-24 Ltd
Children & Culture,Environmental and Regulatory Services,Regulatory Services,Thames Tideway Project,Repairs and Maintenance - Responsive - Buildings,02/07/2020,5434672,"3,000.00",Splash Arts
Children & Culture,Children's Social Care,Commissioning and Social Work,Advice and Assessment Section 17,Childrens Act Section 17 - Interpreting/Translation,02/07/2020,5434683,"2,871.45",Oncall Interpreters LTD
Children & Culture,Children's Social Care,Service Strategy,FSP Sect 17 - Team 5,Services - Professional Fees - Translation Fees,02/07/2020,5434729,664.5,Oncall Interpreters LTD
Children & Culture,Children's Social Care,Service Strategy,FSP Sect 17 - Team 4,Childrens Act Section 17 - Interpreting/Translation,02/07/2020,5434730,667,Oncall Interpreters LTD
Children & Culture,Children's Social Care,Service Strategy,"FSP Sect 17 - Team 7		",Services - Professional Fees - Translation Fees,02/07/2020,5434731,918.4,Oncall Interpreters LTD
Children & Culture,Children's Social Care,Service Strategy,FSP Sect 17 - Team 9,Childrens Act Section 17 - Interpreting/Translation,02/07/2020,5434732,"1,218.80",Oncall Interpreters LTD
Children & Culture,Children's Social Care,Service Strategy,"FSP Sect 17 - Team 6		",Services - Professional Fees - Translation Fees,02/07/2020,5434733,"1,353.50",Oncall Interpreters LTD
Children & Culture,Children's Social Care,Support Service and Management Costs,Schools Catering,Kitchen Supplies - Food and Beverages,02/07/2020,5434791,304.96,Thomas Ridley & Son Ltd
Children & Culture,Children's Social Care,Support Service and Management Costs,Schools Catering,Kitchen Supplies - Food and Beverages,02/07/2020,5434793,268.33,Thomas Ridley & Son Ltd
Children & Culture,Children's Social Care,Children Looked After,Virtual School PPG,Training Expenses - Staff External Training (UK Based),02/07/2020,5434799,"1,100.00",AC Education
Children & Culture,Education Services,Other Strategic Functions,C&C Covid19 Response,Repairs and Maintenance - Responsive - Repair & Maintenance,02/07/2020,5434849,"4,800.00",JC Coster (Metalworks) Ltd
Children & Culture,Children's Social Care,Children Looked After,S23-Other-Semi-Ind. Unit,Childrens Act Section 23 - Placement Fee,02/07/2020,5434861,"3,585.59",Inclusive Care Support Ltd
Children & Culture,Children's Social Care,Family Support Services,Short Breaks and Family Support,Third Party Payments - Voluntary Associations,02/07/2020,5434867,"132,500.00",QALB Centre Short Break Services
Children & Culture,No Service Specified,No Division Specified,Capital-Minor Works (SC),Building Works - Asbestos- Surveys & Removal,02/07/2020,5434884,"1,795.00",Environtec Ltd
Children & Culture,Children's Social Care,Family Support Services,CNN Pool: Joint Family Support,Social Care - Homecare,02/07/2020,5434919,"1,440.00",Ashton Care Ltd
Children & Culture,Children's Social Care,Support Service and Management Costs,Schools Catering,Kitchen Supplies - Food and Beverages,02/07/2020,5435006,611.68,Thomas Ridley & Son Ltd
Children & Culture,Children's Social Care,Support Service and Management Costs,Schools Catering,Kitchen Supplies - Food and Beverages,02/07/2020,5435018,842.81,Thomas Ridley & Son Ltd
Children & Culture,Children's Social Care,Support Service and Management Costs,Schools Catering,Kitchen Supplies - Food and Beverages,02/07/2020,5435020,452.86,Thomas Ridley & Son Ltd
Children & Culture,Children's Social Care,Support Service and Management Costs,Schools Catering,Kitchen Supplies - Food and Beverages,02/07/2020,5435021,255.86,Thomas Ridley & Son Ltd
Children & Culture,Children's Social Care,Support Service and Management Costs,Schools Catering,Kitchen Supplies - Food and Beverages,02/07/2020,5435023,"1,324.61",Thomas Ridley & Son Ltd
Children & Culture,Children's Social Care,Support Service and Management Costs,Schools Catering,Kitchen Supplies - Food and Beverages,02/07/2020,5435028,604.36,Thomas Ridley & Son Ltd
Children & Culture,Children's Social Care,Support Service and Management Costs,Schools Catering,Kitchen Supplies - Food and Beverages,02/07/2020,5435034,594.87,Prescott-Thomas LTD.
Children & Culture,Children's Social Care,Support Service and Management Costs,Schools Catering,Kitchen Supplies - Food and Beverages,02/07/2020,5435036,294.83,Prescott-Thomas LTD.
Children & Culture,Children's Social Care,Support Service and Management Costs,Schools Catering,Kitchen Supplies - Food and Beverages,02/07/2020,5435050,703.87,Prescott-Thomas LTD.
Children & Culture,Cultural and Related Services,Open Spaces,Parks & Open Spaces Man&Admin,Repairs and Maintenance - Responsive - Buildings,02/07/2020,5435708,840,JC Coster (Metalworks) Ltd
Children & Culture,Cultural and Related Services,Open Spaces,Mile End Park,Repairs and Maintenance - Responsive - Repair & Maintenance,02/07/2020,5435709,"2,810.00",JC Coster (Metalworks) Ltd
Children & Culture,Children's Social Care,Children Looked After,LCS/Allowances-Accom,Leaving Care Financial Assistance - Supp Accom/Hous Rents,02/07/2020,5435771,"1,000.00",Youth reality homes
Children & Culture,Children's Social Care,Children Looked After,LCS/Allowances-Accom,Leaving Care Financial Assistance - Supported Living,02/07/2020,5435771,"3,012.00",Youth reality homes
Children & Culture,Children's Social Care,Children Looked After,LCS/Allowances-Accom,Leaving Care Financial Assistance - Supp Accom/Hous Rents,02/07/2020,5435772,"1,000.00",Youth reality homes
Children & Culture,Children's Social Care,Children Looked After,LCS/Allowances-Accom,Leaving Care Financial Assistance - Supported Living,02/07/2020,5435772,"3,012.00",Youth reality homes
Children & Culture,Cultural and Related Services,Open Spaces,Victoria Park,Grounds Maintenance - Contract - Bedding,02/07/2020,5435792,"11,434.90",Boverton nurseries LTD
Children & Culture,Cultural and Related Services,Open Spaces,Mile End Park,Repairs and Maintenance - Responsive - Drainage & Sewers,02/07/2020,5435830,"1,230.00",J&L Coster (Drainage) Ltd
Children & Culture,Education Services,Other Strategic Functions,Parental Engagement,Client Treatment Services,02/07/2020,5435879,316,ESPO
Children & Culture,Children's Social Care,Support Service and Management Costs,Sch. Meals A/c - Central Production Unit,Kitchen Supplies - Food and Beverages,02/07/2020,5435882,"1,362.44",Thomas Ridley & Son Ltd
Children & Culture,Children's Social Care,Children's and Young People's Safety,Community Safeguarding,Training Expenses - Staff External Training (UK Based),02/07/2020,5436514,300,RCCG Jubilee Hall
Children & Culture,Education Services,Other Strategic Functions,C&C Covid19 Response,Repairs and Maintenance - Responsive - Security,02/07/2020,5436520,"1,820.00",The Maintenance Supply Co Ltd
Children & Culture,Children's Social Care,Children Looked After,S23-Other-Semi-Ind. Unit,Social Care - Day Care,02/07/2020,5436558,"2,040.00",Potton Services Ltd
Children & Culture,Children's Social Care,Children Looked After,S23-Other-Semi-Ind. Unit,Social Care - Day Care,02/07/2020,5436559,"1,533.60",Potton Services Ltd
Children & Culture,Children's Social Care,Children Looked After,S23-Other-Semi-Ind. Unit,Social Care - Day Care,02/07/2020,5436560,"1,658.10",Potton Services Ltd
Children & Culture,Children's Social Care,Children Looked After,S23-Other-Semi-Ind. Unit,Social Care - Day Care,02/07/2020,5436561,901.5,Potton Services Ltd
Children & Culture,Education Services,Other Strategic Functions,Empty Properties,Services - Professional Fees - Security Fees,02/07/2020,5437284,"11,056.32",Manpower Direct UK
Children & Culture,Cultural and Related Services,Open Spaces,Victoria Park,Services - Professional Fees - Security Fees,02/07/2020,5437295,"6,510.00",Manpower Direct UK
Children & Culture,Children's Social Care,Children Looked After,LCS/Allowances-Accom,Leaving Care Financial Assistance - Supp Accom/Hous Rents,02/07/2020,5440657,"1,569.53",Heartwood Outreach Services Ltd
Children & Culture,Children's Social Care,Children Looked After,LCS/Allowances-Accom,Leaving Care Financial Assistance - Supp Accom/Hous Rents,02/07/2020,5440658,"1,468.27",Heartwood Outreach Services Ltd
Children & Culture,Children's Social Care,Children Looked After,LCS/Allowances-Accom,Leaving Care Financial Assistance - Supported Living,02/07/2020,5440658,375.23,Heartwood Outreach Services Ltd
Children & Culture,Children's Social Care,Family Support Services,CNN Pool: Joint Family Support,Social Care - Homecare,02/07/2020,5442859,816.75,QALB Centre Short Break Services
Children & Culture,Children's Social Care,Family Support Services,CNN Pool: Joint Family Support,Social Care - Homecare,02/07/2020,5442860,"1,908.00",QALB Centre Short Break Services
Children & Culture,Children's Social Care,Family Support Services,CNN Pool: Joint Family Support,Social Care - Homecare,02/07/2020,5442861,"1,881.00",QALB Centre Short Break Services
Children & Culture,Children's Social Care,Family Support Services,CNN Pool: Joint Family Support,Social Care - Homecare,02/07/2020,5442862,803.25,QALB Centre Short Break Services
Children & Culture,Children's Social Care,Family Support Services,CNN Pool: Joint Family Support,Social Care - Homecare,02/07/2020,5442863,"1,156.00",QALB Centre Short Break Services
Children & Culture,Education Services,Other Strategic Functions,Special Education Needs DSG,Third Party Payments - Payments to Schools,02/07/2020,5442996,"37,350.63",Kisimul Group Ltd
Children & Culture,Children's Social Care,Children Looked After,S23-Resi-P&V/OLA-Boarding Sch,Childrens Act Section 17 - Placement Fee,02/07/2020,5442996,"37,350.63",Kisimul Group Ltd
Children & Culture,Children's Social Care,Children Looked After,S23 Fam Pl P&V-F/Care,Childrens Act Section 23 - Non-Contact Taxi Costs,02/07/2020,5443036,360,AnR Cars Ltd
Children & Culture,Children's Social Care,Children Looked After,LCS/Allowances-Accom,Leaving Care Financial Assistance - Supp Accom/Hous Rents,08/07/2020,5432542,"3,535.71",JEM Support Services
Children & Culture,Children's Social Care,Children Looked After,LCS/Allowances-Accom,Leaving Care Financial Assistance - Supported Living,08/07/2020,5432542,"1,071.43",JEM Support Services
Children & Culture,Education Services,Other Strategic Functions,C&C Covid19 Response,Repairs and Maintenance - Responsive - Repair & Maintenance,08/07/2020,5436479,"2,675.00",JC Coster (Metalworks) Ltd
Children & Culture,Education Services,Other Strategic Functions,High Needs Other Boroughs,Third Party Payments - SEN Top Up Funding,08/07/2020,5436565,"9,489.49",West Hatch High School Academy Trust
Children & Culture,Education Services,Early Years,SSEYCG Workforce Dev't,Training Expenses - Staff External Training (UK Based),08/07/2020,5436572,400,Pulse First Aid Ltd
Children & Culture,Children's Social Care,Support Service and Management Costs,Schools Catering,Kitchen Supplies - Food and Beverages,08/07/2020,5436592,367.99,Thomas Ridley & Son Ltd
Children & Culture,Children's Social Care,Support Service and Management Costs,Schools Catering,Kitchen Supplies - Food and Beverages,08/07/2020,5436601,"1,300.29",Thomas Ridley & Son Ltd
Children & Culture,Children's Social Care,Support Service and Management Costs,Schools Catering,Kitchen Supplies - Food and Beverages,08/07/2020,5436603,252.01,Thomas Ridley & Son Ltd
Children & Culture,Children's Social Care,Support Service and Management Costs,Schools Catering,Kitchen Supplies - Food and Beverages,08/07/2020,5436606,301.31,Thomas Ridley & Son Ltd
Children & Culture,Children's Social Care,Service Strategy,CSC Childrens Resources M & A,Training Expenses - Staff External Training (UK Based),08/07/2020,5436609,525,L.A. Training
Children & Culture,Children's Social Care,Support Service and Management Costs,Schools Catering,Kitchen Supplies - Food and Beverages,08/07/2020,5436623,406.73,Prescott-Thomas LTD.
Children & Culture,Cultural and Related Services,Open Spaces,Mile End Park,Repairs and Maintenance - Responsive - Repair & Maintenance,08/07/2020,5436666,"2,240.00",JC Coster (Metalworks) Ltd
Children & Culture,Education Services,Other Strategic Functions,C&C Covid19 Response,Repairs and Maintenance - Responsive - Security,08/07/2020,5436667,"7,220.00",JC Coster (Metalworks) Ltd
Children & Culture,Children's Social Care,Support Service and Management Costs,Schools Catering,Kitchen Supplies - Food and Beverages,08/07/2020,5436750,273.04,Thomas Ridley & Son Ltd
Children & Culture,Children's Social Care,Support Service and Management Costs,Schools Catering,Kitchen Supplies - Food and Beverages,08/07/2020,5436754,302.53,Thomas Ridley & Son Ltd
Children & Culture,Children's Social Care,Support Service and Management Costs,Schools Catering,Kitchen Supplies - Food and Beverages,08/07/2020,5436765,414.55,Prescott-Thomas LTD.
Children & Culture,Children's Social Care,Support Service and Management Costs,Schools Catering,Kitchen Supplies - Food and Beverages,08/07/2020,5436766,637.45,Prescott-Thomas LTD.
Children & Culture,Children's Social Care,Support Service and Management Costs,Schools Catering,Kitchen Supplies - Packaging,08/07/2020,5437263,423.63,Tri-Star Packaging Supplies LTD
Children & Culture,Children's Social Care,Support Service and Management Costs,Schools Catering,Repairs and Maintenance - Responsive - General,08/07/2020,5437353,675,Lambourne Refrigeration
Children & Culture,Children's Social Care,Children Looked After,S23 Fam Pl P&V-F/Care,Childrens Act Section 23 - Placement Fee,08/07/2020,5437478,"7,600.00",Fostering Innovations Ltd
Children & Culture,Education Services,Other Strategic Functions,Alternative Provision,Third Party Payments - Payments to Schools,08/07/2020,5437636,"3,000.00",Oakland School
Children & Culture,Children's Social Care,Children Looked After,Leaving Care-UASC,Leaving Care Financial Assistance - Supp Accom/Hous Rents,08/07/2020,5438539,"5,203.57",Jordan Xavier LTD
Children & Culture,Children's Social Care,Children Looked After,LCS/Allowances-Accom,Leaving Care Financial Assistance - Supp Accom/Hous Rents,08/07/2020,5438540,"4,428.57",Jordan Xavier LTD
Children & Culture,Children's Social Care,Children Looked After,LCS/Allowances-Accom,Leaving Care Financial Assistance - Supported Living,08/07/2020,5438540,553.57,Jordan Xavier LTD
Children & Culture,Children's Social Care,Children Looked After,LCS/Allowances-Accom,Leaving Care Financial Assistance - Supp Accom/Hous Rents,08/07/2020,5438541,"1,446.42",Jordan Xavier LTD
Children & Culture,Children's Social Care,Children Looked After,LCS/Allowances-Accom,Leaving Care Financial Assistance - Supp Accom/Hous Rents,08/07/2020,5438682,814.29,Jordan Xavier LTD
Children & Culture,Children's Social Care,Children Looked After,LCS/Allowances-Accom,Leaving Care Financial Assistance - Supported Living,08/07/2020,5438682,"1,967.86",Jordan Xavier LTD
Children & Culture,Children's Social Care,Children Looked After,LCS/Allowances-Accom,Leaving Care Financial Assistance - Reg Plan Maint L-Allow,08/07/2020,5438683,553.57,Jordan Xavier LTD
Children & Culture,Children's Social Care,Children Looked After,LCS/Allowances-Accom,Leaving Care Financial Assistance - Supp Accom/Hous Rents,08/07/2020,5438683,"1,328.57",Jordan Xavier LTD
Children & Culture,Children's Social Care,Children Looked After,LCS/Allowances-Accom,Leaving Care Financial Assistance - Supported Living,08/07/2020,5438683,"2,657.14",Jordan Xavier LTD
Children & Culture,Children's Social Care,Children Looked After,LCS/Allowances-Accom,Leaving Care Financial Assistance - Supp Accom/Hous Rents,08/07/2020,5438685,"1,242.86",Jordan Xavier LTD
Children & Culture,Children's Social Care,Children Looked After,LCS/Allowances-Accom,Leaving Care Financial Assistance - Supported Living,08/07/2020,5438685,"3,003.57",Jordan Xavier LTD
Children & Culture,Children's Social Care,Children Looked After,LCS/Allowances-Accom,Leaving Care Financial Assistance - Supp Accom/Hous Rents,08/07/2020,5438687,"1,328.57",Jordan Xavier LTD
Children & Culture,Children's Social Care,Children Looked After,LCS/Allowances-Accom,Leaving Care Financial Assistance - Supported Living,08/07/2020,5438687,"3,210.71",Jordan Xavier LTD
Children & Culture,Children's Social Care,Children Looked After,LCS/Allowances-Accom,Leaving Care Financial Assistance - Supp Accom/Hous Rents,08/07/2020,5438688,"1,285.71",Jordan Xavier LTD
Children & Culture,Children's Social Care,Children Looked After,LCS/Allowances-Accom,Leaving Care Financial Assistance - Supported Living,08/07/2020,5438688,"3,107.14",Jordan Xavier LTD
Children & Culture,Children's Social Care,Children Looked After,LCS/Allowances-Accom,Leaving Care Financial Assistance - Supp Accom/Hous Rents,08/07/2020,5438689,"1,328.57",Jordan Xavier LTD
Children & Culture,Children's Social Care,Children Looked After,LCS/Allowances-Accom,Leaving Care Financial Assistance - Supported Living,08/07/2020,5438689,"3,210.71",Jordan Xavier LTD
Children & Culture,Children's Social Care,Children Looked After,LCS/Allowances-Accom,Leaving Care Financial Assistance - Supp Accom/Hous Rents,08/07/2020,5438690,814.29,Jordan Xavier LTD
Children & Culture,Children's Social Care,Children Looked After,LCS/Allowances-Accom,Leaving Care Financial Assistance - Supported Living,08/07/2020,5438690,"1,967.86",Jordan Xavier LTD
Children & Culture,Children's Social Care,Children Looked After,LCS/Allowances-Accom,Leaving Care Financial Assistance - Supp Accom/Hous Rents,08/07/2020,5438691,"1,285.71",Jordan Xavier LTD
Children & Culture,Children's Social Care,Children Looked After,LCS/Allowances-Accom,Leaving Care Financial Assistance - Supported Living,08/07/2020,5438691,"3,107.14",Jordan Xavier LTD
Children & Culture,Children's Social Care,Children Looked After,LCS/Allowances-Accom,Leaving Care Financial Assistance - Supp Accom/Hous Rents,08/07/2020,5438692,"1,328.57",Jordan Xavier LTD
Children & Culture,Children's Social Care,Children Looked After,LCS/Allowances-Accom,Leaving Care Financial Assistance - Supported Living,08/07/2020,5438692,"3,210.71",Jordan Xavier LTD
Children & Culture,Children's Social Care,Children Looked After,LCS/Allowances-Accom,Leaving Care Financial Assistance - Supp Accom/Hous Rents,08/07/2020,5438693,685.71,Jordan Xavier LTD
Children & Culture,Children's Social Care,Children Looked After,LCS/Allowances-Accom,Leaving Care Financial Assistance - Supported Living,08/07/2020,5438693,"1,885.71",Jordan Xavier LTD
Children & Culture,Children's Social Care,Children Looked After,S23-Other-Semi-Ind. Unit,Childrens Act Section 23 - Placement Fee,08/07/2020,5438866,"4,464.00",The Way Care Services Ltd
Children & Culture,Education Services,Other Strategic Functions,SLS Trading Account,Agency Staff - Agency staff (general),08/07/2020,5440085,"1,410.00",Academics ltd
Children & Culture,Children's Social Care,Children Looked After,S23-Other-Semi-Ind. Unit,Social Care - Day Care,08/07/2020,5440722,"14,507.13",Harvest Care Group Limited
Children & Culture,Children's Social Care,Family Support Services,Short Breaks and Family Support,Third Party Payments - Voluntary Associations,08/07/2020,5442060,"22,200.00",Tower Project
Children & Culture,Children's Social Care,Family Support Services,Short Breaks and Family Support,Third Party Payments - Voluntary Associations,08/07/2020,5442061,"39,312.00",Tower Project
Children & Culture,Children's Social Care,Children Looked After,Virtual School PPG,Training Expenses - Staff External Training (UK Based),08/07/2020,5442123,"3,440.00",Learn Solutions ltd trading as TLC LIVE
Children & Culture,Children's Social Care,Children Looked After,Virtual School PPG,Third Party Payments - Payments to Schools,08/07/2020,5442123,520,Learn Solutions ltd trading as TLC LIVE
Children & Culture,No Service Specified,No Division Specified,Capital-Minor Works (SC),Building Works - Main Works,08/07/2020,5442149,"903,538.00",Tower Hamlets Schools LTD
Children & Culture,No Service Specified,No Division Specified,Capital-Minor Works (SC),Building Works - Main Works,08/07/2020,5442153,"256,948.00",Tower Hamlets Schools LTD
Children & Culture,Children's Social Care,Commissioning and Social Work,Advice and Assessment Section 17,Childrens Act Section 17 - Other Placements Bed & Breakfast,08/07/2020,5442172,600,Finefair Management
Children & Culture,Children's Social Care,Services for young people,Youth Service Management,Third Party Payments - Voluntary Associations,08/07/2020,5443067,"24,000.00",Poplar HARCA LTD
Children & Culture,Children's Social Care,Services for young people,Youth Service Management,Third Party Payments - Voluntary Associations,08/07/2020,5443068,"20,000.00",Poplar HARCA LTD
Children & Culture,Children's Social Care,Services for young people,Youth Service Management,Third Party Payments - Voluntary Associations,08/07/2020,5443070,"20,000.00",Poplar HARCA LTD
Children & Culture,Children's Social Care,Services for young people,Youth Service Management,Third Party Payments - Voluntary Associations,08/07/2020,5443072,"20,000.00",Poplar HARCA LTD
Children & Culture,Children's Social Care,Family Support Services,CNN Pool: Joint Family Support,Social Care - Homecare,08/07/2020,5443085,"1,188.00",QALB Centre Short Break Services
Children & Culture,Children's Social Care,Family Support Services,CNN Pool: Joint Family Support,Social Care - Homecare,08/07/2020,5443086,495,QALB Centre Short Break Services
Children & Culture,Children's Social Care,Family Support Services,CNN Pool: Joint Family Support,Social Care - Homecare,08/07/2020,5443087,"2,949.05",QALB Centre Short Break Services
Children & Culture,Children's Social Care,Family Support Services,IPST S17 NRPF,Childrens Act Section 17 - Other Placements Bed & Breakfast,08/07/2020,5443089,798,Apolonia Property Services (Exodus Housing)
Children & Culture,Children's Social Care,Family Support Services,IPST S17 NRPF,Childrens Act Section 17 - Other Placements Bed & Breakfast,08/07/2020,5443090,874,Apolonia Property Services (Exodus Housing)
Children & Culture,Children's Social Care,Commissioning and Social Work,Advice and Assessment Section 17,Childrens Act Section 17 - Other Placements Bed & Breakfast,08/07/2020,5443091,256,Apolonia Property Services (Exodus Housing)
Children & Culture,Children's Social Care,Family Support Services,IPST S17 NRPF,Childrens Act Section 17 - Other Placements Bed & Breakfast,08/07/2020,5443092,704,Apolonia Property Services (Exodus Housing)
Children & Culture,Children's Social Care,Children Looked After,S23 Fam Pl P&V-F/Care,Childrens Act Section 23 - Placement Fee,08/07/2020,5443113,784,Swiis Foster Care Limited
Children & Culture,Children's Social Care,Support Service and Management Costs,Schools Catering,Repairs and Maintenance - Responsive - General,08/07/2020,5443145,275,Lambourne Refrigeration
Children & Culture,Children's Social Care,Children Looked After,Virtual School PPG,Agency Staff - Associations,08/07/2020,5443163,509.88,Academics ltd
Children & Culture,Children's Social Care,Children Looked After,Virtual School PPG,Agency Staff - Associations,08/07/2020,5443164,509.94,Academics ltd
Children & Culture,Children's Social Care,Children Looked After,Virtual School PPG,Agency Staff - Associations,08/07/2020,5443165,509.94,Academics ltd
Children & Culture,Children's Social Care,Children Looked After,Virtual School PPG,Agency Staff - Associations,08/07/2020,5443166,"1,274.85",Academics ltd
Children & Culture,Children's Social Care,Children Looked After,Virtual School PPG,Agency Staff - Associations,08/07/2020,5443167,509.88,Academics ltd
Children & Culture,Children's Social Care,Children Looked After,Virtual School PPG,Agency Staff - Associations,08/07/2020,5443168,"1,019.88",Academics ltd
Children & Culture,Children's Social Care,Children Looked After,Virtual School PPG,Agency Staff - Associations,08/07/2020,5443169,764.91,Academics ltd
Children & Culture,Children's Social Care,Children Looked After,Virtual School PPG,Agency Staff - Associations,08/07/2020,5443170,254.97,Academics ltd
Children & Culture,Children's Social Care,Children Looked After,Virtual School PPG,Agency Staff - Associations,08/07/2020,5443171,"1,529.82",Academics ltd
Children & Culture,Children's Social Care,Children Looked After,Virtual School PPG,Agency Staff - Associations,08/07/2020,5443172,"1,019.88",Academics ltd
Children & Culture,Children's Social Care,Service Strategy,"FSP Sect 17 - Team 6		",Social Care - Day Care,08/07/2020,5443304,"2,055.00",Toucan Nursery
Children & Culture,Children's Social Care,Family Support Services,CNN Pool: Joint Family Support,Social Care - Homecare,08/07/2020,5443308,"5,272.00",QALB Centre Short Break Services
Children & Culture,Children's Social Care,Family Support Services,IPST S17 NRPF,Childrens Act Section 17 - Other Placements Bed & Breakfast,08/07/2020,5443604,"2,018.70",HAMLETTS LTD
Children & Culture,Education Services,Other Strategic Functions,High Needs Other Boroughs,Third Party Payments - SEN Top Up Funding,08/07/2020,5443629,"2,340.00",National Teaching And Advisory Service
Children & Culture,Education Services,Other Strategic Functions,High Needs Other Boroughs,Third Party Payments - SEN Top Up Funding,08/07/2020,5443630,"2,250.00",National Teaching And Advisory Service
Children & Culture,Education Services,Other Strategic Functions,High Needs Other Boroughs,Third Party Payments - SEN Top Up Funding,08/07/2020,5443631,"2,340.00",National Teaching And Advisory Service
Children & Culture,Education Services,Other Strategic Functions,High Needs Other Boroughs,Third Party Payments - SEN Top Up Funding,08/07/2020,5443632,"2,340.00",National Teaching And Advisory Service
Children & Culture,Education Services,Other Strategic Functions,High Needs Other Boroughs,Third Party Payments - SEN Top Up Funding,08/07/2020,5443633,"2,340.00",National Teaching And Advisory Service
Children & Culture,Education Services,Other Strategic Functions,High Needs Other Boroughs,Third Party Payments - SEN Top Up Funding,08/07/2020,5443634,"2,925.00",National Teaching And Advisory Service
Children & Culture,Education Services,Other Strategic Functions,High Needs Other Boroughs,Third Party Payments - SEN Top Up Funding,08/07/2020,5443635,"2,925.00",National Teaching And Advisory Service
Children & Culture,Education Services,Other Strategic Functions,High Needs Other Boroughs,Third Party Payments - SEN Top Up Funding,08/07/2020,5443636,"2,925.00",National Teaching And Advisory Service
Children & Culture,Education Services,Other Strategic Functions,High Needs Other Boroughs,Third Party Payments - SEN Top Up Funding,08/07/2020,5443637,"2,925.00",National Teaching And Advisory Service
Children & Culture,Education Services,Other Strategic Functions,High Needs Other Boroughs,Third Party Payments - SEN Top Up Funding,08/07/2020,5443638,"2,925.00",National Teaching And Advisory Service
Children & Culture,Children's Social Care,Family Support Services,IPST S17 NRPF,Childrens Act Section 17 - Other Placements Bed & Breakfast,08/07/2020,5443641,"2,074.50",METROPOLITAN & CROWN
Children & Culture,Children's Social Care,Family Support Services,IPST S17 NRPF,Childrens Act Section 17 - Other Placements Bed & Breakfast,08/07/2020,5443642,"1,997.14",METROPOLITAN & CROWN
Children & Culture,Children's Social Care,Commissioning and Social Work,Advice and Assessment Section 17,Childrens Act Section 17 - Other Placements Bed & Breakfast,08/07/2020,5443727,"1,890.00",The Housing Network
Children & Culture,Children's Social Care,Commissioning and Social Work,Advice and Assessment Section 17,Childrens Act Section 17 - Other Placements Bed & Breakfast,08/07/2020,5443728,"1,590.00",The Housing Network
Children & Culture,Children's Social Care,Children Looked After,S23 Fam Pl P&V-F/Care,Childrens Act Section 23 - Placement Fee,08/07/2020,5443921,"5,460.91",Integrated Service Programme
Children & Culture,Education Services,Other Strategic Functions,Special Education Needs DSG,Third Party Payments - Payments to Schools,08/07/2020,5443940,"35,818.05",St Elizabeth's Centre
Children & Culture,Children's Social Care,Children Looked After,S23-Resi-P&V/OLA-Boarding Sch,Childrens Act Section 23 - Placement Fee,08/07/2020,5443940,"35,818.05",St Elizabeth's Centre
Children & Culture,Children's Social Care,Children Looked After,S23 Fam Pl P&V-F/Care,Childrens Act Section 23 - All Contact Expenses,08/07/2020,5443978,585,Early Start Group Ltd
Children & Culture,Education Services,Other Strategic Functions,Support for Learning Serv DSG,Comms - Courier,08/07/2020,5443998,319.03,TKG LTD T/A The Keen Group
Children & Culture,Children's Social Care,Service Strategy,CSC Childrens Resources M & A,Comms - Courier,08/07/2020,5443999,282.82,TKG LTD T/A The Keen Group
Children & Culture,Education Services,Other Strategic Functions,SEN External Travel,Services - Professional Fees - Consultants Fees,10/07/2020,5437328,"2,400.00",Chrow Solutions Ltd
Children & Culture,Education Services,Other Strategic Functions,High Needs Academies & Free Schs,Independent Schools - SEN Top Up Funding,10/07/2020,5437336,"19,166.67",Transitional Care LTD
Children & Culture,Education Services,Other Strategic Functions,High Needs Academies & Free Schs,Independent Schools - SEN Top Up Funding,10/07/2020,5437336,"21,000.00",Transitional Care LTD
Children & Culture,Education Services,Other Strategic Functions,High Needs Academies & Free Schs,Independent Schools - SEN Top Up Funding,10/07/2020,5437336,"21,000.00",Transitional Care LTD
Children & Culture,Education Services,Other Strategic Functions,High Needs Academies & Free Schs,Independent Schools - SEN Top Up Funding,10/07/2020,5437336,"21,000.00",Transitional Care LTD
Children & Culture,Education Services,Other Strategic Functions,High Needs Academies & Free Schs,Independent Schools - SEN Top Up Funding,10/07/2020,5437336,"19,166.67",Transitional Care LTD
Children & Culture,Education Services,Other Strategic Functions,High Needs Academies & Free Schs,Independent Schools - SEN Top Up Funding,10/07/2020,5437336,"21,000.00",Transitional Care LTD
Children & Culture,Education Services,Other Strategic Functions,High Needs Academies & Free Schs,Independent Schools - SEN Top Up Funding,10/07/2020,5437336,"21,000.00",Transitional Care LTD
Children & Culture,Education Services,Other Strategic Functions,High Needs Academies & Free Schs,Independent Schools - SEN Top Up Funding,10/07/2020,5437336,"21,000.00",Transitional Care LTD
Children & Culture,Education Services,Other Strategic Functions,High Needs Academies & Free Schs,Independent Schools - SEN Top Up Funding,10/07/2020,5437336,"21,000.00",Transitional Care LTD
Children & Culture,Education Services,Other Strategic Functions,High Needs Academies & Free Schs,Independent Schools - SEN Top Up Funding,10/07/2020,5437337,"29,333.34",Transitional Care LTD
Children & Culture,Education Services,Other Strategic Functions,High Needs Academies & Free Schs,Independent Schools - SEN Top Up Funding,10/07/2020,5437337,"29,333.33",Transitional Care LTD
Children & Culture,Education Services,Other Strategic Functions,High Needs Academies & Free Schs,Independent Schools - SEN Top Up Funding,10/07/2020,5437337,"29,333.33",Transitional Care LTD
Children & Culture,Education Services,Other Strategic Functions,High Needs Academies & Free Schs,Independent Schools - SEN Top Up Funding,10/07/2020,5437337,"22,750.00",Transitional Care LTD
Children & Culture,Education Services,Other Strategic Functions,Student Admissions,Computing - Maint Agreements - Software,10/07/2020,5437340,"2,600.00",Intella Solutions Limited
Children & Culture,Education Services,Other Strategic Functions,Student Admissions,Computing - Maint Agreements - Software,10/07/2020,5437340,"3,300.00",Intella Solutions Limited
Children & Culture,Education Services,Other Strategic Functions,Student Admissions,Computing - Maint Agreements - Software,10/07/2020,5437340,"3,200.00",Intella Solutions Limited
Children & Culture,Education Services,Other Strategic Functions,Student Admissions,Computing - Maint Agreements - Software,10/07/2020,5437340,"3,500.00",Intella Solutions Limited
Children & Culture,Children's Social Care,Support Service and Management Costs,Sch. Meals A/c - Central Production Unit,Kitchen Supplies - Food and Beverages,10/07/2020,5437388,280.12,Prescott-Thomas LTD.
Children & Culture,Children's Social Care,Support Service and Management Costs,Schools Catering,Kitchen Supplies - Packaging,10/07/2020,5437431,609.53,Tri-Star Packaging Supplies LTD
Children & Culture,Children's Social Care,Support Service and Management Costs,Schools Catering,Kitchen Supplies - Packaging,10/07/2020,5437432,609.53,Tri-Star Packaging Supplies LTD
Children & Culture,Children's Social Care,Support Service and Management Costs,Schools Catering,Kitchen Supplies - Food and Beverages,10/07/2020,5437538,260.01,Thomas Ridley & Son Ltd
Children & Culture,Children's Social Care,Support Service and Management Costs,Schools Catering,Kitchen Supplies - Food and Beverages,10/07/2020,5437539,795.05,Thomas Ridley & Son Ltd
Children & Culture,Children's Social Care,Support Service and Management Costs,Schools Catering,Kitchen Supplies - Food and Beverages,10/07/2020,5437541,301.66,Thomas Ridley & Son Ltd
Children & Culture,Children's Social Care,Support Service and Management Costs,Schools Catering,Kitchen Supplies - Food and Beverages,10/07/2020,5437542,269.62,Thomas Ridley & Son Ltd
Children & Culture,Children's Social Care,Support Service and Management Costs,Sch. Meals A/c - Central Production Unit,Kitchen Supplies - Food and Beverages,10/07/2020,5437543,942.62,Thomas Ridley & Son Ltd
Children & Culture,Education Services,Other Strategic Functions,Special Education Needs DSG,Third Party Payments - Payments to Schools,10/07/2020,5437724,499,Unlocking Language Ltd
Children & Culture,Children's Social Care,Support Service and Management Costs,Schools Catering,Repairs and Maintenance - Responsive - General,10/07/2020,5438536,394,Lambourne Refrigeration
Children & Culture,Children's Social Care,Service Strategy,Child Care M & A,Services - Professional Fees - Legal Fees/Expenses,10/07/2020,5443031,350,Cambridge Employment Law
Children & Culture,Children's Social Care,Children Looked After,S23 Fam Pl In-Hse-Placed Home,Childrens Act Section 23 - Spec Pymnts Legal,10/07/2020,5444617,465,THE FAMILY LAW PRACTICE
Children & Culture,Children's Social Care,Children Looked After,S23 Fam Pl In-Hse-Placed Home,Childrens Act Section 23 - Spec Pymnts Legal,10/07/2020,5444618,413,THE FAMILY LAW PRACTICE
Children & Culture,Children's Social Care,Children Looked After,S23 Fam Pl In-Hse-Placed Home,Childrens Act Section 23 - Spec Pymnts Legal,10/07/2020,5444621,250,THE FAMILY LAW PRACTICE
Children & Culture,Children's Social Care,Children Looked After,S23 Fam Pl In-Hse-Placed Home,Childrens Act Section 23 - Spec Pymnts Legal,10/07/2020,5444622,300,THE FAMILY LAW PRACTICE
Children & Culture,Children's Social Care,Service Strategy,"FSP Sect 17 - Team 7		",Childrens Act Section 17 - Supp Accom/Hous Rents,10/07/2020,5444635,960,Apolonia Property Services (Exodus Housing)
Children & Culture,Children's Social Care,Children Looked After,S23 Fam Pl P&V-F/Care,Childrens Act Section 23 - Placement Fee,10/07/2020,5444665,"5,815.80",National Fostering Agency
Children & Culture,Education Services,Other Strategic Functions,SEN External Travel,Social Care - Day Care,10/07/2020,5444666,396.75,Carebridge Staffing Ltd
Children & Culture,Education Services,Other Strategic Functions,SEN External Travel,Social Care - Day Care,10/07/2020,5444667,396.75,Carebridge Staffing Ltd
Children & Culture,Education Services,Other Strategic Functions,SEN External Travel,Social Care - Day Care,10/07/2020,5444668,483,Carebridge Staffing Ltd
Children & Culture,Education Services,Other Strategic Functions,SEN External Travel,Social Care - Day Care,10/07/2020,5444669,483,Carebridge Staffing Ltd
Children & Culture,Education Services,Other Strategic Functions,SEN External Travel,Social Care - Day Care,10/07/2020,5444670,396.75,Carebridge Staffing Ltd
Children & Culture,Education Services,Other Strategic Functions,SEN External Travel,Social Care - Day Care,10/07/2020,5444671,396.75,Carebridge Staffing Ltd
Children & Culture,Education Services,Other Strategic Functions,SEN External Travel,Social Care - Day Care,10/07/2020,5444672,396.75,Carebridge Staffing Ltd
Children & Culture,Education Services,Other Strategic Functions,SEN External Travel,Social Care - Day Care,10/07/2020,5444673,396.7,Carebridge Staffing Ltd
Children & Culture,Education Services,Other Strategic Functions,SEN External Travel,Social Care - Day Care,10/07/2020,5444674,396.75,Carebridge Staffing Ltd
Children & Culture,Education Services,Other Strategic Functions,SEN External Travel,Social Care - Day Care,10/07/2020,5444675,483,Carebridge Staffing Ltd
Children & Culture,Education Services,Other Strategic Functions,SEN External Travel,Social Care - Day Care,10/07/2020,5444676,396.75,Carebridge Staffing Ltd
Children & Culture,Children's Social Care,Family Support Services,IPST S17 NRPF,Childrens Act Section 17 - Other Placements Bed & Breakfast,10/07/2020,5444701,"4,250.00",Finefair Management
Children & Culture,Children's Social Care,Family Support Services,IPST S17 NRPF,Childrens Act Section 17 - Other Placements Bed & Breakfast,10/07/2020,5444702,"2,550.00",Finefair Management
Children & Culture,Children's Social Care,Family Support Services,IPST S17 NRPF,Childrens Act Section 17 - Other Placements Bed & Breakfast,10/07/2020,5444709,"2,100.00",Finefair Management
Children & Culture,No Service Specified,No Division Specified,Capital-Minor Works (SC),Building Works - Main Works,10/07/2020,5444862,"142,769.78",ST Pauls Way Trust School
Children & Culture,Children's Social Care,Children Looked After,Virtual School PPG,Education & Training - Non Staff Tuition Fees,10/07/2020,5444894,700,Anchor Teaching Ltd
Children & Culture,Children's Social Care,Children Looked After,Virtual School PPG,Education & Training - Non Staff Tuition Fees,10/07/2020,5444895,700,Anchor Teaching Ltd
Children & Culture,Children's Social Care,Children Looked After,Virtual School PPG,Education & Training - Non Staff Tuition Fees,10/07/2020,5444896,700,Anchor Teaching Ltd
Children & Culture,Children's Social Care,Children Looked After,Virtual School PPG,Education & Training - Non Staff Tuition Fees,10/07/2020,5444897,700,Anchor Teaching Ltd
Children & Culture,Children's Social Care,Children Looked After,S23 Fam Pl P&V-F/Care,Childrens Act Section 23 - Placement Fee,10/07/2020,5444905,784,Swiis Foster Care Limited
Children & Culture,Children's Social Care,Support Service and Management Costs,Schools Catering,Kitchen Supplies - Food and Beverages,13/07/2020,5437546,864.13,Thomas Ridley & Son Ltd
Children & Culture,Children's Social Care,Support Service and Management Costs,Schools Catering,Kitchen Supplies - Food and Beverages,13/07/2020,5437548,343.03,Thomas Ridley & Son Ltd
Children & Culture,Children's Social Care,Support Service and Management Costs,Sch. Meals A/c - Central Production Unit,Kitchen Supplies - Food and Beverages,13/07/2020,5437551,547.79,Thomas Ridley & Son Ltd
Children & Culture,Children's Social Care,Support Service and Management Costs,Schools Catering,Kitchen Supplies - Food and Beverages,13/07/2020,5437554,312.4,Thomas Ridley & Son Ltd
Children & Culture,Children's Social Care,Support Service and Management Costs,Schools Catering,Kitchen Supplies - Food and Beverages,13/07/2020,5437557,662.31,Thomas Ridley & Son Ltd
Children & Culture,Children's Social Care,Support Service and Management Costs,Schools Catering,Kitchen Supplies - Food and Beverages,13/07/2020,5437560,338.17,Thomas Ridley & Son Ltd
Children & Culture,Children's Social Care,Support Service and Management Costs,Schools Catering,Kitchen Supplies - Food and Beverages,13/07/2020,5437564,375.65,Thomas Ridley & Son Ltd
Children & Culture,Children's Social Care,Support Service and Management Costs,Schools Catering,Kitchen Supplies - Food and Beverages,13/07/2020,5437571,"1,321.19",Thomas Ridley & Son Ltd
Children & Culture,Children's Social Care,Support Service and Management Costs,Schools Catering,Kitchen Supplies - Food and Beverages,13/07/2020,5437572,434.35,Thomas Ridley & Son Ltd
Children & Culture,Children's Social Care,Support Service and Management Costs,Schools Catering,Kitchen Supplies - Food and Beverages,13/07/2020,5437576,260.88,Thomas Ridley & Son Ltd
Children & Culture,Children's Social Care,Support Service and Management Costs,Schools Catering,Kitchen Supplies - Food and Beverages,13/07/2020,5437580,413.17,Thomas Ridley & Son Ltd
Children & Culture,Children's Social Care,Support Service and Management Costs,Schools Catering,Kitchen Supplies - Food and Beverages,13/07/2020,5437589,301.4,Prescott-Thomas LTD.
Children & Culture,Children's Social Care,Support Service and Management Costs,Schools Catering,Kitchen Supplies - Food and Beverages,13/07/2020,5437599,613.99,Prescott-Thomas LTD.
Children & Culture,Children's Social Care,Support Service and Management Costs,Schools Catering,Kitchen Supplies - Food and Beverages,13/07/2020,5437602,730.43,Prescott-Thomas LTD.
Children & Culture,Children's Social Care,Support Service and Management Costs,Schools Catering,Kitchen Supplies - Packaging,13/07/2020,5437693,362.36,Tri-Star Packaging Supplies LTD
Children & Culture,Cultural and Related Services,Open Spaces,Parks & Open Spaces Man&Admin,Payments to Private Contractors - Private Contractor,13/07/2020,5437702,"7,975.00",Friends of Tower Hamlets Cemetery Park
Children & Culture,Children's Social Care,Children Looked After,S23-Resi-P&V/OLA-Child Home,Childrens Act Section 23 - Placement Fee,13/07/2020,5437730,"8,815.65",Blossom Care Group Limited
Children & Culture,Cultural and Related Services,Open Spaces,Mile End Park,Repairs and Maintenance - Responsive - Drainage & Sewers,13/07/2020,5437739,810,J&L Coster (Drainage) Ltd
Children & Culture,Children's Social Care,Children Looked After,S23 Fam Pl P&V-F/Care,Childrens Act Section 23 - Placement Fee,13/07/2020,5437752,"3,044.40",Children First Fostering Agency LTD
Children & Culture,Children's Social Care,Children Looked After,S23 Fam Pl P&V-F/Care,Childrens Act Section 23 - Placement Fee,13/07/2020,5437753,"3,071.40",Children First Fostering Agency LTD
Children & Culture,Cultural and Related Services,Open Spaces,Mile End Park,Grounds Maintenance - Contract - Bedding,13/07/2020,5437762,"2,138.34",Amethyst Horticulture Ltd
Children & Culture,Children's Social Care,Support Service and Management Costs,Sch. Meals A/c - Central Production Unit,Kitchen Supplies - Food and Beverages,13/07/2020,5437786,899.56,Thomas Ridley & Son Ltd
Children & Culture,Children's Social Care,Support Service and Management Costs,Schools Catering,Kitchen Supplies - Food and Beverages,13/07/2020,5437791,330.96,Thomas Ridley & Son Ltd
Children & Culture,Children's Social Care,Support Service and Management Costs,Schools Catering,Kitchen Supplies - Food and Beverages,13/07/2020,5437792,868.64,Prescott-Thomas LTD.
Children & Culture,Children's Social Care,Support Service and Management Costs,Sch. Meals A/c - Central Production Unit,Kitchen Supplies - Food and Beverages,13/07/2020,5437801,406.29,Prescott-Thomas LTD.
Children & Culture,Education Services,Other Strategic Functions,C&C Covid19 Response,Repairs and Maintenance - Responsive - Security,13/07/2020,5438455,750,JC Coster (Metalworks) Ltd
Children & Culture,Children's Social Care,Children Looked After,S23-Other-Semi-Ind. Unit,Social Care - Day Care,13/07/2020,5438483,"1,534.65",Potton Services Ltd
Children & Culture,Children's Social Care,Children Looked After,S23-Other-Semi-Ind. Unit,Social Care - Day Care,13/07/2020,5438484,"1,217.40",Potton Services Ltd
Children & Culture,Children's Social Care,Children Looked After,S23-Other-Semi-Ind. Unit,Social Care - Day Care,13/07/2020,5438485,338.4,Potton Services Ltd
Children & Culture,Children's Social Care,Children Looked After,S23-Other-Semi-Ind. Unit,Social Care - Day Care,13/07/2020,5438486,"4,524.15",Potton Services Ltd
Children & Culture,Children's Social Care,Children Looked After,S23-Other-Semi-Ind. Unit,Social Care - Day Care,13/07/2020,5438487,277.8,Potton Services Ltd
Children & Culture,Children's Social Care,Children Looked After,S23 Fam Pl P&V-F/Care,Childrens Act Section 23 - Placement Fee,13/07/2020,5438488,"5,957.14",Fostering Innovations Ltd
Children & Culture,Children's Social Care,Children Looked After,S23 Fam Pl P&V-F/Care,Childrens Act Section 23 - Placement Fee,13/07/2020,5438489,"3,381.43",Fostering Innovations Ltd
Children & Culture,Children's Social Care,Children Looked After,S23 Fam Pl P&V-F/Care,Social Care - Day Care,13/07/2020,5438490,"3,313.80",Fostering Innovations Ltd
Children & Culture,Children's Social Care,Children Looked After,S23 Fam Pl P&V-F/Care,Social Care - Day Care,13/07/2020,5438491,"3,381.43",Fostering Innovations Ltd
Children & Culture,Children's Social Care,Children Looked After,S23 Fam Pl P&V-F/Care,Social Care - Day Care,13/07/2020,5438492,"3,313.80",Fostering Innovations Ltd
Children & Culture,Children's Social Care,Children Looked After,S23 Fam Pl P&V-F/Care,Childrens Act Section 23 - Placement Fee,13/07/2020,5438493,"3,381.43",Fostering Innovations Ltd
Children & Culture,Children's Social Care,Children Looked After,S23 Fam Pl P&V-F/Care,Childrens Act Section 23 - Placement Fee,13/07/2020,5438523,"3,257.14",Five Rivers Childcare Limited
Children & Culture,Children's Social Care,Children Looked After,S23 Fam Pl P&V-F/Care,Childrens Act Section 23 - Placement Fee,13/07/2020,5438524,"3,365.71",Five Rivers Childcare Limited
Children & Culture,Children's Social Care,Children Looked After,S23 Fam Pl P&V-F/Care,Childrens Act Section 23 - Placement Fee,13/07/2020,5438525,"3,257.14",Five Rivers Childcare Limited
Children & Culture,Children's Social Care,Children Looked After,S23 Fam Pl P&V-F/Care,Childrens Act Section 23 - Placement Fee,13/07/2020,5438526,"3,159.43",Five Rivers Childcare Limited
Children & Culture,Children's Social Care,Children Looked After,S23 Fam Pl P&V-F/Care,Childrens Act Section 23 - Placement Fee,13/07/2020,5438527,"3,264.74",Five Rivers Childcare Limited
Children & Culture,Children's Social Care,Children Looked After,S23 Fam Pl P&V-F/Care,Childrens Act Section 23 - Placement Fee,13/07/2020,5438528,"3,159.43",Five Rivers Childcare Limited
Children & Culture,Cultural and Related Services,Open Spaces,Parks & Open Spaces Man&Admin,Payments to Private Contractors - Private Contractor,13/07/2020,5438544,"7,750.00",Mudchute Association
Children & Culture,Children's Social Care,Support Service and Management Costs,Schools Catering,Kitchen Supplies - Food and Beverages,13/07/2020,5438567,856.75,Thomas Ridley & Son Ltd
Children & Culture,Children's Social Care,Support Service and Management Costs,Schools Catering,Kitchen Supplies - Food and Beverages,13/07/2020,5438581,299.85,Prescott-Thomas LTD.
Children & Culture,Children's Social Care,Services for young people,Youth Service Management,Education & Training - Non Staff Tuition Fees,13/07/2020,5438591,"58,800.00",Half Moon Young People's Theatre
Children & Culture,Cultural and Related Services,Open Spaces,Mile End Park,Repairs and Maintenance - Responsive - Repair & Maintenance,13/07/2020,5438595,330,JC Coster (Metalworks) Ltd
Children & Culture,Children's Social Care,Children Looked After,S23-Other-Semi-Ind. Unit,Childrens Act Section 23 - Placement Fee,13/07/2020,5438602,"3,955.71",Alpha Care Service Ltd
Children & Culture,Children's Social Care,Children Looked After,S23-Other-Semi-Ind. Unit,Social Care - Day Care,13/07/2020,5438616,357,Potton Services Ltd
Children & Culture,Children's Social Care,Children Looked After,S23-Other-Semi-Ind. Unit,Social Care - Day Care,13/07/2020,5438618,541.65,Potton Services Ltd
Children & Culture,Children's Social Care,Support Service and Management Costs,Schools Catering,Kitchen Supplies - Food and Beverages,13/07/2020,5438728,472.94,Thomas Ridley & Son Ltd
Children & Culture,Children's Social Care,Support Service and Management Costs,Schools Catering,Kitchen Supplies - Food and Beverages,13/07/2020,5438729,256.88,Thomas Ridley & Son Ltd
Children & Culture,Children's Social Care,Support Service and Management Costs,Schools Catering,Kitchen Supplies - Food and Beverages,13/07/2020,5438741,593.45,Prescott-Thomas LTD.
Children & Culture,Children's Social Care,Support Service and Management Costs,Schools Catering,Kitchen Supplies - Food and Beverages,13/07/2020,5438743,285.02,Prescott-Thomas LTD.
Children & Culture,No Service Specified,No Division Specified,Capital-Minor Works (SC),Other External Fees - Consultants Fees,13/07/2020,5438861,"1,000.00",Alan Baxter & Associates LLP
Children & Culture,Children's Social Care,Children Looked After,S23 Fam Pl P&V-F/Care,Childrens Act Section 23 - Placement Fee,13/07/2020,5438894,"6,000.00",Fostering Innovations Ltd
Children & Culture,Children's Social Care,Children Looked After,S23 Family Placements P&V,Childrens Act Section 23 - Placement Fee,13/07/2020,5438945,"3,427.50",Ryancare Fostering Ltd
Children & Culture,Children's Social Care,Children Looked After,S23 Family Placements P&V,Childrens Act Section 23 - Placement Fee,13/07/2020,5438946,"4,500.00",Ryancare Fostering Ltd
Children & Culture,Children's Social Care,Children Looked After,S23 Family Placements P&V,Childrens Act Section 23 - Placement Fee,13/07/2020,5438947,"3,256.20",Ryancare Fostering Ltd
Children & Culture,Children's Social Care,Children Looked After,S23 Fam Pl P&V-F/Care,Childrens Act Section 23 - Placement Fee,13/07/2020,5438948,"3,750.00",Ryancare Fostering Ltd
Children & Culture,Children's Social Care,Children Looked After,S23-Other-Semi-Ind. Unit,Childrens Act Section 23 - Placement Fee,13/07/2020,5438955,839.29,Jordan Xavier LTD
Children & Culture,Children's Social Care,Support Service and Management Costs,Schools Catering,Kitchen Supplies - Food and Beverages,13/07/2020,5438992,413.09,Thomas Ridley & Son Ltd
Children & Culture,Children's Social Care,Support Service and Management Costs,Schools Catering,Kitchen Supplies - Food and Beverages,13/07/2020,5438995,389.4,Thomas Ridley & Son Ltd
Children & Culture,Children's Social Care,Support Service and Management Costs,Sch. Meals A/c - Central Production Unit,Kitchen Supplies - Food and Beverages,13/07/2020,5438997,642.5,Thomas Ridley & Son Ltd
Children & Culture,Children's Social Care,Support Service and Management Costs,Schools Catering,Kitchen Supplies - Food and Beverages,13/07/2020,5439002,256.88,Thomas Ridley & Son Ltd
Children & Culture,No Service Specified,No Division Specified,Capital-Minor Works (SC),Building Works - Asbestos- Surveys & Removal,13/07/2020,5439072,975,Environtec Ltd
Children & Culture,Children's Social Care,Support Service and Management Costs,Schools Catering,Kitchen Supplies - Food and Beverages,13/07/2020,5439396,280.43,Thomas Ridley & Son Ltd
Children & Culture,Children's Social Care,Support Service and Management Costs,Schools Catering,Kitchen Supplies - Food and Beverages,13/07/2020,5439397,375.24,Thomas Ridley & Son Ltd
Children & Culture,Children's Social Care,Children Looked After,S23 Fam Pl Fost/Adop Advert,Staff Advertising,13/07/2020,5439411,"7,500.00",Natives Online Ltd
Children & Culture,Children's Social Care,Support Service and Management Costs,Sch. Meals A/c - Malmesbury,Repairs and Maintenance - Responsive - General,13/07/2020,5440068,892,Lambourne Refrigeration
Children & Culture,Children's Social Care,Support Service and Management Costs,Schools Catering,Repairs and Maintenance - Responsive - General,13/07/2020,5440294,428,Lambourne Refrigeration
Children & Culture,Education Services,Secondary Schools,PFI Hldg Account-Grouped Schoo,Repairs and Maintenance - Responsive - Repair & Maintenance,13/07/2020,5442150,985.29,Tower Hamlets Schools LTD
Children & Culture,Education Services,Secondary Schools,PFI Hldg Account-Grouped Schoo,Repairs and Maintenance - Responsive - Repair & Maintenance,13/07/2020,5442151,"1,503.39",Tower Hamlets Schools LTD
Children & Culture,No Service Specified,No Division Specified,Capital-Minor Works (SC),Building Works - Main Works,13/07/2020,5442152,"1,337.50",Tower Hamlets Schools LTD
Children & Culture,Education Services,Secondary Schools,PFI Hldg Account-Grouped Schoo,Repairs and Maintenance - Responsive - Buildings,13/07/2020,5442154,680,Tower Hamlets Schools LTD
Children & Culture,Education Services,Secondary Schools,PFI Hldg Account-Grouped Schoo,Repairs and Maintenance - Responsive - Buildings,13/07/2020,5442155,392.95,Tower Hamlets Schools LTD
Children & Culture,Education Services,Secondary Schools,PFI Hldg Account-Grouped Schoo,Repairs and Maintenance - Responsive - Buildings,13/07/2020,5442156,338.76,Tower Hamlets Schools LTD
Children & Culture,Education Services,Secondary Schools,PFI Hldg Account-Grouped Schoo,Repairs and Maintenance - Responsive - Buildings,13/07/2020,5442157,"7,273.88",Tower Hamlets Schools LTD
Children & Culture,Education Services,Secondary Schools,PFI Hldg Account-Grouped Schoo,Repairs and Maintenance - Responsive - Buildings,13/07/2020,5442158,"39,055.00",Tower Hamlets Schools LTD
Children & Culture,Education Services,Secondary Schools,PFI Hldg Account-Grouped Schoo,Repairs and Maintenance - Responsive - Buildings,13/07/2020,5442159,"2,461.54",Tower Hamlets Schools LTD
Children & Culture,Children's Social Care,Support Service and Management Costs,Schools Catering,Repairs and Maintenance - Responsive - General,13/07/2020,5442165,275,Lambourne Refrigeration
Children & Culture,Children's Social Care,Children Looked After,LCS/Allowances-Accom,Leaving Care Financial Assistance - Supp Accom/Hous Rents,13/07/2020,5443081,"2,571.42",Alpha Care Service Ltd
Children & Culture,Children's Social Care,Children Looked After,LCS/Allowances-Accom,Leaving Care Financial Assistance - Supported Living,13/07/2020,5443081,"1,285.71",Alpha Care Service Ltd
Children & Culture,Children's Social Care,Children Looked After,Virtual School PPG,Agency Staff - Associations,13/07/2020,5443173,"1,274.85",Academics ltd
Children & Culture,Children's Social Care,Children Looked After,Virtual School PPG,Agency Staff - Associations,13/07/2020,5443174,509.88,Academics ltd
Children & Culture,Children's Social Care,Children Looked After,Virtual School PPG,Agency Staff - Associations,13/07/2020,5443175,"1,019.88",Academics ltd
Children & Culture,Children's Social Care,Children Looked After,Virtual School PPG,Agency Staff - Associations,13/07/2020,5443176,764.91,Academics ltd
Children & Culture,Children's Social Care,Children Looked After,Virtual School PPG,Agency Staff - Associations,13/07/2020,5443177,254.97,Academics ltd
Children & Culture,Children's Social Care,Children Looked After,Virtual School PPG,Agency Staff - Associations,13/07/2020,5443178,"1,019.88",Academics ltd
Children & Culture,Children's Social Care,Children Looked After,Virtual School PPG,Agency Staff - Associations,13/07/2020,5443179,"1,019.88",Academics ltd
Children & Culture,Children's Social Care,Children Looked After,S23 Fam Pl In-Hse-F&F F/Care,Childrens Act Section 23 - All Contact Expenses,13/07/2020,5443360,304,HOPE Superjobs Ltd
Children & Culture,Children's Social Care,Children Looked After,S23 Fam Pl In-Hse-F&F F/Care,Childrens Act Section 23 - All Contact Expenses,13/07/2020,5443685,354,HOPE Superjobs Ltd
Children & Culture,Education Services,Other Strategic Functions,SEN External Travel,Social Care - Day Care,13/07/2020,5444677,396.75,Carebridge Staffing Ltd
Children & Culture,Children's Social Care,Family Support Services,IPST S17 NRPF,Childrens Act Section 17 - Other Placements Bed & Breakfast,13/07/2020,5444703,"2,400.00",Finefair Management
Children & Culture,Children's Social Care,Family Support Services,IPST S17 NRPF,Childrens Act Section 17 - Other Placements Bed & Breakfast,13/07/2020,5444704,"2,550.00",Finefair Management
Children & Culture,Children's Social Care,Family Support Services,IPST S17 NRPF,Childrens Act Section 17 - Other Placements Bed & Breakfast,13/07/2020,5444705,"1,500.00",Finefair Management
Children & Culture,Children's Social Care,Family Support Services,IPST S17 NRPF,Childrens Act Section 17 - Other Placements Bed & Breakfast,13/07/2020,5444706,"1,500.00",Finefair Management
Children & Culture,Children's Social Care,Family Support Services,IPST S17 NRPF,Childrens Act Section 17 - Other Placements Bed & Breakfast,13/07/2020,5444707,"1,350.00",Finefair Management
Children & Culture,Children's Social Care,Family Support Services,IPST S17 NRPF,Childrens Act Section 17 - Other Placements Bed & Breakfast,13/07/2020,5444708,"1,200.00",Finefair Management
Children & Culture,Education Services,Early Years,SSEYCG Two Year Old Pilot,Third Party Payments - Voluntary Associations,13/07/2020,5445112,"8,872.50",Jingle Jungle Nursery
Children & Culture,Education Services,Early Years,SSEYCG Two Year Old Pilot,Third Party Payments - Voluntary Associations,13/07/2020,5445113,585,MAGIC ROUNDABOUT NURSERIES LTD
Children & Culture,Children's Social Care,Family Support Services,CNN Pool: Children Direct Paym,Social Care - Direct Payments,13/07/2020,5445654,"21,252.00",DH TOWER HAMLETS
Children & Culture,No Service Specified,No Division Specified,Capital-Minor Works (SC),Building Works - Main Works,20/07/2020,5432264,290,J&L Coster (Drainage) Ltd
Children & Culture,No Service Specified,No Division Specified,Capital-Minor Works (SC),Building Works - Main Works,20/07/2020,5433045,"2,950.00",J&L Coster (Drainage) Ltd
Children & Culture,Children's Social Care,Children Looked After,S23-Other-Semi-Ind. Unit,Childrens Act Section 23 - Interpreting/Translation,20/07/2020,5434743,957.95,Oncall Interpreters LTD
Children & Culture,Children's Social Care,Children Looked After,Leaving Care-UASC,Leaving Care Financial Assistance - Supported Living,20/07/2020,5434745,"12,847.93",Youth reality homes
Children & Culture,Cultural and Related Services,Open Spaces,Victoria Park,Grounds Maintenance - Contract - Bedding,20/07/2020,5437763,"3,023.70",Amethyst Horticulture Ltd
Children & Culture,Education Services,Early Years,John Smith CC,Subscriptions - Associations,20/07/2020,5438458,400,Spitalfields City Farm
Children & Culture,Cultural and Related Services,Open Spaces,Victoria Park,Grounds Maintenance - Contract - Bedding,20/07/2020,5438477,"1,659.10",Boverton nurseries LTD
Children & Culture,Cultural and Related Services,Open Spaces,Victoria Park,Repairs and Maintenance - Responsive - Repair & Maintenance,20/07/2020,5439050,400,JC Coster (Metalworks) Ltd
Children & Culture,Children's Social Care,Support Service and Management Costs,Schools Catering,Kitchen Supplies - Food and Beverages,20/07/2020,5439114,692.22,Thomas Ridley & Son Ltd
Children & Culture,Children's Social Care,Support Service and Management Costs,Schools Catering,Kitchen Supplies - Food and Beverages,20/07/2020,5439118,509.99,Thomas Ridley & Son Ltd
Children & Culture,Children's Social Care,Support Service and Management Costs,Schools Catering,Kitchen Supplies - Food and Beverages,20/07/2020,5439122,325.17,Thomas Ridley & Son Ltd
Children & Culture,Children's Social Care,Support Service and Management Costs,Schools Catering,Kitchen Supplies - Food and Beverages,20/07/2020,5439124,313.37,Thomas Ridley & Son Ltd
Children & Culture,Children's Social Care,Support Service and Management Costs,Schools Catering,Kitchen Supplies - Food and Beverages,20/07/2020,5439133,977.97,Thomas Ridley & Son Ltd
Children & Culture,Children's Social Care,Support Service and Management Costs,Schools Catering,Kitchen Supplies - Food and Beverages,20/07/2020,5439134,424.98,Thomas Ridley & Son Ltd
Children & Culture,Children's Social Care,Support Service and Management Costs,Schools Catering,Kitchen Supplies - Food and Beverages,20/07/2020,5439135,"1,136.77",Thomas Ridley & Son Ltd
Children & Culture,Children's Social Care,Support Service and Management Costs,Schools Catering,Kitchen Supplies - Food and Beverages,20/07/2020,5439152,301.4,Prescott-Thomas LTD.
Children & Culture,Children's Social Care,Support Service and Management Costs,Schools Catering,Kitchen Supplies - Food and Beverages,20/07/2020,5439164,730.43,Prescott-Thomas LTD.
Children & Culture,Children's Social Care,Support Service and Management Costs,Schools Catering,Kitchen Supplies - Food and Beverages,20/07/2020,5439165,560.78,Prescott-Thomas LTD.
Children & Culture,Children's Social Care,Support Service and Management Costs,Sch. Meals A/c - Central Production Unit,Kitchen Supplies - Food and Beverages,20/07/2020,5439166,368.32,Prescott-Thomas LTD.
Children & Culture,Children's Social Care,Support Service and Management Costs,Building Cleaning,Materials - Cleaning Materials,20/07/2020,5439333,644.64,The Maintenance Supply Co Ltd
Children & Culture,Children's Social Care,Children Looked After,S23-Other-Semi-Ind. Unit,Social Care - Day Care,20/07/2020,5439356,"5,409.93",Potton Services Ltd
Children & Culture,Children's Social Care,Children Looked After,S23-Other-Semi-Ind. Unit,Social Care - Day Care,20/07/2020,5439357,615.3,Potton Services Ltd
Children & Culture,Children's Social Care,Support Service and Management Costs,Schools Catering,Kitchen Supplies - Food and Beverages,20/07/2020,5439400,337.67,Thomas Ridley & Son Ltd
Children & Culture,Children's Social Care,Support Service and Management Costs,Sch. Meals A/c - Central Production Unit,Kitchen Supplies - Food and Beverages,20/07/2020,5439405,875.97,Thomas Ridley & Son Ltd
Children & Culture,Children's Social Care,Support Service and Management Costs,Schools Catering,Kitchen Supplies - Food and Beverages,20/07/2020,5439412,847.56,Prescott-Thomas LTD.
Children & Culture,Children's Social Care,Support Service and Management Costs,Sch. Meals A/c - Central Production Unit,Kitchen Supplies - Food and Beverages,20/07/2020,5439429,411.96,Prescott-Thomas LTD.
Children & Culture,Education Services,Other Strategic Functions,C&C Covid19 Response,Repairs and Maintenance - Responsive - Security Fees,20/07/2020,5440071,816.84,A P Security (North) LTD
Children & Culture,No Service Specified,No Division Specified,Capital-Minor Works (SC),Building Works - Asbestos- Surveys & Removal,20/07/2020,5440253,"2,700.00",Environtec Ltd
Children & Culture,No Service Specified,No Division Specified,Capital-Minor Works (SC),Building Works - Main Works,20/07/2020,5440282,"3,291.07",Prism UK Medical Ltd
Children & Culture,Cultural and Related Services,Recreation & Sport,Com Services Asst Director/Adm,Services - Professional Fees - Financial Services Fees,20/07/2020,5440434,450,Chief Cultural Leisure Off. Ass
Children & Culture,Children's Social Care,Children Looked After,LCS/Allowances-Accom,Leaving Care Financial Assistance - Supp Accom/Hous Rents,20/07/2020,5440448,"4,457.14",Patience is a Virtue
Children & Culture,Education Services,Other Strategic Functions,High Needs Out Of Borough Further Education Colleges,Third Party Payments - SEN Top Up Funding,20/07/2020,5442966,"16,961.86",Newham College of Further Education
Children & Culture,Highways and Transport Services,Management and Support Services,Contract Services M & A,Kitchen Supplies - Catering Equipment,20/07/2020,5443076,"2,700.00",W V Howe LTD
Children & Culture,Highways and Transport Services,Management and Support Services,Contract Services M & A,Kitchen Supplies - Catering Equipment,20/07/2020,5443076,786.24,W V Howe LTD
Children & Culture,Highways and Transport Services,Management and Support Services,Contract Services M & A,Kitchen Supplies - Catering Equipment,20/07/2020,5443077,"2,371.20",W V Howe LTD
Children & Culture,Education Services,Other Strategic Functions,High Needs Other Boroughs,Third Party Payments - SEN Top Up Funding,20/07/2020,5443310,"64,675.32",St Johns School
Children & Culture,Children's Social Care,Children Looked After,Leaving Care-UASC,Leaving Care Financial Assistance - Supp Accom/Hous Rents,20/07/2020,5443593,"1,038.60",HAMLETTS LTD
Children & Culture,Children's Social Care,Children Looked After,Leaving Care-UASC,Leaving Care Financial Assistance - Supp Accom/Hous Rents,20/07/2020,5443594,"1,038.60",HAMLETTS LTD
Children & Culture,Children's Social Care,Children Looked After,Leaving Care-UASC,Leaving Care Financial Assistance - Supp Accom/Hous Rents,20/07/2020,5443595,998.7,HAMLETTS LTD
Children & Culture,Children's Social Care,Children Looked After,Leaving Care-UASC,Leaving Care Financial Assistance - Supp Accom/Hous Rents,20/07/2020,5443596,998.7,HAMLETTS LTD
Children & Culture,Children's Social Care,Children Looked After,Leaving Care-UASC,Leaving Care Financial Assistance - Supp Accom/Hous Rents,20/07/2020,5443597,998.7,HAMLETTS LTD
Children & Culture,Children's Social Care,Children Looked After,Leaving Care-UASC,Leaving Care Financial Assistance - Supp Accom/Hous Rents,20/07/2020,5443598,998.7,HAMLETTS LTD
Children & Culture,Children's Social Care,Children Looked After,Leaving Care-UASC,Leaving Care Financial Assistance - Supp Accom/Hous Rents,20/07/2020,5443599,998.7,HAMLETTS LTD
Children & Culture,Children's Social Care,Children Looked After,Leaving Care-UASC,Leaving Care Financial Assistance - Supp Accom/Hous Rents,20/07/2020,5443600,918.9,HAMLETTS LTD
Children & Culture,Children's Social Care,Children Looked After,Leaving Care-UASC,Leaving Care Financial Assistance - Supp Accom/Hous Rents,20/07/2020,5443602,"1,038.60",HAMLETTS LTD
Children & Culture,Children's Social Care,Children Looked After,Leaving Care-UASC,Leaving Care Financial Assistance - Supp Accom/Hous Rents,20/07/2020,5443603,918.9,HAMLETTS LTD
Children & Culture,Children's Social Care,Support Service and Management Costs,Schools Catering,Kitchen Supplies - Food and Beverages,20/07/2020,5445046,384.38,Prescott-Thomas LTD.
Children & Culture,Children's Social Care,Support Service and Management Costs,Schools Catering,Kitchen Supplies - Food and Beverages,20/07/2020,5445060,251.23,Prescott-Thomas LTD.
Children & Culture,Children's Social Care,Support Service and Management Costs,Schools Catering,Kitchen Supplies - Food and Beverages,20/07/2020,5445067,305.75,Prescott-Thomas LTD.
Children & Culture,Children's Social Care,Support Service and Management Costs,Schools Catering,Kitchen Supplies - Food and Beverages,20/07/2020,5445070,261.05,Prescott-Thomas LTD.
Children & Culture,Children's Social Care,Support Service and Management Costs,Schools Catering,Kitchen Supplies - Food and Beverages,20/07/2020,5445084,263.13,Prescott-Thomas LTD.
Children & Culture,Children's Social Care,Support Service and Management Costs,Schools Catering,Kitchen Supplies - Food and Beverages,20/07/2020,5445085,253.75,Prescott-Thomas LTD.
Children & Culture,Cultural and Related Services,Open Spaces,Mile End Park,Grounds Maintenance - Contract - Horticultural Maintenance,20/07/2020,5445790,537.3,Rigby Taylor Ltd
Children & Culture,Cultural and Related Services,Open Spaces,Mile End Park,Grounds Maintenance - Contract - Horticultural Maintenance,20/07/2020,5445791,539.71,Rigby Taylor Ltd
Children & Culture,Children's Social Care,Children Looked After,Leaving Care-UASC,Leaving Care Financial Assistance - Supp Accom/Hous Rents,20/07/2020,5445876,727.02,HAMLETTS LTD
Children & Culture,Children's Social Care,Children Looked After,Leaving Care-UASC,Leaving Care Financial Assistance - Supp Accom/Hous Rents,20/07/2020,5445877,553.92,HAMLETTS LTD
Children & Culture,Children's Social Care,Commissioning and Social Work,Advice and Assessment Section 17,Childrens Act Section 17 - Other Placements Bed & Breakfast,20/07/2020,5445885,"1,190.00",Finefair Management
Children & Culture,Education Services,Other Strategic Functions,SEN External Travel,Non Staff Transport Costs - Reimbursement,20/07/2020,5446146,"43,930.00",Lindel Services LTD - T/A Fox Transport
Children & Culture,Cultural and Related Services,Open Spaces,Mile End Park,Grounds Maintenance - Contract - Horticultural Maintenance,20/07/2020,5446150,685,Rigby Taylor Ltd
Children & Culture,Children's Social Care,Children Looked After,S23 Fam Pl P&V-F/Care,Childrens Act Section 23 - All Contact Expenses,20/07/2020,5446151,560,Toucan Nursery
Children & Culture,Children's Social Care,Children Looked After,S23 Fam Pl P&V-F/Care,Childrens Act Section 23 - All Contact Expenses,20/07/2020,5446152,560,Toucan Nursery
Children & Culture,Children's Social Care,Children Looked After,S23 Fam Pl P&V-F/Care,Childrens Act Section 23 - All Contact Expenses,20/07/2020,5446153,510,Toucan Nursery
Children & Culture,Children's Social Care,Service Strategy,FSP Sect 17 - Team 9,Childrens Act Section 17 - Expert Assessmt/Witness Costs,20/07/2020,5446155,501,E4 Law Limited T/A Lextox
Children & Culture,Children's Social Care,Children Looked After,S23-Other-Semi-Ind. Unit,Childrens Act Section 23 - Placement Fee,20/07/2020,5446165,"4,625.18",Youth reality homes
Children & Culture,Children's Social Care,Children Looked After,S23-Other-Semi-Ind. Unit,Childrens Act Section 23 - Placement Fee,20/07/2020,5446169,"1,542.86",Explore Independence Ltd
Children & Culture,Children's Social Care,Support Service and Management Costs,Schools Catering,Repairs and Maintenance - Responsive - General,20/07/2020,5446190,296,Lambourne Refrigeration
Children & Culture,Children's Social Care,Support Service and Management Costs,Sch. Meals A/c - Central Production Unit,Kitchen Supplies - Food and Beverages,20/07/2020,5446231,261.4,Prescott-Thomas LTD.
Children & Culture,Children's Social Care,Support Service and Management Costs,Sch. Meals A/c - Central Production Unit,Kitchen Supplies - Food and Beverages,20/07/2020,5446232,307.6,Prescott-Thomas LTD.
Children & Culture,Education Services,Other Strategic Functions,Pupil & Student Services GF,Non Staff Transport Costs - Tfl Concessionary fares,20/07/2020,5446261,"2,103.70",Oyster Sales Service
Children & Culture,Children's Social Care,Support Service and Management Costs,Schools Catering,Kitchen Supplies - Food and Beverages,20/07/2020,5446278,521.63,William White Meats Ltd
Children & Culture,Children's Social Care,Support Service and Management Costs,Swanlea,Kitchen Supplies - Food and Beverages,20/07/2020,5446279,921.48,William White Meats Ltd
Children & Culture,Children's Social Care,Support Service and Management Costs,Sch. Meals A/c - Central Production Unit,Kitchen Supplies - Food and Beverages,20/07/2020,5446283,"1,340.77",William White Meats Ltd
Children & Culture,Children's Social Care,Support Service and Management Costs,Schools Catering,Kitchen Supplies - Food and Beverages,20/07/2020,5446285,486.49,William White Meats Ltd
Children & Culture,Children's Social Care,Support Service and Management Costs,Schools Catering,Kitchen Supplies - Food and Beverages,20/07/2020,5446288,289.25,William White Meats Ltd
Children & Culture,Children's Social Care,Children Looked After,S23-Resi-P&V/OLA-Boarding Sch,Childrens Act Section 23 - Placement Fee,20/07/2020,5446336,"70,355.00",Coxlease school
Children & Culture,Children's Social Care,Commissioning and Social Work,Advice and Assessment Section 17,Childrens Act Section 17 - Other Placements Bed & Breakfast,20/07/2020,5446375,425,Finefair Management
Children & Culture,Education Services,Other Strategic Functions,Music Trading Account,Third Party Payments - Voluntary Associations,20/07/2020,5446380,625,Drake Music
Children & Culture,Children's Social Care,Family Support Services,CNN Pool: Children Direct Paym,Social Care - Direct Payments,20/07/2020,5446440,"1,590.00",DH TOWER HAMLETS
Children & Culture,Education Services,Other Strategic Functions,Alternative Provision,Third Party Payments - Payments to Schools,20/07/2020,5446444,"3,000.00",BISHOP CHALLONER BOYS SCHOOL
Children & Culture,Education Services,Other Strategic Functions,Alternative Provision,Third Party Payments - Payments to Schools,20/07/2020,5446446,"3,000.00",Canary Wharf College
Children & Culture,Education Services,Other Strategic Functions,Alternative Provision,Third Party Payments - Payments to Schools,20/07/2020,5446447,"3,000.00",George Green School
Children & Culture,Education Services,Other Strategic Functions,Alternative Provision,Third Party Payments - Payments to Schools,20/07/2020,5446448,"3,000.00",Mulberry Academy Shoreditch
Children & Culture,Children's Social Care,Children Looked After,S23 Fam Pl P&V-F/Care,Childrens Act Section 23 - All Contact Expenses,20/07/2020,5446468,655,Toucan Nursery
Children & Culture,Children's Social Care,Children Looked After,S23 Fam Pl P&V-F/Care,Childrens Act Section 23 - All Contact Expenses,20/07/2020,5446469,560,Toucan Nursery
Children & Culture,Children's Social Care,Children Looked After,S23 Fam Pl P&V-F/Care,Childrens Act Section 23 - All Contact Expenses,20/07/2020,5446470,560,Toucan Nursery
Children & Culture,Children's Social Care,Children Looked After,S23 Fam Pl P&V-F/Care,Childrens Act Section 23 - All Contact Expenses,20/07/2020,5446471,560,Toucan Nursery
Children & Culture,Children's Social Care,Children Looked After,S23 Fam Pl P&V-F/Care,Childrens Act Section 23 - Placement Fee,20/07/2020,5446501,784,Swiis Foster Care Limited
Children & Culture,Education Services,Other Strategic Functions,Special Education Needs DSG,Third Party Payments - Payments to Schools,20/07/2020,5446644,"7,373.57",Bryn Melyn Care Ltd
Children & Culture,Children's Social Care,Children Looked After,S23-Resi-P&V/OLA-Child Home,Childrens Act Section 23 - Placement Fee,20/07/2020,5446644,"17,205.00",Bryn Melyn Care Ltd
Children & Culture,Children's Social Care,Children's and Young People's Safety,CLA Reviewing Service,Non Staff Transport Costs - Reimbursement,20/07/2020,5446760,250.3,RSP Rail Travel (Rail Settlement Plan)
Children & Culture,Education Services,Other Strategic Functions,Special Education Needs DSG,Third Party Payments - Payments to Schools,22/07/2020,5437725,499,Unlocking Language Ltd
Children & Culture,Children's Social Care,Children Looked After,S23-Other-Semi-Ind. Unit,Childrens Act Section 23 - Placement Fee,22/07/2020,5439324,"1,714.14",Alpha Care Service Ltd
Children & Culture,Cultural and Related Services,Open Spaces,Mile End Park,Repairs and Maintenance - Responsive - Repair & Maintenance,22/07/2020,5440010,"3,340.00",JC Coster (Metalworks) Ltd
Children & Culture,Children's Social Care,Support Service and Management Costs,Sch. Meals A/c - Central Production Unit,Kitchen Supplies - Food and Beverages,22/07/2020,5440108,875.97,Thomas Ridley & Son Ltd
Children & Culture,Children's Social Care,Support Service and Management Costs,Schools Catering,Kitchen Supplies - Food and Beverages,22/07/2020,5440114,"1,195.19",Thomas Ridley & Son Ltd
Children & Culture,Children's Social Care,Support Service and Management Costs,Schools Catering,Kitchen Supplies - Food and Beverages,22/07/2020,5440126,311.67,Prescott-Thomas LTD.
Children & Culture,Cultural and Related Services,Open Spaces,Mile End Park,Repairs and Maintenance - Responsive - Repair & Maintenance,22/07/2020,5440239,"1,400.00",JC Coster (Metalworks) Ltd
Children & Culture,Cultural and Related Services,Open Spaces,Mile End Park,Repairs and Maintenance - Responsive - Drainage & Sewers,22/07/2020,5440279,"1,110.00",J&L Coster (Drainage) Ltd
Children & Culture,Children's Social Care,Support Service and Management Costs,Schools Catering,Kitchen Supplies - Food and Beverages,22/07/2020,5440309,434.2,Thomas Ridley & Son Ltd
Children & Culture,Children's Social Care,Support Service and Management Costs,Schools Catering,Kitchen Supplies - Food and Beverages,22/07/2020,5440311,279.11,Thomas Ridley & Son Ltd
Children & Culture,Children's Social Care,Support Service and Management Costs,Schools Catering,Kitchen Supplies - Food and Beverages,22/07/2020,5440319,290.75,Thomas Ridley & Son Ltd
Children & Culture,Children's Social Care,Support Service and Management Costs,Schools Catering,Kitchen Supplies - Food and Beverages,22/07/2020,5440320,333.03,Thomas Ridley & Son Ltd
Children & Culture,Children's Social Care,Support Service and Management Costs,Schools Catering,Kitchen Supplies - Food and Beverages,22/07/2020,5440321,776.23,Thomas Ridley & Son Ltd
Children & Culture,Children's Social Care,Support Service and Management Costs,Schools Catering,Kitchen Supplies - Food and Beverages,22/07/2020,5440324,331.84,Thomas Ridley & Son Ltd
Children & Culture,Children's Social Care,Support Service and Management Costs,Schools Catering,Kitchen Supplies - Food and Beverages,22/07/2020,5440328,304.57,Prescott-Thomas LTD.
Children & Culture,Children's Social Care,Support Service and Management Costs,Schools Catering,Kitchen Supplies - Food and Beverages,22/07/2020,5440340,667.43,Prescott-Thomas LTD.
Children & Culture,Children's Social Care,Children Looked After,S23 Fam Pl P&V-F/Care,Medical Requisites,22/07/2020,5440686,"3,407.10",Affinity Fostering Services Ltd
Children & Culture,Children's Social Care,Children Looked After,S23 Fam Pl P&V-F/Care,Childrens Act Section 23 - Placement Fee,22/07/2020,5440687,"3,407.10",Affinity Fostering Services Ltd
Children & Culture,Children's Social Care,Children Looked After,S23 Fam Pl P&V-F/Care,Childrens Act Section 23 - Placement Fee,22/07/2020,5440688,"3,235.80",Affinity Fostering Services Ltd
Children & Culture,Children's Social Care,Children Looked After,S23 Fam Pl P&V-F/Care,Childrens Act Section 23 - Placement Fee,22/07/2020,5440689,"3,236.70",Affinity Fostering Services Ltd
Children & Culture,Children's Social Care,Children Looked After,S23 Fam Pl P&V-F/Care,Childrens Act Section 23 - Placement Fee,22/07/2020,5440690,"3,407.10",Affinity Fostering Services Ltd
Children & Culture,Children's Social Care,Children Looked After,S23 Fam Pl P&V-F/Care,Childrens Act Section 23 - Placement Fee,22/07/2020,5440691,"3,642.90",Affinity Fostering Services Ltd
Children & Culture,Children's Social Care,Children Looked After,S23 Fam Pl P&V-F/Care,Childrens Act Section 23 - Placement Fee,22/07/2020,5440692,"5,464.20",Affinity Fostering Services Ltd
Children & Culture,Children's Social Care,Children Looked After,S23 Fam Pl P&V-F/Care,Childrens Act Section 23 - Placement Fee,22/07/2020,5440693,"3,407.10",Affinity Fostering Services Ltd
Children & Culture,Children's Social Care,Children Looked After,S23 Fam Pl P&V-F/Care,Childrens Act Section 23 - Placement Fee,22/07/2020,5440721,"29,361.43",Calcot Services for Children Ltd
Children & Culture,Children's Social Care,Children Looked After,S23-Other-Semi-Ind. Unit,Social Care - Day Care,22/07/2020,5442138,"1,964.10",Potton Services Ltd
Children & Culture,Children's Social Care,Support Service and Management Costs,Schools Catering,Repairs and Maintenance - Responsive - General,22/07/2020,5442961,388,Lambourne Refrigeration
Children & Culture,Children's Social Care,Children Looked After,Virtual School PPG,Agency Staff - Associations,22/07/2020,5443180,"1,274.85",Academics ltd
Children & Culture,Children's Social Care,Children Looked After,Virtual School PPG,Agency Staff - Associations,22/07/2020,5443181,509.88,Academics ltd
Children & Culture,Children's Social Care,Children Looked After,Virtual School PPG,Agency Staff - Associations,22/07/2020,5443182,"1,019.88",Academics ltd
Children & Culture,Children's Social Care,Children Looked After,Virtual School PPG,Agency Staff - Associations,22/07/2020,5443183,764.91,Academics ltd
Children & Culture,Children's Social Care,Children Looked After,Virtual School PPG,Agency Staff - Associations,22/07/2020,5443184,254.97,Academics ltd
Children & Culture,Children's Social Care,Children Looked After,Virtual School PPG,Agency Staff - Associations,22/07/2020,5443185,"1,019.88",Academics ltd
Children & Culture,Children's Social Care,Children Looked After,Virtual School PPG,Agency Staff - Associations,22/07/2020,5443186,"1,019.88",Academics ltd
Children & Culture,Children's Social Care,Children Looked After,Leaving Care-UASC,Leaving Care Financial Assistance - Supp Accom/Hous Rents,22/07/2020,5443590,998.7,HAMLETTS LTD
Children & Culture,Children's Social Care,Children Looked After,Leaving Care-UASC,Leaving Care Financial Assistance - Supp Accom/Hous Rents,22/07/2020,5443591,998.7,HAMLETTS LTD
Children & Culture,Children's Social Care,Children Looked After,Leaving Care-UASC,Leaving Care Financial Assistance - Supp Accom/Hous Rents,22/07/2020,5443592,"1,042.80",HAMLETTS LTD
Children & Culture,Children's Social Care,Children Looked After,LCS/Allowances-Accom,Leaving Care Financial Assistance - Supp Accom/Hous Rents,22/07/2020,5444908,"1,275.00",Step4ward services Kent LTD
Children & Culture,Children's Social Care,Children Looked After,Leaving Care-UASC,Leaving Care Financial Assistance - Supp Accom/Hous Rents,22/07/2020,5446721,"1,157.14",Pangea Support Services
Children & Culture,Education Services,Early Years,3&4 Year old PVI�s,Third Party Payments - Voluntary Associations,22/07/2020,5446837,"4,273.20",EXCELLENCE CHRISTIAN SCHOOL
Children & Culture,Education Services,Other Strategic Functions,High Needs Out Of Borough Further Education Colleges,Third Party Payments - SEN Top Up Funding,22/07/2020,5446838,"1,218.94",Capel Manor College
Children & Culture,Education Services,Other Strategic Functions,High Needs Other Boroughs,Third Party Payments - SEN Top Up Funding,22/07/2020,5446839,"3,907.61",Kensington Primary School
Children & Culture,Education Services,Other Strategic Functions,High Needs Other Boroughs,Third Party Payments - SEN Top Up Funding,22/07/2020,5446840,"10,831.90",Kensington Primary School
Children & Culture,Education Services,Other Strategic Functions,High Needs Other Boroughs,Third Party Payments - SEN Top Up Funding,22/07/2020,5446841,"4,600.75",Marlborough Primary School
Children & Culture,Education Services,Other Strategic Functions,High Needs FE Colleges,Third Party Payments - SEN Top Up Funding,22/07/2020,5446842,"57,000.04",New City College
Children & Culture,Education Services,Other Strategic Functions,High Needs Academies & Free Schs,Independent Schools - SEN Top Up Funding,22/07/2020,5446843,"1,820.72",The Complete Works Ltd
Children & Culture,Education Services,Early Years,Central Nursery LSAs,Third Party Payments - SEN Top Up Funding,22/07/2020,5446844,"1,800.00",Limehouse Project
Children & Culture,Education Services,Early Years,Central Nursery LSAs,Third Party Payments - SEN Top Up Funding,22/07/2020,5446845,"1,800.00",Limehouse Project
Children & Culture,Education Services,Early Years,Central Nursery LSAs,Third Party Payments - SEN Top Up Funding,22/07/2020,5446846,"2,700.00",Limehouse Project
Children & Culture,Education Services,Other Strategic Functions,High Needs Out Of Borough Further Education Colleges,Third Party Payments - SEN Top Up Funding,22/07/2020,5446847,"28,404.19",East London Advanced Technology Training
Children & Culture,Education Services,Early Years,Central Nursery LSAs,Third Party Payments - SEN Placement Funding,22/07/2020,5446848,"2,268.00",Little St Matthias Pre School
Children & Culture,Children's Social Care,Children Looked After,S23 Fam Pl P&V-F/Care,Childrens Act Section 23 - Placement Fee,22/07/2020,5446898,"4,030.00",Family Fostering
Children & Culture,Children's Social Care,Children Looked After,S23-Other-Semi-Ind. Unit,Childrens Act Section 23 - Placement Fee,22/07/2020,5446955,"3,200.00",Step4ward services Kent LTD
Children & Culture,Highways and Transport Services,Management and Support Services,Contract Services M & A,Services - Professional Fees - Financial Services Fees,22/07/2020,5446981,"1,090.00",THE SOIL ASSOCIATION
Children & Culture,Children's Social Care,Children Looked After,S23-Other-Semi-Ind. Unit,Childrens Act Section 23 - Other Childcare Support,22/07/2020,5446998,480,The Transformed You Community Interest Company
Children & Culture,Children's Social Care,Children Looked After,S23-Other-Semi-Ind. Unit,Childrens Act Section 23 - Other Childcare Support,22/07/2020,5447000,480,The Transformed You Community Interest Company
Children & Culture,Education Services,Other Strategic Functions,Music Trading Account,Third Party Payments - Voluntary Associations,24/07/2020,5381836,"6,250.00",Green Candle Dance Company
Children & Culture,Education Services,Other Strategic Functions,Special Education Needs DSG,Services - Professional Fees - Training,24/07/2020,5440438,"4,063.08",UK Behaviour Analysis & Research Group CIC
Children & Culture,Children's Social Care,Children Looked After,S23-Resi-P&V/OLA-Child Home,Childrens Act Section 23 - Placement Fee,24/07/2020,5440452,"2,500.00",Care 2 Share LTD
Children & Culture,Children's Social Care,Children Looked After,S23-Resi-P&V/OLA-Child Home,Childrens Act Section 23 - Placement Fee,24/07/2020,5440453,"15,000.00",Care 2 Share LTD
Children & Culture,Children's Social Care,Children Looked After,S23-Resi-P&V/OLA-Child Home,Childrens Act Section 23 - Placement Fee,24/07/2020,5440454,"15,500.00",Care 2 Share LTD
Children & Culture,Children's Social Care,Support Service and Management Costs,Sch. Meals A/c - Central Production Unit,Kitchen Supplies - Food and Beverages,24/07/2020,5440477,815.43,Thomas Ridley & Son Ltd
Children & Culture,Children's Social Care,Support Service and Management Costs,Schools Catering,Kitchen Supplies - Food and Beverages,24/07/2020,5440480,290.75,Thomas Ridley & Son Ltd
Children & Culture,Education Services,Other Strategic Functions,Special Education Needs DSG,Payments to Private Contractors - Other Establishments,24/07/2020,5440799,"2,548.00",SEN Support Services Ltd
Children & Culture,Children's Social Care,Children Looked After,Leaving Care-UASC,Leaving Care Financial Assistance - Supp Accom/Hous Rents,24/07/2020,5442851,606.45,Heartwood Outreach Services Ltd
Children & Culture,Children's Social Care,Children Looked After,S23-Resi-P&V/OLA-Boarding Sch,Childrens Act Section 23 - Placement Fee,24/07/2020,5443114,"53,652.00",Ashton Care Ltd
Children & Culture,Children's Social Care,Children Looked After,S23-Resi-P&V/OLA-Boarding Sch,Childrens Act Section 23 - Placement Fee,24/07/2020,5443115,"37,800.00",Ashton Care Ltd
Children & Culture,Education Services,Other Strategic Functions,Schools Library,Books - General Purchases,24/07/2020,5443297,649.28,Peters Bookselling Services
Children & Culture,Education Services,Other Strategic Functions,Schools Library,Books - General Purchases,24/07/2020,5443300,435.3,Peters Bookselling Services
Children & Culture,Children's Social Care,Children Looked After,S23-Resi-P&V/OLA-Boarding Sch,Childrens Act Section 23 - Placement Fee,24/07/2020,5443601,"2,141.40",HAMLETTS LTD
Children & Culture,Education Services,Other Strategic Functions,SEN External Travel,Social Care - Day Care,24/07/2020,5444678,396.75,Carebridge Staffing Ltd
Children & Culture,Children's Social Care,Children Looked After,LCS/Allowances-Accom,Leaving Care Financial Assistance - Supp Accom/Hous Rents,24/07/2020,5445679,250,Single Homeless Project
Children & Culture,Children's Social Care,Children Looked After,LCS/Allowances-Accom,Leaving Care Financial Assistance - Supported Living,24/07/2020,5445679,350,Single Homeless Project
Children & Culture,Children's Social Care,Family Support Services,IPST S17 NRPF,Childrens Act Section 17 - Other Placements Bed & Breakfast,24/07/2020,5445715,414.9,METROPOLITAN & CROWN
Children & Culture,Education Services,Secondary Schools,PFI Hldg Account-Grouped Schoo,Repairs and Maintenance - Responsive - Buildings,24/07/2020,5445864,"30,131.62",Tower Hamlets Schools LTD
Children & Culture,Education Services,Secondary Schools,PFI Hldg Account-Grouped Schoo,Repairs and Maintenance - Responsive - Buildings,24/07/2020,5445865,879.88,Tower Hamlets Schools LTD
Children & Culture,Education Services,Secondary Schools,PFI Hldg Account-Grouped Schoo,Repairs and Maintenance - Responsive - Buildings,24/07/2020,5445868,295.98,Tower Hamlets Schools LTD
Children & Culture,Education Services,Secondary Schools,PFI Hldg Account-Grouped Schoo,Repairs and Maintenance - Responsive - Buildings,24/07/2020,5445870,"1,681.30",Tower Hamlets Schools LTD
Children & Culture,Children's Social Care,Children Looked After,LCS/Allowances-Accom,Leaving Care Financial Assistance - Supp Accom/Hous Rents,24/07/2020,5446166,"5,975.16",Youth reality homes
Children & Culture,Children's Social Care,Children Looked After,S23 Fam Pl P&V-F/Care,Childrens Act Section 23 - Placement Fee,24/07/2020,5446186,"5,185.80",CAPSTONE FOSTER CARE (SE) LTD
Children & Culture,Children's Social Care,Children Looked After,S23 Fam Pl P&V-F/Care,Childrens Act Section 23 - Placement Fee,24/07/2020,5446187,"5,358.66",CAPSTONE FOSTER CARE (SE) LTD
Children & Culture,Children's Social Care,Children Looked After,S23 Fam Pl P&V-F/Care,Childrens Act Section 23 - Placement Fee,24/07/2020,5446188,"5,185.80",CAPSTONE FOSTER CARE (SE) LTD
Children & Culture,Children's Social Care,Children Looked After,Leaving Care-UASC,Leaving Care Financial Assistance - Reg Plan Maint L-Allow,24/07/2020,5446672,256.86,Pangea Support Services
Children & Culture,Children's Social Care,Children Looked After,Leaving Care-UASC,Leaving Care Financial Assistance - Supp Accom/Hous Rents,24/07/2020,5446672,"1,195.71",Pangea Support Services
Children & Culture,Children's Social Care,Children Looked After,Leaving Care-UASC,Leaving Care Financial Assistance - Supp Accom/Hous Rents,24/07/2020,5446673,"1,118.57",Pangea Support Services
Children & Culture,Children's Social Care,Children Looked After,Leaving Care-UASC,Leaving Care Financial Assistance - Reg Plan Maint L-Allow,24/07/2020,5446674,256.86,Pangea Support Services
Children & Culture,Children's Social Care,Children Looked After,Leaving Care-UASC,Leaving Care Financial Assistance - Supp Accom/Hous Rents,24/07/2020,5446674,"1,195.71",Pangea Support Services
Children & Culture,Children's Social Care,Children Looked After,Leaving Care-UASC,Leaving Care Financial Assistance - Reg Plan Maint L-Allow,24/07/2020,5446675,323.57,Pangea Support Services
Children & Culture,Children's Social Care,Children Looked After,Leaving Care-UASC,Leaving Care Financial Assistance - Supp Accom/Hous Rents,24/07/2020,5446675,"1,157.14",Pangea Support Services
Children & Culture,Children's Social Care,Children Looked After,Leaving Care-UASC,Leaving Care Financial Assistance - Reg Plan Maint L-Allow,24/07/2020,5446676,323.57,Pangea Support Services
Children & Culture,Children's Social Care,Children Looked After,Leaving Care-UASC,Leaving Care Financial Assistance - Supp Accom/Hous Rents,24/07/2020,5446676,"1,157.14",Pangea Support Services
Children & Culture,Children's Social Care,Children Looked After,Leaving Care-UASC,Leaving Care Financial Assistance - Supp Accom/Hous Rents,24/07/2020,5446677,810,Pangea Support Services
Children & Culture,Children's Social Care,Children Looked After,Leaving Care-UASC,Leaving Care Financial Assistance - Supp Accom/Hous Rents,24/07/2020,5446678,308.57,Pangea Support Services
Children & Culture,Children's Social Care,Children Looked After,S23 Fam Pl P&V-F/Care,Childrens Act Section 23 - Placement Fee,24/07/2020,5447072,"3,653.66",Select Fostercare Services Ltd
Children & Culture,Children's Social Care,Children Looked After,S23 Fam Pl P&V-F/Care,Childrens Act Section 23 - Placement Fee,24/07/2020,5447073,"3,535.80",Select Fostercare Services Ltd
Children & Culture,Children's Social Care,Children Looked After,S23 Fam Pl P&V-F/Care,Childrens Act Section 23 - Placement Fee,24/07/2020,5447074,"3,535.80",Select Fostercare Services Ltd
Children & Culture,Children's Social Care,Children Looked After,S23 Fam Pl P&V-F/Care,Childrens Act Section 23 - Placement Fee,24/07/2020,5447086,"3,068.40",Eastern Fostering Services
Children & Culture,Children's Social Care,Children Looked After,S23 Fam Pl P&V-F/Care,Childrens Act Section 23 - Placement Fee,24/07/2020,5447087,"3,963.35",Eastern Fostering Services
Children & Culture,Children's Social Care,Children Looked After,S23 Fam Pl P&V-F/Care,Childrens Act Section 23 - Placement Fee,24/07/2020,5447089,"3,963.35",Eastern Fostering Services
Children & Culture,Children's Social Care,Children Looked After,S23-Other-Semi-Ind. Unit,Childrens Act Section 23 - Placement Fee,24/07/2020,5447091,"3,200.00",Step4ward services Kent LTD
Children & Culture,Children's Social Care,Children Looked After,S23-Other-Semi-Ind. Unit,Childrens Act Section 23 - Placement Fee,24/07/2020,5447092,"3,200.00",Step4ward services Kent LTD
Children & Culture,Children's Social Care,Children Looked After,Leaving Care-UASC,Leaving Care Financial Assistance - Supp Accom/Hous Rents,24/07/2020,5447109,925.71,Pangea Support Services
Children & Culture,Children's Social Care,Children Looked After,Leaving Care-UASC,Leaving Care Financial Assistance - Reg Plan Maint L-Allow,24/07/2020,5447110,256.86,Pangea Support Services
Children & Culture,Children's Social Care,Children Looked After,Leaving Care-UASC,Leaving Care Financial Assistance - Supp Accom/Hous Rents,24/07/2020,5447110,"1,195.71",Pangea Support Services
Children & Culture,Children's Social Care,Children Looked After,Leaving Care-UASC,Leaving Care Financial Assistance - Reg Plan Maint L-Allow,24/07/2020,5447111,256.86,Pangea Support Services
Children & Culture,Children's Social Care,Children Looked After,Leaving Care-UASC,Leaving Care Financial Assistance - Supp Accom/Hous Rents,24/07/2020,5447111,"1,195.71",Pangea Support Services
Children & Culture,No Service Specified,No Division Specified,Capital-Minor Works (SC),Other External Fees - Consultants Fees,24/07/2020,5447142,"9,620.00",Macegreen Consulting Ltd
Children & Culture,Cultural and Related Services,Open Spaces,Victoria Park,Repairs and Maintenance - Responsive - Repair & Maintenance,27/07/2020,5440636,"1,200.00",JC Coster (Metalworks) Ltd
Children & Culture,Education Services,Other Strategic Functions,C&C Covid19 Response,Repairs and Maintenance - Responsive - Security,27/07/2020,5440637,"6,300.00",JC Coster (Metalworks) Ltd
Children & Culture,Education Services,Other Strategic Functions,C&C Covid19 Response,Repairs and Maintenance - Responsive - Security,27/07/2020,5440638,"1,880.00",JC Coster (Metalworks) Ltd
Children & Culture,Education Services,Other Strategic Functions,C&C Covid19 Response,Repairs and Maintenance - Responsive - Security,27/07/2020,5440639,"4,110.00",JC Coster (Metalworks) Ltd
Children & Culture,Education Services,Other Strategic Functions,C&C Covid19 Response,Repairs and Maintenance - Responsive - Security,27/07/2020,5440640,"1,792.00",JC Coster (Metalworks) Ltd
Children & Culture,Education Services,Other Strategic Functions,C&C Covid19 Response,Repairs and Maintenance - Responsive - Repair & Maintenance,27/07/2020,5440641,"4,590.00",JC Coster (Metalworks) Ltd
Children & Culture,Cultural and Related Services,Open Spaces,Mile End Park,Repairs and Maintenance - Responsive - General,27/07/2020,5440642,390,JC Coster (Metalworks) Ltd
Children & Culture,Cultural and Related Services,Open Spaces,Mile End Park,Repairs and Maintenance - Responsive - Drainage & Sewers,27/07/2020,5440727,360,J&L Coster (Drainage) Ltd
Children & Culture,Children's Social Care,Support Service and Management Costs,Schools Catering,Kitchen Supplies - Food and Beverages,27/07/2020,5440757,339.92,Thomas Ridley & Son Ltd
Children & Culture,Children's Social Care,Support Service and Management Costs,Schools Catering,Kitchen Supplies - Food and Beverages,27/07/2020,5440758,369.69,Thomas Ridley & Son Ltd
Children & Culture,Children's Social Care,Support Service and Management Costs,Schools Catering,Kitchen Supplies - Food and Beverages,27/07/2020,5440760,395.61,Thomas Ridley & Son Ltd
Children & Culture,Children's Social Care,Support Service and Management Costs,Schools Catering,Kitchen Supplies - Food and Beverages,27/07/2020,5440764,351.95,Thomas Ridley & Son Ltd
Children & Culture,Children's Social Care,Support Service and Management Costs,Schools Catering,Kitchen Supplies - Food and Beverages,27/07/2020,5440765,443.63,Thomas Ridley & Son Ltd
Children & Culture,Children's Social Care,Support Service and Management Costs,Schools Catering,Kitchen Supplies - Food and Beverages,27/07/2020,5440766,443.63,Thomas Ridley & Son Ltd
Children & Culture,Children's Social Care,Support Service and Management Costs,Schools Catering,Kitchen Supplies - Food and Beverages,27/07/2020,5440773,600.7,Thomas Ridley & Son Ltd
Children & Culture,Children's Social Care,Support Service and Management Costs,Schools Catering,Kitchen Supplies - Food and Beverages,27/07/2020,5440775,334.8,Thomas Ridley & Son Ltd
Children & Culture,Children's Social Care,Support Service and Management Costs,Schools Catering,Kitchen Supplies - Food and Beverages,27/07/2020,5440777,"1,052.90",Thomas Ridley & Son Ltd
Children & Culture,Children's Social Care,Support Service and Management Costs,Schools Catering,Kitchen Supplies - Food and Beverages,27/07/2020,5440780,307.27,Thomas Ridley & Son Ltd
Children & Culture,Children's Social Care,Support Service and Management Costs,Schools Catering,Kitchen Supplies - Food and Beverages,27/07/2020,5440783,907.67,Thomas Ridley & Son Ltd
Children & Culture,Children's Social Care,Support Service and Management Costs,Schools Catering,Kitchen Supplies - Food and Beverages,27/07/2020,5440790,267.69,Thomas Ridley & Son Ltd
Children & Culture,Children's Social Care,Support Service and Management Costs,Schools Catering,Kitchen Supplies - Food and Beverages,27/07/2020,5440802,289.58,Prescott-Thomas LTD.
Children & Culture,Children's Social Care,Support Service and Management Costs,Schools Catering,Kitchen Supplies - Food and Beverages,27/07/2020,5440817,520.03,Prescott-Thomas LTD.
Children & Culture,Children's Social Care,Support Service and Management Costs,Schools Catering,Kitchen Supplies - Food and Beverages,27/07/2020,5440820,618.05,Prescott-Thomas LTD.
Children & Culture,Education Services,Other Strategic Functions,CS Prem Retirement (Non-School,Services - Professional Fees - Financial Services Fees,27/07/2020,5442001,"21,314.43",London Pensions Fund Authority
Children & Culture,Children's Social Care,Services for young people,Youth Service Management,Third Party Payments - Voluntary Associations,27/07/2020,5442059,"13,125.00",Tower Project
Children & Culture,Children's Social Care,Children Looked After,S23 Fam Pl P&V-F/Care,Childrens Act Section 23 - Placement Fee,27/07/2020,5442062,"5,284.75",Integrated Service Programme
Children & Culture,Children's Social Care,Children Looked After,S23 Fam Pl P&V-F/Care,Childrens Act Section 23 - Placement Fee,27/07/2020,5442140,"5,142.60",Shining Stars Fostering Agency
Children & Culture,Children's Social Care,Children Looked After,S23 Fam Pl P&V-F/Care,Social Care - Day Care,27/07/2020,5442141,"3,642.60",Shining Stars Fostering Agency
Children & Culture,Children's Social Care,Children Looked After,LCS/Allowances-Accom,Leaving Care Financial Assistance - Supported Living,27/07/2020,5442144,"4,928.70",The Anchor Services-Semi Independent Living Ltd
Children & Culture,Children's Social Care,Support Service and Management Costs,Schools Catering,Repairs and Maintenance - Responsive - General,27/07/2020,5442161,394,Lambourne Refrigeration
Children & Culture,Children's Social Care,Services for young people,Youth Service Management,Third Party Payments - Voluntary Associations,27/07/2020,5442176,"7,000.00",Society Links
Children & Culture,Children's Social Care,Support Service and Management Costs,Schools Catering,Kitchen Supplies - Food and Beverages,27/07/2020,5442181,582.62,Thomas Ridley & Son Ltd
Children & Culture,Children's Social Care,Support Service and Management Costs,Schools Catering,Kitchen Supplies - Food and Beverages,27/07/2020,5442209,950.6,Prescott-Thomas LTD.
Children & Culture,Children's Social Care,Support Service and Management Costs,Sch. Meals A/c - Central Production Unit,Kitchen Supplies - Food and Beverages,27/07/2020,5442223,302.01,Prescott-Thomas LTD.
Children & Culture,Education Services,Other Strategic Functions,High Needs Other Boroughs,Third Party Payments - SEN Top Up Funding,27/07/2020,5442839,"23,019.41",City Of London Corporation
Children & Culture,Children's Social Care,Children Looked After,S23 Fam Pl P&V-F/Care,Social Care - Day Care,27/07/2020,5442875,"3,528.00",Foster Care Link Ltd
Children & Culture,No Service Specified,No Division Specified,Capital-Minor Works (SC),Other External Fees - Other External Fees,27/07/2020,5442885,"1,710.00",Capital Property & Construction  Consultants  Ltd
Children & Culture,Children's Social Care,Children Looked After,S23-Other-Semi-Ind. Unit,Social Care - Day Care,27/07/2020,5442886,825,Potton Services Ltd
Children & Culture,Children's Social Care,Children Looked After,S23-Other-Semi-Ind. Unit,Social Care - Day Care,27/07/2020,5442887,"1,160.10",Potton Services Ltd
Children & Culture,Children's Social Care,Children Looked After,S23-Other-Semi-Ind. Unit,Social Care - Day Care,27/07/2020,5442888,994.5,Potton Services Ltd
Children & Culture,Children's Social Care,Children Looked After,S23-Other-Semi-Ind. Unit,Social Care - Day Care,27/07/2020,5442889,"3,583.87",Potton Services Ltd
Children & Culture,Children's Social Care,Children Looked After,S23-Other-Semi-Ind. Unit,Social Care - Day Care,27/07/2020,5442890,"2,253.99",Potton Services Ltd
Children & Culture,Children's Social Care,Children Looked After,LCS/Allowances-Accom,Leaving Care Financial Assistance - Supp Accom/Hous Rents,27/07/2020,5442941,592.42,The Anchor Services-Semi Independent Living Ltd
Children & Culture,Children's Social Care,Children Looked After,LCS/Allowances-Accom,Leaving Care Financial Assistance - Supported Living,27/07/2020,5442941,"4,228.88",The Anchor Services-Semi Independent Living Ltd
Children & Culture,No Service Specified,No Division Specified,Capital-Minor Works (SC),Other External Fees - Other External Fees,27/07/2020,5443013,"8,160.00",Rivington Street Studio
Children & Culture,Children's Social Care,Services for young people,Youth Service Management,Third Party Payments - Voluntary Associations,27/07/2020,5443069,"20,000.00",Poplar HARCA LTD
Children & Culture,Children's Social Care,Services for young people,Youth Service Management,Third Party Payments - Voluntary Associations,27/07/2020,5443071,"20,000.00",Poplar HARCA LTD
Children & Culture,Children's Social Care,Services for young people,Youth Service Management,Social Care - Prevention & Support,27/07/2020,5443073,"20,000.00",Poplar HARCA LTD
Children & Culture,Children's Social Care,Children Looked After,S23 Fam Pl P&V-F/Care,Childrens Act Section 23 - Placement Fee,27/07/2020,5443116,"3,336.90",Greater London Fostering LTD
Children & Culture,Children's Social Care,Children Looked After,S23 Fam Pl P&V-F/Care,Childrens Act Section 23 - Placement Fee,27/07/2020,5443117,"3,336.90",Greater London Fostering LTD
Children & Culture,Children's Social Care,Children Looked After,S23 Fam Pl P&V-F/Care,Childrens Act Section 23 - Placement Fee,27/07/2020,5443118,"3,180.00",Greater London Fostering LTD
Children & Culture,Children's Social Care,Children Looked After,S23 Fam Pl P&V-F/Care,Childrens Act Section 23 - Placement Fee,27/07/2020,5443575,"3,013.93",Sunbeam Fostering Agency Ltd
Children & Culture,Children's Social Care,Children Looked After,S23 Fam Pl P&V-F/Care,Childrens Act Section 23 - Placement Fee,27/07/2020,5443576,"3,013.93",Sunbeam Fostering Agency Ltd
Children & Culture,Children's Social Care,Children Looked After,S23 Fam Pl P&V-F/Care,Childrens Act Section 23 - Placement Fee,27/07/2020,5443577,"3,013.93",Sunbeam Fostering Agency Ltd
Children & Culture,Children's Social Care,Children Looked After,S23 Fam Pl P&V-F/Care,Childrens Act Section 23 - Placement Fee,27/07/2020,5443578,"3,117.86",Sunbeam Fostering Agency Ltd
Children & Culture,Children's Social Care,Children Looked After,S23 Fam Pl P&V-F/Care,Childrens Act Section 23 - Placement Fee,27/07/2020,5443579,"3,117.86",Sunbeam Fostering Agency Ltd
Children & Culture,Children's Social Care,Children Looked After,S23 Fam Pl P&V-F/Care,Childrens Act Section 23 - Placement Fee,27/07/2020,5443580,"3,117.86",Sunbeam Fostering Agency Ltd
Children & Culture,Children's Social Care,Children Looked After,S23 Fam Pl P&V-F/Care,Childrens Act Section 23 - Placement Fee,27/07/2020,5443581,"3,013.93",Sunbeam Fostering Agency Ltd
Children & Culture,Children's Social Care,Children Looked After,S23 Fam Pl P&V-F/Care,Childrens Act Section 23 - Placement Fee,27/07/2020,5443582,"3,013.93",Sunbeam Fostering Agency Ltd
Children & Culture,Children's Social Care,Children Looked After,S23 Fam Pl P&V-F/Care,Childrens Act Section 23 - Placement Fee,27/07/2020,5443584,"1,735.80",Atlantic Lodge
Children & Culture,Children's Social Care,Children Looked After,S23-Other-Semi-Ind. Unit,Social Care - Day Care,27/07/2020,5443587,"1,984.20",Atlantic Lodge
Children & Culture,Children's Social Care,Children Looked After,S23 Fam Pl P&V-F/Care,Childrens Act Section 23 - Placement Fee,27/07/2020,5443588,"2,121.30",Atlantic Lodge
Children & Culture,Cultural and Related Services,Open Spaces,Mile End Park,Contract Cleaning,27/07/2020,5443617,"3,013.32",Wetton Cleaning Services LTD
Children & Culture,Cultural and Related Services,Open Spaces,Stepney Green,Contract Cleaning,27/07/2020,5443620,360.98,Wetton Cleaning Services LTD
Children & Culture,Children's Social Care,Family Support Services,CNN Pool: Joint Family Support,Social Care - Residential Care Contributions,27/07/2020,5443975,"1,200.00",Explore Independence Ltd
Children & Culture,Children's Social Care,Other Children's and Family Services,Permanancy and Adoption Support Team 1,Social Care - Day Care,27/07/2020,5443983,"1,778.00",Families for Childrens Trust
Children & Culture,Children's Social Care,Family Support Services,Short Breaks and Family Support,Third Party Payments - Voluntary Associations,27/07/2020,5443989,324,REMARK LTD
Children & Culture,Children's Social Care,Family Support Services,CNN Pool: Joint Family Support,Social Care - Residential Care Contributions,27/07/2020,5444659,"3,857.14",Explore Independence Ltd
Children & Culture,Children's Social Care,Children Looked After,S23 Fam Pl P&V-F/Care,Childrens Act Section 23 - Placement Fee,27/07/2020,5444685,"2,219.23",Be My Family Fostering Agency
Children & Culture,Children's Social Care,Children Looked After,S23 Fam Pl P&V-F/Care,Childrens Act Section 23 - Placement Fee,27/07/2020,5444686,"5,121.30",Be My Family Fostering Agency
Children & Culture,Children's Social Care,Children Looked After,S23 Fam Pl P&V-F/Care,Childrens Act Section 23 - Placement Fee,27/07/2020,5444687,"5,292.01",Be My Family Fostering Agency
Children & Culture,Children's Social Care,Children Looked After,S23 Fam Pl P&V-F/Care,Childrens Act Section 23 - Placement Fee,27/07/2020,5444688,"5,121.30",Be My Family Fostering Agency
Children & Culture,Children's Social Care,Family Support Services,IPST S17 NRPF,Childrens Act Section 17 - Other Placements Bed & Breakfast,27/07/2020,5444691,"1,765.20",Atlantic Lodge
Children & Culture,Children's Social Care,Children Looked After,S23 Fam Pl P&V-F/Care,Childrens Act Section 23 - Placement Fee,27/07/2020,5444870,"3,491.10",BANYA
Children & Culture,Education Services,Other Strategic Functions,High Needs Other Boroughs,Third Party Payments - Payments to Schools,27/07/2020,5445703,"14,600.00",Phoenix Place
Children & Culture,Education Services,Other Strategic Functions,High Needs Other Boroughs,Third Party Payments - Payments to Schools,27/07/2020,5445704,"15,750.00",Phoenix Place
Children & Culture,Children's Social Care,Children Looked After,LCS/Allowances-Accom,Leaving Care Financial Assistance - Supp Accom/Hous Rents,27/07/2020,5445705,-333.02,The Anchor Services-Semi Independent Living Ltd
Children & Culture,Children's Social Care,Children Looked After,Virtual School PPG,Education & Training - Non Staff Tuition Fees,27/07/2020,5445844,"7,040.00",Learn Solutions ltd trading as TLC LIVE
Children & Culture,Children's Social Care,Children Looked After,S23 Fam Pl P&V-F/Care,Childrens Act Section 23 - Placement Fee,27/07/2020,5445858,"6,171.43",Five Rivers Childcare Limited
Children & Culture,Children's Social Care,Children Looked After,S23 Fam Pl P&V-F/Care,Childrens Act Section 23 - Placement Fee,27/07/2020,5445859,"4,714.29",Five Rivers Childcare Limited
Children & Culture,Education Services,Secondary Schools,PFI Hldg Account-Mulberry Scho,Payments to Private Contractors - Other Contractors,27/07/2020,5445860,"7,918.97",D4E Mulberry LTD
Children & Culture,Education Services,Secondary Schools,PFI Hldg Account-Mulberry Scho,Payments to Private Contractors - Other Contractors,27/07/2020,5445861,"196,720.79",D4E Mulberry LTD
Children & Culture,Education Services,Other Strategic Functions,High Needs Other Boroughs,Third Party Payments - SEN Top Up Funding,27/07/2020,5445889,"4,290.00",National Teaching And Advisory Service
Children & Culture,Education Services,Other Strategic Functions,High Needs Other Boroughs,Third Party Payments - SEN Top Up Funding,27/07/2020,5445890,"4,290.00",National Teaching And Advisory Service
Children & Culture,Education Services,Other Strategic Functions,High Needs Other Boroughs,Third Party Payments - SEN Top Up Funding,27/07/2020,5445891,"4,290.00",National Teaching And Advisory Service
Children & Culture,Education Services,Other Strategic Functions,High Needs Other Boroughs,Third Party Payments - SEN Top Up Funding,27/07/2020,5445892,"2,340.00",National Teaching And Advisory Service
Children & Culture,Education Services,Other Strategic Functions,High Needs Other Boroughs,Third Party Payments - SEN Top Up Funding,27/07/2020,5445893,"4,290.00",National Teaching And Advisory Service
Children & Culture,Children's Social Care,Children Looked After,S23 Fam Pl P&V-F/Care,Childrens Act Section 23 - Placement Fee,27/07/2020,5446899,"3,900.00",Family Fostering
Children & Culture,Children's Social Care,Children Looked After,Leaving Care-UASC,Leaving Care Financial Assistance - Supp Accom/Hous Rents,27/07/2020,5447724,"2,275.35",HAMLETTS LTD
Children & Culture,Children's Social Care,Children Looked After,Leaving Care-UASC,Leaving Care Financial Assistance - Supp Accom/Hous Rents,27/07/2020,5447725,"1,146.92",HAMLETTS LTD
Children & Culture,Children's Social Care,Children Looked After,Leaving Care-UASC,Leaving Care Financial Assistance - Supp Accom/Hous Rents,27/07/2020,5447726,"6,248.10",HAMLETTS LTD
Children & Culture,Children's Social Care,Children Looked After,S23 Fam Pl P&V-F/Care,Childrens Act Section 23 - Placement Fee,27/07/2020,5448676,784,Swiis Foster Care Limited
Children & Culture,Children's Social Care,Children Looked After,S23-Other-Semi-Ind. Unit,Childrens Act Section 23 - Placement Fee,27/07/2020,5448679,"3,857.14",Explore Independence Ltd
Children & Culture,Children's Social Care,Children Looked After,S23 Fam Pl P&V-F/Care,Childrens Act Section 23 - Placement Fee,27/07/2020,5448699,"1,071.40",Aim High Fostering Limited
Children & Culture,Children's Social Care,Family Support Services,CNN Pool: Children Direct Paym,Social Care - Direct Payments,27/07/2020,5448835,"7,734.00",DH TOWER HAMLETS
Children & Culture,Education Services,Other Strategic Functions,C&C Covid19 Response,Social Care - Direct Payments,27/07/2020,5448839,"2,070.00",DH TOWER HAMLETS
Children & Culture,Children's Social Care,Service Strategy,"FSP Sect 17 - Team 7		",Childrens Act Section 17 - Other Placements Bed & Breakfast,29/07/2020,5395202,"15,942.68",Care 2 Share LTD
Children & Culture,Children's Social Care,Family Support Services,IPST S17 NRPF,Childrens Act Section 17 - Other Placements Bed & Breakfast,29/07/2020,5414120,992,Imperial Portfolios Ltd
Children & Culture,Children's Social Care,Service Strategy,"FSP Sect 17 - Team 7		",Services - Professional Fees - Translation Fees,29/07/2020,5414737,"1,047.50",Oncall Interpreters LTD
Children & Culture,Children's Social Care,Family Support Services,IPST S17 NRPF,Childrens Act Section 17 - Other Placements Bed & Breakfast,29/07/2020,5423133,960,Imperial Portfolios Ltd
Children & Culture,Cultural and Related Services,Open Spaces,Mile End Park,Repairs and Maintenance - Responsive - General,29/07/2020,5442840,"3,575.00",JC Coster (Metalworks) Ltd
Children & Culture,Education Services,Other Strategic Functions,Special Education Needs DSG,Third Party Payments - Payments to Schools,29/07/2020,5442879,"7,619.36",Bryn Melyn Care Ltd
Children & Culture,Children's Social Care,Children Looked After,S23-Resi-P&V/OLA-Child Home,Childrens Act Section 23 - Placement Fee,29/07/2020,5442879,"17,778.50",Bryn Melyn Care Ltd
Children & Culture,Children's Social Care,Children Looked After,S23 Fam Pl P&V-F/Care,Childrens Act Section 23 - Placement Fee,29/07/2020,5442884,"3,100.00",Aspirations Fostering
Children & Culture,Children's Social Care,Children Looked After,S23-Resi-P&V/OLA-Child Home,Childrens Act Section 23 - Placement Fee,29/07/2020,5442948,"8,815.65",Blossom Care Group Limited
Children & Culture,Education Services,Secondary Schools,PFI Hldg Account-Grouped Schoo,Payments to Private Contractors - Other Contractors,29/07/2020,5442955,"1,318,487.78",Tower Hamlets Schools LTD
Children & Culture,Children's Social Care,Support Service and Management Costs,Sch. Meals A/c - Central Production Unit,Kitchen Supplies - Food and Beverages,29/07/2020,5442980,"1,902.31",Thomas Ridley & Son Ltd
Children & Culture,Children's Social Care,Support Service and Management Costs,Schools Catering,Kitchen Supplies - Food and Beverages,29/07/2020,5442982,358.91,Thomas Ridley & Son Ltd
Children & Culture,Children's Social Care,Support Service and Management Costs,Schools Catering,Kitchen Supplies - Food and Beverages,29/07/2020,5442983,"1,426.87",Thomas Ridley & Son Ltd
Children & Culture,Children's Social Care,Support Service and Management Costs,Schools Catering,Kitchen Supplies - Food and Beverages,29/07/2020,5443025,295.19,Prescott-Thomas LTD.
Children & Culture,Children's Social Care,Children Looked After,S23-Other-Semi-Ind. Unit,Childrens Act Section 23 - Placement Fee,29/07/2020,5443043,"2,596.02",Integrated Service Programme
Children & Culture,Education Services,Other Strategic Functions,High Needs Out Of Borough Special Schools,Third Party Payments - SEN Top Up Funding,29/07/2020,5443079,"61,383.96",The Garden
Children & Culture,Education Services,Other Strategic Functions,High Needs Other Boroughs,Third Party Payments - SEN Top Up Funding,29/07/2020,5443080,"8,854.00",Whitefield Schools and Centre
Children & Culture,Children's Social Care,Service Strategy,"FSP Sect 17 - Team 8		",Childrens Act Section 17 - Expert Assessmt/Witness Costs,29/07/2020,5443083,"2,817.00",E4 Law Limited T/A Lextox
Children & Culture,Children's Social Care,Children Looked After,S23 Fam Pl P&V-F/Care,Childrens Act Section 23 - Placement Fee,29/07/2020,5443101,"3,356.99",Futures for Children Ltd
Children & Culture,Children's Social Care,Children Looked After,S23 Fam Pl P&V-F/Care,Childrens Act Section 23 - Placement Fee,29/07/2020,5443102,"3,100.00",Futures for Children Ltd
Children & Culture,Children's Social Care,Children Looked After,S23 Fam Pl P&V-F/Care,Childrens Act Section 23 - Placement Fee,29/07/2020,5443103,"3,100.00",Futures for Children Ltd
Children & Culture,Children's Social Care,Children Looked After,S23 Fam Pl P&V-F/Care,Childrens Act Section 23 - Placement Fee,29/07/2020,5443104,"3,100.00",Futures for Children Ltd
Children & Culture,Children's Social Care,Children Looked After,S23-Resi-P&V/OLA-Child Home,Social Care - Day Care,29/07/2020,5443121,"18,378.57",Care Focus Ltd
Children & Culture,Children's Social Care,Children Looked After,S23 Fam Pl P&V-F/Care,Social Care - Day Care,29/07/2020,5443123,"5,889.25",By The Bridge Ltd
Children & Culture,Children's Social Care,Children Looked After,S23 Fam Pl P&V-F/Care,Childrens Act Section 23 - Placement Fee,29/07/2020,5443124,"5,766.62",By The Bridge Ltd
Children & Culture,Children's Social Care,Children Looked After,S23 Fam Pl P&V-F/Care,Childrens Act Section 23 - Placement Fee,29/07/2020,5443125,"3,963.35",Eastern Fostering Services
Children & Culture,Children's Social Care,Children Looked After,S23 Fam Pl P&V-F/Care,Childrens Act Section 23 - Placement Fee,29/07/2020,5443126,"3,963.35",Eastern Fostering Services
Children & Culture,Children's Social Care,Children Looked After,S23 Fam Pl P&V-F/Care,Childrens Act Section 23 - Placement Fee,29/07/2020,5443127,"3,963.35",Eastern Fostering Services
Children & Culture,Children's Social Care,Children Looked After,S23 Fam Pl P&V-F/Care,Childrens Act Section 23 - Placement Fee,29/07/2020,5443128,"3,963.35",Eastern Fostering Services
Children & Culture,Children's Social Care,Children Looked After,S23 Fam Pl P&V-F/Care,Childrens Act Section 23 - Placement Fee,29/07/2020,5443129,"3,963.35",Eastern Fostering Services
Children & Culture,Children's Social Care,Children Looked After,S23-Resi-P&V/OLA-Child Home,Childrens Act Section 23 - Placement Fee,29/07/2020,5443143,"15,000.00",Care 2 Share LTD
Children & Culture,Children's Social Care,Children Looked After,S23 Fam Pl P&V-F/Care,Childrens Act Section 23 - Placement Fee,29/07/2020,5443144,"3,555.70",Foster Care Associates Limited
Children & Culture,Children's Social Care,Children Looked After,Virtual School PPG,Agency Staff - Associations,29/07/2020,5443187,"1,274.85",Academics ltd
Children & Culture,Children's Social Care,Children Looked After,Virtual School PPG,Agency Staff - Associations,29/07/2020,5443188,509.88,Academics ltd
Children & Culture,Children's Social Care,Children Looked After,Virtual School PPG,Agency Staff - Associations,29/07/2020,5443189,"1,019.88",Academics ltd
Children & Culture,Children's Social Care,Children Looked After,Virtual School PPG,Agency Staff - Associations,29/07/2020,5443190,764.91,Academics ltd
Children & Culture,Children's Social Care,Children Looked After,Virtual School PPG,Agency Staff - Associations,29/07/2020,5443191,254.97,Academics ltd
Children & Culture,Children's Social Care,Children Looked After,Virtual School PPG,Agency Staff - Associations,29/07/2020,5443192,"1,019.88",Academics ltd
Children & Culture,Children's Social Care,Children Looked After,Virtual School PPG,Agency Staff - Associations,29/07/2020,5443193,"1,019.88",Academics ltd
Children & Culture,Children's Social Care,Children Looked After,S23-Other-Semi-Ind. Unit,Childrens Act Section 23 - Placement Fee,29/07/2020,5443197,"4,178.40",Real Life
Children & Culture,Children's Social Care,Support Service and Management Costs,Schools Catering,Kitchen Supplies - Food and Beverages,29/07/2020,5443215,259.59,Thomas Ridley & Son Ltd
Children & Culture,Children's Social Care,Support Service and Management Costs,Schools Catering,Kitchen Supplies - Food and Beverages,29/07/2020,5443218,601.43,Thomas Ridley & Son Ltd
Children & Culture,Children's Social Care,Support Service and Management Costs,Schools Catering,Kitchen Supplies - Food and Beverages,29/07/2020,5443219,378.6,Thomas Ridley & Son Ltd
Children & Culture,Children's Social Care,Support Service and Management Costs,Schools Catering,Kitchen Supplies - Food and Beverages,29/07/2020,5443220,342.38,Thomas Ridley & Son Ltd
Children & Culture,No Service Specified,No Division Specified,Capital-Minor Works (SC),Other External Fees - Consultants Fees,29/07/2020,5443239,"5,755.00",Macegreen Consulting Ltd
Children & Culture,Children's Social Care,Support Service and Management Costs,Schools Catering,Kitchen Supplies - Food and Beverages,29/07/2020,5443245,290.08,Prescott-Thomas LTD.
Children & Culture,Children's Social Care,Support Service and Management Costs,Schools Catering,Kitchen Supplies - Food and Beverages,29/07/2020,5443250,612.63,Prescott-Thomas LTD.
Children & Culture,Children's Social Care,Commissioning and Social Work,Children-Mental Health,Third Party Payments - Voluntary Associations,29/07/2020,5443286,"6,250.00",Family Action
Children & Culture,Children's Social Care,Children Looked After,C.B.C & Fam.Prev/Support-Mgmnt,Third Party Payments - Voluntary Associations,29/07/2020,5443287,"3,694.25",Family Action
Children & Culture,Education Services,Other Strategic Functions,High Needs Other Boroughs,Third Party Payments - SEN Top Up Funding,29/07/2020,5443307,"15,416.67",Whitefield Academy Trust - Joseph Clarke School
Children & Culture,Education Services,Other Strategic Functions,High Needs Out Of Borough Special Schools,Third Party Payments - SEN Placement Funding,29/07/2020,5443337,"13,000.00",Riverside School
Children & Culture,Education Services,Other Strategic Functions,High Needs Out Of Borough Special Schools,Third Party Payments - SEN Placement Funding,29/07/2020,5443338,"24,000.00",Riverside School
Children & Culture,Children's Social Care,Children Looked After,S23 Fam Pl P&V-F/Care,Childrens Act Section 23 - Placement Fee,29/07/2020,5443339,"3,410.00",Compass Fostering East Limited
Children & Culture,Children's Social Care,Children Looked After,S23 Fam Pl P&V-F/Care,Childrens Act Section 23 - Placement Fee,29/07/2020,5443349,"11,357.14",CARE Ltd
Children & Culture,Cultural and Related Services,Recreation & Sport,"Poplar Baths		",Payments to Private Contractors - Other Contractors,29/07/2020,5443461,"143,811.96",Folera Ltd
Children & Culture,No Service Specified,No Division Specified,Capital-Minor Works (SC),Building Works - Asbestos- Surveys & Removal,29/07/2020,5443463,"2,700.00",Environtec Ltd
Children & Culture,Children's Social Care,Other Children's and Family Services,Permanancy and Adoption Support Team 1,Third Party Payments - Other Agencies,29/07/2020,5443933,"84,262.63",London Borough of Havering
Children & Culture,Children's Social Care,Children Looked After,S23 Fam Pl P&V-F/Care,Childrens Act Section 23 - Placement Fee,29/07/2020,5444631,"3,514.20",Integrated Fostering Services Ltd
Children & Culture,Children's Social Care,Children Looked After,S23 Fam Pl P&V-F/Care,Childrens Act Section 23 - Placement Fee,29/07/2020,5444633,"3,514.20",Integrated Fostering Services Ltd
Children & Culture,Children's Social Care,Children Looked After,S23 Fam Pl P&V-F/Care,Childrens Act Section 23 - Placement Fee,29/07/2020,5444634,"3,300.00",Integrated Fostering Services Ltd
Children & Culture,Children's Social Care,Children Looked After,Virtual School PPG,Education & Training - Non Staff Tuition Fees,29/07/2020,5444893,500,Anchor Teaching Ltd
Children & Culture,Children's Social Care,Children Looked After,S23-Other-Semi-Ind. Unit,Social Care - Day Care,29/07/2020,5445706,"16,519.00",Committed Care Housing
Children & Culture,Children's Social Care,Commissioning and Social Work,Advice and Assessment Section 17,Childrens Act Section 17 - Other Placements Bed & Breakfast,29/07/2020,5445884,"1,500.00",Finefair Management
Children & Culture,Children's Social Care,Commissioning and Social Work,Advice and Assessment Section 17,Childrens Act Section 17 - Other Placements Bed & Breakfast,29/07/2020,5445886,560,Finefair Management
Children & Culture,Children's Social Care,Commissioning and Social Work,Advice and Assessment Section 17,Childrens Act Section 17 - Other Placements Bed & Breakfast,29/07/2020,5445887,400,Finefair Management
Children & Culture,Children's Social Care,Commissioning and Social Work,Advice and Assessment Section 17,Childrens Act Section 17 - Other Placements Bed & Breakfast,29/07/2020,5445888,"1,800.00",Finefair Management
Children & Culture,Children's Social Care,Children Looked After,LCS/Allowances-Accom,Leaving Care Financial Assistance - Supp Accom/Hous Rents,29/07/2020,5446163,968,Youth reality homes
Children & Culture,Children's Social Care,Children Looked After,LCS/Allowances-Accom,Leaving Care Financial Assistance - Supported Living,29/07/2020,5446163,"2,132.00",Youth reality homes
Children & Culture,Children's Social Care,Children Looked After,LCS/Allowances-Accom,Leaving Care Financial Assistance - Supp Accom/Hous Rents,29/07/2020,5446164,"1,000.00",Youth reality homes
Children & Culture,Children's Social Care,Children Looked After,LCS/Allowances-Accom,Leaving Care Financial Assistance - Supported Living,29/07/2020,5446164,"3,012.00",Youth reality homes
Children & Culture,Children's Social Care,Children Looked After,S23 Fam Pl P&V-F/Care,Childrens Act Section 23 - Placement Fee,29/07/2020,5446180,"3,365.71",Five Rivers Childcare Limited
Children & Culture,Children's Social Care,Children Looked After,S23 Fam Pl P&V-F/Care,Childrens Act Section 23 - Placement Fee,29/07/2020,5446181,"3,264.74",Five Rivers Childcare Limited
Children & Culture,Children's Social Care,Children Looked After,S23 Fam Pl P&V-F/Care,Childrens Act Section 23 - Placement Fee,29/07/2020,5446182,"6,421.43",Five Rivers Childcare Limited
Children & Culture,Children's Social Care,Children Looked After,S23 Fam Pl P&V-F/Care,Childrens Act Section 23 - Placement Fee,29/07/2020,5446183,"3,018.65",Five Rivers Childcare Limited
Children & Culture,Children's Social Care,Children Looked After,S23 Fam Pl P&V-F/Care,Childrens Act Section 23 - Placement Fee,29/07/2020,5446184,"5,048.57",Five Rivers Childcare Limited
Children & Culture,Children's Social Care,Children Looked After,S23-Other-Mother & Baby Unit,Childrens Act Section 23 - Placement Fee,29/07/2020,5446185,"6,377.14",Five Rivers Childcare Limited
Children & Culture,Education Services,Other Strategic Functions,High Needs Out Of Borough Special Schools,Third Party Payments - SEN Placement Funding,29/07/2020,5446328,"24,656.31",Wandsworth Council
Children & Culture,Children's Social Care,Children Looked After,S23-Resi-P&V/OLA-Sec Acc-Wel,Childrens Act Section 23 - Placement Fee,29/07/2020,5446328,"57,531.40",Wandsworth Council
Children & Culture,Children's Social Care,Children Looked After,S23-Resi-P&V/OLA-Child Home,Childrens Act Section 23 - Placement Fee,29/07/2020,5446645,"26,430.00",Kibble Education and Care Centre
Children & Culture,Children's Social Care,Children Looked After,S23-Other-Semi-Ind. Unit,Social Care - Day Care,29/07/2020,5446892,"5,391.30",The Way Care Services Ltd
Children & Culture,Children's Social Care,Children Looked After,S23-Other-Semi-Ind. Unit,Childrens Act Section 23 - Placement Fee,29/07/2020,5446893,"4,320.00",The Way Care Services Ltd
Children & Culture,Children's Social Care,Children Looked After,S23-Other-Semi-Ind. Unit,Childrens Act Section 23 - Placement Fee,29/07/2020,5446894,"4,200.00",The Way Care Services Ltd
Children & Culture,Children's Social Care,Family Support Services,Short Breaks and Family Support,Third Party Payments - Voluntary Associations,29/07/2020,5448637,"145,710.00",Tower Project
Children & Culture,Children's Social Care,Service Strategy,FSP Sect 17 - Team 4,Childrens Act Section 17 - Expert Assessmt/Witness Costs,29/07/2020,5448645,"3,298.00",The Lucy Faithfull Foundation
Children & Culture,Children's Social Care,Support Service and Management Costs,Schools Catering,Kitchen Supplies - Food and Beverages,29/07/2020,5448846,260,William White Meats Ltd
Children & Culture,Education Services,Other Strategic Functions,Schools Library,Subscriptions - Associations,29/07/2020,5448854,273.42,School Library Association
Children & Culture,Children's Social Care,Children Looked After,S23-Other-Semi-Ind. Unit,Childrens Act Section 23 - Placement Fee,29/07/2020,5448900,"4,771.27",Bright Young Futures
Children & Culture,Children's Social Care,Children Looked After,S23-Resi-P&V/OLA-Child Home,Childrens Act Section 23 - Placement Fee,29/07/2020,5448914,285.7,Caring Hearts Fostering
Children & Culture,Children's Social Care,Children Looked After,S23 Fam Pl P&V-F/Care,Childrens Act Section 23 - Placement Fee,29/07/2020,5448916,"3,642.90",CAPSTONE FOSTER CARE (SE) LTD
Children & Culture,Education Services,Other Strategic Functions,SEN External Travel,Non Staff Transport Costs - Reimbursement,29/07/2020,5448972,"60,680.00",Healthcare and Transport Services Group Ltd
Children & Culture,Children's Social Care,Family Support Services,CNN Pool: Joint Family Support,Social Care - Homecare,29/07/2020,5448979,"1,656.00",QALB Centre Short Break Services
Children & Culture,Children's Social Care,Family Support Services,CNN Pool: Joint Family Support,Social Care - Homecare,29/07/2020,5448982,"1,122.00",QALB Centre Short Break Services
Children & Culture,Children's Social Care,Family Support Services,CNN Pool: Joint Family Support,Social Care - Homecare,29/07/2020,5448983,688.5,QALB Centre Short Break Services
Children & Culture,Children's Social Care,Family Support Services,CNN Pool: Joint Family Support,Social Care - Homecare,29/07/2020,5448986,396,QALB Centre Short Break Services
Children & Culture,Children's Social Care,Family Support Services,CNN Pool: Joint Family Support,Social Care - Homecare,29/07/2020,5448988,"3,192.00",QALB Centre Short Break Services
Children & Culture,Children's Social Care,Children Looked After,S23 Fam Pl P&V-F/Care,Childrens Act Section 23 - Placement Fee,29/07/2020,5449037,"5,580.60",By The Bridge Ltd
Children & Culture,Children's Social Care,Children Looked After,S23 Fam Pl P&V-F/Care,Childrens Act Section 23 - Placement Fee,29/07/2020,5449038,"-2,812.70",Eastern Fostering Services
Children & Culture,Children's Social Care,Children Looked After,S23 Fam Pl P&V-F/Care,Childrens Act Section 23 - Placement Fee,29/07/2020,5449040,"-2,301.30",Eastern Fostering Services
Children & Culture,Children's Social Care,Children Looked After,S23-Resi-P&V/OLA-Child Home,Childrens Act Section 23 - Placement Fee,29/07/2020,5449048,"19,042.86",Discovered Limited
Children & Culture,Children's Social Care,Children Looked After,S23 Fam Pl P&V-F/Care,Childrens Act Section 23 - Placement Fee,29/07/2020,5449055,"1,285.71",Jordan Xavier LTD
Children & Culture,Children's Social Care,Children Looked After,S23 Fam Pl P&V-F/Care,Childrens Act Section 23 - Placement Fee,29/07/2020,5449057,"3,857.14",Jordan Xavier LTD
Children & Culture,Children's Social Care,Support Service and Management Costs,Sch. Meals A/c - Central Production Unit,Kitchen Supplies - Food and Beverages,29/07/2020,5449088,409.27,Prescott-Thomas LTD.
Children & Culture,Children's Social Care,Support Service and Management Costs,Sch. Meals A/c - Central Production Unit,Kitchen Supplies - Food and Beverages,29/07/2020,5449089,369.91,Prescott-Thomas LTD.
Children & Culture,Children's Social Care,Support Service and Management Costs,Sch. Meals A/c - Central Production Unit,Kitchen Supplies - Food and Beverages,29/07/2020,5449104,497.64,Prescott-Thomas LTD.
Children & Culture,Children's Social Care,Support Service and Management Costs,Sch. Meals A/c - Central Production Unit,Kitchen Supplies - Food and Beverages,29/07/2020,5449107,280.06,Prescott-Thomas LTD.
Children & Culture,Children's Social Care,Support Service and Management Costs,Sch. Meals A/c - Central Production Unit,Kitchen Supplies - Food and Beverages,29/07/2020,5449108,472.13,Prescott-Thomas LTD.
Children & Culture,Children's Social Care,Support Service and Management Costs,Sch. Meals A/c - Central Production Unit,Kitchen Supplies - Food and Beverages,29/07/2020,5449112,282,Prescott-Thomas LTD.
Children & Culture,Children's Social Care,Support Service and Management Costs,Sch. Meals A/c - Central Production Unit,Kitchen Supplies - Food and Beverages,29/07/2020,5449113,281.62,Prescott-Thomas LTD.
Children & Culture,Children's Social Care,Support Service and Management Costs,Sch. Meals A/c - Central Production Unit,Kitchen Supplies - Food and Beverages,29/07/2020,5449116,357.43,Prescott-Thomas LTD.
Children & Culture,Children's Social Care,Support Service and Management Costs,Sch. Meals A/c - Central Production Unit,Kitchen Supplies - Food and Beverages,29/07/2020,5449117,383.86,Prescott-Thomas LTD.
Children & Culture,Education Services,Early Years,3&4 Year old PVI�s,Third Party Payments - Voluntary Associations,29/07/2020,5449128,"1,342.80",BRIGHT HORIZONS FAMILY SOLUTION
Children & Culture,Education Services,Early Years,3&4 Year old PVI�s,Third Party Payments - Voluntary Associations,29/07/2020,5449129,"1,288.80",Incy Wincy Stars Childcare Ltd
Children & Culture,Education Services,Early Years,3&4 Year old PVI�s,Third Party Payments - Voluntary Associations,29/07/2020,5449130,615,SELECT LEARNING LONDON LTD
Children & Culture,Education Services,Early Years,3&4 Year old PVI�s,Third Party Payments - Voluntary Associations,29/07/2020,5449131,615,VERNON PLAYGROUP
Children & Culture,Education Services,Early Years,3&4 Year old PVI�s,Third Party Payments - Voluntary Associations,29/07/2020,5449132,615,Puddle Jumpers Ltd
Children & Culture,Education Services,Early Years,SSEYCG Inclusion,Third Party Payments - Voluntary Associations,29/07/2020,5449133,"1,000.00",VERNON PLAYGROUP
Children & Culture,Children's Social Care,Family Support Services,CNN Pool: Joint Family Support,Social Care - Homecare,29/07/2020,5449668,"41,986.61",APASENTH
Children & Culture,Children's Social Care,Children Looked After,Staying Put,Childrens Act Section 23 - Placement Fee,29/07/2020,5449687,"4,992.30",Integrated Fostering Services Ltd
Children & Culture,Children's Social Care,Children Looked After,Leaving Care-UASC,Leaving Care Financial Assistance - Reg Plan Maint L-Allow,29/07/2020,5449798,383,SOCIAL SERVICES LEAVING CARE SERVICE
Children & Culture,Children's Social Care,Children Looked After,LCS/Allowances-Accom,Leaving Care Financial Assistance - Reg Plan Maint L-Allow,29/07/2020,5449798,474,SOCIAL SERVICES LEAVING CARE SERVICE
Children & Culture,Children's Social Care,Children Looked After,LCS/Allowances-Accom,Leaving Care Financial Assistance - Reg Plan Maint L-Allow,29/07/2020,5449798,316,SOCIAL SERVICES LEAVING CARE SERVICE
Children & Culture,Children's Social Care,Children Looked After,LCS/Allowances-Accom,Leaving Care Financial Assistance - Reg Plan Maint L-Allow,29/07/2020,5449798,366,SOCIAL SERVICES LEAVING CARE SERVICE
Children & Culture,Education Services,Other Strategic Functions,Empty Properties,Repairs and Maintenance - Responsive - Electrical,31/07/2020,5427029,295.5,Agilisys Professional Services
Children & Culture,Children's Social Care,Children Looked After,S23-Other-Semi-Ind. Unit,Childrens Act Section 23 - Placement Fee,31/07/2020,5443306,"3,469.93",Inclusive Care Support Ltd
Children & Culture,Children's Social Care,Children Looked After,S23 Family Placements P&V,Social Care - Day Care,31/07/2020,5443312,"4,340.00",COMPASS FOSTERING LONDON LIMITED
Children & Culture,Children's Social Care,Children Looked After,S23 Fam Pl P&V-F/Care,Childrens Act Section 23 - Placement Fee,31/07/2020,5443313,"5,143.52",COMPASS FOSTERING LONDON LIMITED
Children & Culture,Education Services,Other Strategic Functions,High Needs Other Boroughs,Third Party Payments - SEN Top Up Funding,31/07/2020,5443343,"5,582.31",London Design & Engineering UTC
Children & Culture,Education Services,Other Strategic Functions,High Needs Other Boroughs,Third Party Payments - SEN Top Up Funding,31/07/2020,5443343,"3,610.63",London Design & Engineering UTC
Children & Culture,Education Services,Other Strategic Functions,High Needs Other Boroughs,Third Party Payments - SEN Top Up Funding,31/07/2020,5443343,"5,608.45",London Design & Engineering UTC
Children & Culture,Education Services,Other Strategic Functions,High Needs Other Boroughs,Third Party Payments - SEN Top Up Funding,31/07/2020,5443343,"2,777.41",London Design & Engineering UTC
Children & Culture,Education Services,Other Strategic Functions,High Needs Other Boroughs,Third Party Payments - SEN Top Up Funding,31/07/2020,5443343,"2,834.09",London Design & Engineering UTC
Children & Culture,Education Services,Other Strategic Functions,High Needs Other Boroughs,Third Party Payments - SEN Top Up Funding,31/07/2020,5443343,"7,256.99",London Design & Engineering UTC
Children & Culture,Children's Social Care,Support Service and Management Costs,Sch. Meals A/c - Central Production Unit,Kitchen Supplies - Food and Beverages,31/07/2020,5443368,299.44,Prescott-Thomas LTD.
Children & Culture,Cultural and Related Services,Open Spaces,Parks & Open Spaces Man&Admin,Third Party Payments - Other Local Authorities,31/07/2020,5443414,294.2,Port of London Authority
Children & Culture,Education Services,Other Strategic Functions,Empty Properties,Services - Professional Fees - Security Fees,31/07/2020,5443444,"10,051.20",Manpower Direct UK
Children & Culture,Cultural and Related Services,Open Spaces,Victoria Park,Services - Professional Fees - Security Fees,31/07/2020,5443457,"8,820.00",Manpower Direct UK
Children & Culture,Children's Social Care,Support Service and Management Costs,"Mulberry Caf�		",Kitchen Supplies - Food and Beverages,31/07/2020,5444013,572.09,Thomas Ridley & Son Ltd
Children & Culture,Education Services,Other Strategic Functions,SEN External Travel,Social Care - Day Care,31/07/2020,5444679,396.75,Carebridge Staffing Ltd
Children & Culture,Children's Social Care,Children Looked After,S23 Fam Pl P&V-F/Care,Childrens Act Section 23 - Placement Fee,31/07/2020,5444680,"3,277.32",Synergy Fostering Ltd
Children & Culture,Children's Social Care,Children Looked After,S23 Fam Pl P&V-F/Care,Childrens Act Section 23 - Placement Fee,31/07/2020,5444681,"3,277.32",Synergy Fostering Ltd
Children & Culture,Children's Social Care,Support Service and Management Costs,Swanlea,Kitchen Supplies - Food and Beverages,31/07/2020,5444718,393.27,Thomas Ridley & Son Ltd
Children & Culture,Children's Social Care,Support Service and Management Costs,Sch. Meals A/c - Central Production Unit,Kitchen Supplies - Food and Beverages,31/07/2020,5444720,483.03,Thomas Ridley & Son Ltd
Children & Culture,Education Services,Other Strategic Functions,High Needs FE Colleges,Third Party Payments - SEN Top Up Funding,31/07/2020,5445671,"131,309.78",Canary Wharf College
Children & Culture,Children's Social Care,Children Looked After,Leaving Care-UASC,Leaving Care Financial Assistance - Supp Accom/Hous Rents,31/07/2020,5446681,303.29,Pangea Support Services
Children & Culture,Children's Social Care,Children Looked After,Leaving Care-UASC,Leaving Care Financial Assistance - Supported Living,31/07/2020,5446681,"1,260.29",Pangea Support Services
Children & Culture,Children's Social Care,Children Looked After,Leaving Care-UASC,Leaving Care Financial Assistance - Supp Accom/Hous Rents,31/07/2020,5446682,"1,080.00",Pangea Support Services
Children & Culture,Children's Social Care,Children Looked After,Leaving Care-UASC,Leaving Care Financial Assistance - Reg Plan Maint L-Allow,31/07/2020,5446683,323.57,Pangea Support Services
Children & Culture,Children's Social Care,Children Looked After,Leaving Care-UASC,Leaving Care Financial Assistance - Supp Accom/Hous Rents,31/07/2020,5446684,"1,157.14",Pangea Support Services
Children & Culture,Children's Social Care,Children Looked After,Leaving Care-UASC,Leaving Care Financial Assistance - Reg Plan Maint L-Allow,31/07/2020,5446688,323.57,Pangea Support Services
Children & Culture,Children's Social Care,Children Looked After,Leaving Care-UASC,Leaving Care Financial Assistance - Supp Accom/Hous Rents,31/07/2020,5446688,"1,157.14",Pangea Support Services
Children & Culture,Children's Social Care,Children Looked After,Leaving Care-UASC,Leaving Care Financial Assistance - Reg Plan Maint L-Allow,31/07/2020,5446691,256.86,Pangea Support Services
Children & Culture,Children's Social Care,Children Looked After,Leaving Care-UASC,Leaving Care Financial Assistance - Supp Accom/Hous Rents,31/07/2020,5446691,"1,195.71",Pangea Support Services
Children & Culture,Children's Social Care,Children Looked After,Leaving Care-UASC,Leaving Care Financial Assistance - Supp Accom/Hous Rents,31/07/2020,5446692,"1,118.57",Pangea Support Services
Children & Culture,Children's Social Care,Children Looked After,Leaving Care-UASC,Leaving Care Financial Assistance - Reg Plan Maint L-Allow,31/07/2020,5446693,256.86,Pangea Support Services
Children & Culture,Children's Social Care,Children Looked After,Leaving Care-UASC,Leaving Care Financial Assistance - Supp Accom/Hous Rents,31/07/2020,5446693,"1,195.71",Pangea Support Services
Children & Culture,Children's Social Care,Children Looked After,Leaving Care-UASC,Leaving Care Financial Assistance - Reg Plan Maint L-Allow,31/07/2020,5446694,323.57,Pangea Support Services
Children & Culture,Children's Social Care,Children Looked After,Leaving Care-UASC,Leaving Care Financial Assistance - Supp Accom/Hous Rents,31/07/2020,5446694,"1,157.14",Pangea Support Services
Children & Culture,Children's Social Care,Children Looked After,Leaving Care-UASC,Leaving Care Financial Assistance - Supp Accom/Hous Rents,31/07/2020,5447122,617.14,Pangea Support Services
Children & Culture,Children's Social Care,Children Looked After,Leaving Care-UASC,Leaving Care Financial Assistance - Reg Plan Maint L-Allow,31/07/2020,5447123,256.86,Pangea Support Services
Children & Culture,Children's Social Care,Children Looked After,Leaving Care-UASC,Leaving Care Financial Assistance - Supp Accom/Hous Rents,31/07/2020,5447123,"1,195.71",Pangea Support Services
Children & Culture,Children's Social Care,Children Looked After,S23-Other-Semi-Ind. Unit,Social Care - Day Care,31/07/2020,5448901,"8,424.84",Bright Young Futures
Children & Culture,Children's Social Care,Children Looked After,Leaving Care-UASC,Leaving Care Financial Assistance - Reg Plan Maint L-Allow,31/07/2020,5448920,349.86,Pangea Support Services
Children & Culture,Children's Social Care,Children Looked After,Leaving Care-UASC,Leaving Care Financial Assistance - Supp Accom/Hous Rents,31/07/2020,5448920,854.71,Pangea Support Services
Children & Culture,Children's Social Care,Children Looked After,Leaving Care-UASC,Leaving Care Financial Assistance - Supported Living,31/07/2020,5448920,"3,551.71",Pangea Support Services
Children & Culture,Children's Social Care,Children Looked After,Leaving Care-UASC,Leaving Care Financial Assistance - Reg Plan Maint L-Allow,31/07/2020,5448922,323.57,Pangea Support Services
Children & Culture,Children's Social Care,Children Looked After,Leaving Care-UASC,Leaving Care Financial Assistance - Supp Accom/Hous Rents,31/07/2020,5448922,"1,157.14",Pangea Support Services
Children & Culture,Children's Social Care,Children Looked After,Leaving Care-UASC,Leaving Care Financial Assistance - Reg Plan Maint L-Allow,31/07/2020,5448923,349.86,Pangea Support Services
Children & Culture,Children's Social Care,Children Looked After,Leaving Care-UASC,Leaving Care Financial Assistance - Supp Accom/Hous Rents,31/07/2020,5448923,"1,195.71",Pangea Support Services
Children & Culture,Children's Social Care,Children Looked After,Leaving Care-UASC,Leaving Care Financial Assistance - Reg Plan Maint L-Allow,31/07/2020,5448924,349.86,Pangea Support Services
Children & Culture,Children's Social Care,Children Looked After,Leaving Care-UASC,Leaving Care Financial Assistance - Supp Accom/Hous Rents,31/07/2020,5448924,"1,195.71",Pangea Support Services
Children & Culture,Children's Social Care,Children Looked After,Leaving Care-UASC,Leaving Care Financial Assistance - Reg Plan Maint L-Allow,31/07/2020,5448925,349.86,Pangea Support Services
Children & Culture,Children's Social Care,Children Looked After,Leaving Care-UASC,Leaving Care Financial Assistance - Supp Accom/Hous Rents,31/07/2020,5448925,"1,195.71",Pangea Support Services
Children & Culture,Children's Social Care,Children Looked After,Leaving Care-UASC,Leaving Care Financial Assistance - Reg Plan Maint L-Allow,31/07/2020,5448926,349.86,Pangea Support Services
Children & Culture,Children's Social Care,Children Looked After,Leaving Care-UASC,Leaving Care Financial Assistance - Supp Accom/Hous Rents,31/07/2020,5448926,"1,195.71",Pangea Support Services
Children & Culture,Children's Social Care,Children Looked After,S23-Other-Semi-Ind. Unit,Childrens Act Section 23 - Placement Fee,31/07/2020,5449064,"13,500.00",Silver Birch Care LTD
Children & Culture,Children's Social Care,Children Looked After,S23 Fam Pl P&V-F/Care,Childrens Act Section 23 - Placement Fee,31/07/2020,5449734,"19,906.43",haven care group
Children & Culture,Education Services,Services to Young People and Other Community Learners,Supported Housing - Young People,Leaving Care Financial Assistance - Supp Accom/Hous Sup Lod,31/07/2020,5450559,"20,416.67",One Housing Group
Children & Culture,Education Services,Services to Young People and Other Community Learners,Supported Housing - Young People,Leaving Care Financial Assistance - Supp Accom/Hous Sup Lod,31/07/2020,5450594,"12,166.67",Providence Row Housing Association
Children & Culture,Children's Social Care,Family Support Services,CNN Pool: Joint Family Support,Social Care - Homecare,31/07/2020,5450616,"57,365.70",APASENTH
Children & Culture,Children's Social Care,Children Looked After,S23 Fam Pl P&V-F/Care,Childrens Act Section 23 - Placement Fee,31/07/2020,5450645,784,Swiis Foster Care Limited
Children & Culture,Children's Social Care,Children Looked After,S23-Resi-P&V/OLA-Child Home,Childrens Act Section 23 - Placement Fee,31/07/2020,5450650,"2,830.00",HMO Property Services Ltd
Children & Culture,Children's Social Care,Children Looked After,S23-Other-Mother & Baby Unit,Childrens Act Section 23 - Placement Fee,31/07/2020,5450651,832.14,HMO Property Services Ltd
Corporate Costs and Central Financing,Corporate & Democratic Core,Corporate Management,Corporate Budget,Subscriptions - Associations,10/07/2020,5437459,"12,500.00",Grant Thornton UK LLP
Corporate Costs and Central Financing,Corporate & Democratic Core,Corporate Management,Corporate Budget,Subscriptions - Associations,13/07/2020,5439297,"22,795.96",The Copyright Licensing Agency Ltd
Corporate Costs and Central Financing,Corporate & Democratic Core,Democratic Representation & Management,Treasury Management,Services - Professional Fees - Financial Services Fees,27/07/2020,5442133,"37,471.50",Arlingclose
Corporate Costs and Central Financing,Corporate & Democratic Core,Corporate Management,Corporate Budget,Subscriptions - London Boroughs Grant Scheme,29/07/2020,5444003,"59,455.00",London Councils
Governance,Corporate & Democratic Core,Corporate Management,Safeguarding Legal Costs,Environmental Health Supplies - Samples for Testing,01/07/2020,5440651,660,E4 Law Limited T/A Lextox
Governance,Corporate & Democratic Core,Corporate Management,Safeguarding Legal Costs,Environmental Health Supplies - Samples for Testing,01/07/2020,5440652,765,E4 Law Limited T/A Lextox
Governance,Corporate & Democratic Core,Corporate Management,Safeguarding Legal Costs,Environmental Health Supplies - Samples for Testing,01/07/2020,5440653,647.5,E4 Law Limited T/A Lextox
Governance,Corporate & Democratic Core,Democratic Representation & Management,Members Allowances/Facilities,Meeting Expenses,01/07/2020,5442785,"1,776.19",Local Government Information Unit
Governance,Corporate & Democratic Core,Democratic Representation & Management,Strategy and Performance,Subscriptions - Subscriptions to Associations,02/07/2020,5428127,"10,145.27",National Consortium For Examination Results
Governance,Corporate & Democratic Core,Corporate Management,"Our East End						",Services - Professional Fees - Consultants Fees,02/07/2020,5434788,250,Walk East CIC
Governance,Corporate & Democratic Core,Corporate Management,Safeguarding Legal Costs,Services - Professional Fees - Consultants Fees,02/07/2020,5437492,624,Video Conferencing London
Governance,Corporate & Democratic Core,Corporate Management,"Our East End						",Printing - External,02/07/2020,5437756,"11,434.46",Reach Printing Services Ltd
Governance,Central Services to the Public,Elections,Electoral Registration,Computing - Licences - Software,08/07/2020,5436580,950,CIVICA UK LTD
Governance,Corporate & Democratic Core,Corporate Management,Tower Design,Printing - External,08/07/2020,5436784,890,Tutaev Design
Governance,Corporate & Democratic Core,Corporate Management,Business Team,Services - Professional Fees - Counsel's Fees,08/07/2020,5442269,"2,950.00",Five Paper Buildings
Governance,Corporate & Democratic Core,Democratic Representation & Management,Strategy and Performance,Computing - Purchase of Software,08/07/2020,5442962,"2,644.48",CACI LTD
Governance,Corporate & Democratic Core,Democratic Representation & Management,Improvement Budget,Subscriptions - Associations,08/07/2020,5443057,400,East London Mosque
Governance,Corporate & Democratic Core,Corporate Management,Safeguarding Legal Costs,Services - Professional Fees - Legal Fees/Expenses,08/07/2020,5443382,"3,856.90",Carter Brown - The Expert Service Limited
Governance,Corporate & Democratic Core,Corporate Management,Business Team,Services - Professional Fees - Counsel's Fees,08/07/2020,5443383,"1,840.00",Five Paper Buildings
Governance,Corporate & Democratic Core,Corporate Management,Business Team,Services - Professional Fees - Counsel's Fees,08/07/2020,5443384,500,Five Paper Buildings
Governance,Corporate & Democratic Core,Corporate Management,Safeguarding Legal Costs,Services - Professional Fees - Counsel's Fees,08/07/2020,5443385,"1,350.00",4 Brick Court Chambers Management Limited
Governance,Corporate & Democratic Core,Corporate Management,Business Team,Services - Professional Fees - Counsel's Fees,08/07/2020,5443386,850,Five Paper Buildings
Governance,Corporate & Democratic Core,Corporate Management,Safeguarding Legal Costs,Services - Professional Fees - Counsel's Fees,08/07/2020,5443387,"1,200.00",4 Brick Court Chambers Management Limited
Governance,Corporate & Democratic Core,Corporate Management,Business Team,Services - Professional Fees - Counsel's Fees,08/07/2020,5443388,525,Five Paper Buildings
Governance,Corporate & Democratic Core,Corporate Management,Safeguarding Legal Costs,Services - Professional Fees - Counsel's Fees,08/07/2020,5443389,550,4 Brick Court Chambers Management Limited
Governance,Corporate & Democratic Core,Corporate Management,Business Team,Services - Professional Fees - Counsel's Fees,08/07/2020,5443390,525,Five Paper Buildings
Governance,Corporate & Democratic Core,Corporate Management,Business Team,Services - Professional Fees - Counsel's Fees,08/07/2020,5443391,500,Five Paper Buildings
Governance,Corporate & Democratic Core,Corporate Management,Safeguarding Legal Costs,Services - Professional Fees - Counsel's Fees,08/07/2020,5443392,800,Tanfield Chambers
Governance,Corporate & Democratic Core,Corporate Management,Business Team,Services - Professional Fees - Counsel's Fees,08/07/2020,5443394,500,Five Paper Buildings
Governance,Corporate & Democratic Core,Corporate Management,Business Team,Services - Professional Fees - Counsel's Fees,08/07/2020,5443400,975,Five Paper Buildings
Governance,Corporate & Democratic Core,Corporate Management,Business Team,Services - Professional Fees - Counsel's Fees,08/07/2020,5443402,600,Field Court Chambers  - Fees Account
Governance,Corporate & Democratic Core,Corporate Management,Business Team,Services - Professional Fees - Counsel's Fees,08/07/2020,5443403,374,Field Court Chambers  - Fees Account
Governance,Corporate & Democratic Core,Corporate Management,Business Team,Services - Professional Fees - Counsel's Fees,08/07/2020,5443405,750,Five Paper Buildings
Governance,Corporate & Democratic Core,Corporate Management,Business Team,Services - Professional Fees - Legal Fees/Expenses,08/07/2020,5443714,697.5,Field Court Chambers  - Fees Account
Governance,Corporate & Democratic Core,Corporate Management,Safeguarding Legal Costs,Services - Professional Fees - Counsel's Fees,08/07/2020,5443715,650,1KBW CHAMBERS
Governance,Corporate & Democratic Core,Corporate Management,Safeguarding Legal Costs,Services - Professional Fees - Counsel's Fees,08/07/2020,5443716,"3,525.00",4 Paper Buildings (Client Account)
Governance,Corporate & Democratic Core,Corporate Management,Safeguarding Legal Costs,Services - Professional Fees - Counsel's Fees,08/07/2020,5443718,900,5 Pump Court CDS
Governance,Corporate & Democratic Core,Corporate Management,Safeguarding Legal Costs,Services - Professional Fees - Counsel's Fees,08/07/2020,5443719,650,CORAM CHAMBERS LTD
Governance,Corporate & Democratic Core,Corporate Management,Business Team,Services - Professional Fees - Counsel's Fees,08/07/2020,5443722,525,Five Paper Buildings
Governance,Corporate & Democratic Core,Corporate Management,Business Team,Services - Professional Fees - Counsel's Fees,08/07/2020,5443723,325,Five Paper Buildings
Governance,Corporate & Democratic Core,Corporate Management,Business Team,Services - Professional Fees - Counsel's Fees,08/07/2020,5443725,550,Five Paper Buildings
Governance,Corporate & Democratic Core,Corporate Management,Business Team,Services - Professional Fees - Legal Fees/Expenses,08/07/2020,5443729,695,Five Paper Buildings
Governance,Corporate & Democratic Core,Corporate Management,Business Team,Services - Professional Fees - Counsel's Fees,08/07/2020,5443730,"1,050.00",Five Paper Buildings
Governance,Corporate & Democratic Core,Corporate Management,Safeguarding Legal Costs,Services - Professional Fees - Legal Fees/Expenses,08/07/2020,5444056,"3,780.00",Carter Brown - The Expert Service Limited
Governance,Corporate & Democratic Core,Corporate Management,Safeguarding Legal Costs,Services - Professional Fees - Legal Fees/Expenses,08/07/2020,5444057,"4,747.50",Carter Brown - The Expert Service Limited
Governance,Corporate & Democratic Core,Corporate Management,Safeguarding Legal Costs,Services - Professional Fees - Counsel's Fees,08/07/2020,5444060,"7,000.00",4 Paper Buildings (Client Account)
Governance,Corporate & Democratic Core,Corporate Management,Safeguarding Legal Costs,Services - Professional Fees - Counsel's Fees,08/07/2020,5444061,"1,093.75",CORAM CHAMBERS LTD
Governance,Corporate & Democratic Core,Corporate Management,Safeguarding Legal Costs,Services - Professional Fees - Counsel's Fees,08/07/2020,5444070,685,5 Pump Court CDS
Governance,Corporate & Democratic Core,Corporate Management,Safeguarding Legal Costs,Services - Professional Fees - Counsel's Fees,08/07/2020,5444072,"1,550.00",4 Brick Court Chambers Management Limited
Governance,General Fund/Council Fund,Housing Strategy,Housing Services,Services - Professional Fees - Legal Fees/Expenses,08/07/2020,5444073,"4,000.00",GLP Solicitors
Governance,Corporate & Democratic Core,Corporate Management,Safeguarding Legal Costs,Services - Professional Fees - Counsel's Fees,08/07/2020,5444074,550,4 Brick Court Chambers Management Limited
Governance,Corporate & Democratic Core,Corporate Management,Business Team,Services - Professional Fees - Counsel's Fees,08/07/2020,5444106,525,Five Paper Buildings
Governance,Corporate & Democratic Core,Corporate Management,Business Team,Services - Professional Fees - Counsel's Fees,08/07/2020,5444108,525,Five Paper Buildings
Governance,Corporate & Democratic Core,Corporate Management,Business Team,Services - Professional Fees - Counsel's Fees,08/07/2020,5444111,325,Five Paper Buildings
Governance,Corporate & Democratic Core,Corporate Management,"Digital Communications				",Communications,10/07/2020,5437481,"1,093.00",Granicus LLC
Governance,Corporate & Democratic Core,Corporate Management,"Our East End						",Services - Professional Fees - Consultants Fees,10/07/2020,5437706,"12,059.19",Beta Distribution (South) Ltd t/a London Letterbox Marketing
Governance,Corporate & Democratic Core,Democratic Representation & Management,GOV Covid19 Response,Newspapers and Magazines - General Purchases,10/07/2020,5443427,"1,485.00",Beta Distribution (South) Ltd t/a London Letterbox Marketing
Governance,Planning Services,Community Development,Ch Exec Mainstream Grants,Third Party Payments - Other Establishments,10/07/2020,5444075,"2,750.00",Auto Italia South East
Governance,Planning Services,Community Development,Ch Exec Mainstream Grants,Third Party Payments - Other Establishments,10/07/2020,5444076,"5,385.50",Bangladesh Youth Movement
Governance,Planning Services,Community Development,Ch Exec Mainstream Grants,Third Party Payments - Other Establishments,10/07/2020,5444077,"7,202.50",CANAAN PROJECT
Governance,Planning Services,Community Development,Ch Exec Mainstream Grants,Third Party Payments - Other Establishments,10/07/2020,5444078,"8,182.00",COMMUNITY OF REFUGEES FROM VIETNAM -
Governance,Planning Services,Community Development,Ch Exec Mainstream Grants,Third Party Payments - Other Establishments,10/07/2020,5444079,"231,025.50",East End Citizens Advice Bureau
Governance,Planning Services,Community Development,Ch Exec Mainstream Grants,Third Party Payments - Other Establishments,10/07/2020,5444080,"6,904.35",Elop
Governance,Planning Services,Community Development,Ch Exec Mainstream Grants,Third Party Payments - Other Establishments,10/07/2020,5444081,"20,343.28",FOUR CORNERS LTD
Governance,Planning Services,Community Development,Ch Exec Mainstream Grants,Third Party Payments - Other Establishments,10/07/2020,5444082,"7,011.78",GLOBE COMMUNITY PROJECT
Governance,Planning Services,Community Development,Ch Exec Mainstream Grants,Third Party Payments - Other Establishments,10/07/2020,5444083,"9,553.28",Half Moon Young People's Theatre
Governance,Planning Services,Community Development,Ch Exec Mainstream Grants,Third Party Payments - Other Establishments,10/07/2020,5444084,"3,282.28",I C M FOUNDATION CIC - CORE NEWS PROJECT
Governance,Planning Services,Community Development,Ch Exec Mainstream Grants,Third Party Payments - Other Establishments,10/07/2020,5444085,"12,500.00",ISLAND ADVICE CENTRE
Governance,Planning Services,Community Development,Ch Exec Mainstream Grants,Third Party Payments - Other Establishments,10/07/2020,5444086,"10,685.00",London Tigers
Governance,Planning Services,Community Development,Ch Exec Mainstream Grants,Third Party Payments - Other Establishments,10/07/2020,5444088,"6,899.07",Magic Me
Governance,Planning Services,Community Development,Ch Exec Mainstream Grants,Third Party Payments - Other Establishments,10/07/2020,5444089,"5,000.00",Mudchute Association
Governance,Planning Services,Community Development,Ch Exec Mainstream Grants,Third Party Payments - Other Establishments,10/07/2020,5444090,"5,045.28",NEWARK YOUTH LONDON
Governance,Planning Services,Community Development,Ch Exec Mainstream Grants,Third Party Payments - Other Establishments,10/07/2020,5444091,"7,028.50",NEWARK YOUTH LONDON
Governance,Planning Services,Community Development,Ch Exec Mainstream Grants,Third Party Payments - Other Establishments,10/07/2020,5444092,"4,880.00",Newham New Deal Partnership
Governance,Planning Services,Community Development,Ch Exec Mainstream Grants,Third Party Payments - Other Establishments,10/07/2020,5444093,"9,000.00",Osmani Trust
Governance,Planning Services,Community Development,Ch Exec Mainstream Grants,Third Party Payments - Other Establishments,10/07/2020,5444094,"4,533.07",Royal London Society for Blind People
Governance,Planning Services,Community Development,Ch Exec Mainstream Grants,Third Party Payments - Other Establishments,10/07/2020,5444095,"2,200.78",Sporting Foundation
Governance,Planning Services,Community Development,Ch Exec Mainstream Grants,Third Party Payments - Other Establishments,10/07/2020,5444096,"14,200.00",St Giles Trust
Governance,Planning Services,Community Development,Ch Exec Mainstream Grants,Third Party Payments - Other Establishments,10/07/2020,5444097,"7,500.00",St Hilda's East Community Centre
Governance,Planning Services,Community Development,Ch Exec Mainstream Grants,Third Party Payments - Other Establishments,10/07/2020,5444098,"4,116.00",St Hilda's East Community Centre
Governance,Planning Services,Community Development,Ch Exec Mainstream Grants,Third Party Payments - Other Establishments,10/07/2020,5444099,"12,500.00",TOWER HAMLETS FRIENDS AND NEIGHBOOURS
Governance,Planning Services,Community Development,Ch Exec Mainstream Grants,Third Party Payments - Other Establishments,10/07/2020,5444100,"10,353.50",Toynbee Hall
Governance,Planning Services,Community Development,Ch Exec Mainstream Grants,Third Party Payments - Other Establishments,10/07/2020,5444101,"4,819.85",Woman's trust
Governance,Children's Social Care,Children's and Young People's Safety,"Safeguarding Children Partnership		",Services - Professional Fees - Consultants Fees,10/07/2020,5444711,"1,875.00",YCTCS Ltd
Governance,Children's Social Care,Children's and Young People's Safety,"Safeguarding Children Partnership		",Services - Professional Fees - Consultants Fees,10/07/2020,5444712,"3,375.00",YCTCS Ltd
Governance,Corporate & Democratic Core,Democratic Representation & Management,Community Grant,Third Party Payments - Voluntary Associations,13/07/2020,5437516,"3,543.00",Volunteer Centre Tower Hamlets
Governance,Corporate & Democratic Core,Corporate Management,Awards & Training,Training Expenses - Staff External Training (UK Based),13/07/2020,5438869,420,Westco Trading Ltd
Governance,Planning Services,Community Development,SPP - Children,Computing - Maint Agreements - Maintenance,13/07/2020,5438958,"2,880.00",Bold Creative LTD
Governance,Corporate & Democratic Core,Corporate Management,Tower Design,Printing - External,13/07/2020,5439083,"1,569.00",Broadway Publishing Limited
Governance,Corporate & Democratic Core,Corporate Management,Tower Design,Printing - External,13/07/2020,5439088,254,Broadway Publishing Limited
Governance,Corporate & Democratic Core,Corporate Management,Safeguarding Legal Costs,Services - Professional Fees - Legal Fees/Expenses,13/07/2020,5443258,945,Bourne Medicolegal Limited
Governance,Central Services to the Public,Elections,Individual Electoral Reg. Funding,Printing - External,13/07/2020,5445666,864.73,Financial Data Management
Governance,Planning Services,Community Development,Ch Exec Mainstream Grants,Third Party Payments - Voluntary Associations,20/07/2020,5444102,"1,353.50",LIMEHOUSE WELFARE ASSOCIATION
Governance,Planning Services,Community Development,Ch Exec Mainstream Grants,Third Party Payments - Voluntary Associations,20/07/2020,5444103,"1,353.50",LIMEHOUSE WELFARE ASSOCIATION
Governance,Planning Services,Planning Policy,Legal Planning Team,Services - Professional Fees - Counsel's Fees,20/07/2020,5444623,"2,400.00",Francis Taylor Building
Governance,Corporate & Democratic Core,Corporate Management,Safeguarding Legal Costs,Services - Professional Fees - Counsel's Fees,20/07/2020,5445656,750,4 Brick Court Chambers Management Limited
Governance,Corporate & Democratic Core,Corporate Management,Business Team,Services - Professional Fees - Counsel's Fees,20/07/2020,5445762,680,Five Paper Buildings
Governance,Corporate & Democratic Core,Corporate Management,Business Team,Services - Professional Fees - Counsel's Fees,20/07/2020,5445763,525,Five Paper Buildings
Governance,Corporate & Democratic Core,Corporate Management,Safeguarding Legal Costs,Services - Professional Fees - Counsel's Fees,20/07/2020,5445766,"18,618.75",4 Paper Buildings (Client Account)
Governance,Planning Services,Community Development,Ch Exec Mainstream Grants,Third Party Payments - Other Establishments,20/07/2020,5446268,"4,146.00",FOUR CORNERS LTD
Governance,Planning Services,Community Development,Ch Exec Mainstream Grants,Third Party Payments - Other Establishments,20/07/2020,5446269,"4,539.42",KAZZUM ARTS PROJECT LTD
Governance,Planning Services,Community Development,Ch Exec Mainstream Grants,Third Party Payments - Other Establishments,20/07/2020,5446270,"4,885.07",Leaders in Community
Governance,Planning Services,Community Development,Ch Exec Mainstream Grants,Third Party Payments - Other Establishments,20/07/2020,5446271,"8,988.78",Osmani Trust
Governance,Planning Services,Community Development,Ch Exec Mainstream Grants,Third Party Payments - Voluntary Associations,20/07/2020,5446272,"65,000.00",TOWER HAMLETS COUNCIL FOR VOLUNTARY SERV
Governance,Planning Services,Community Development,Ch Exec Mainstream Grants,Third Party Payments - Voluntary Associations,20/07/2020,5446273,500,TEVIOT BANGLADESHI CULTURAL GROUP
Governance,Planning Services,Community Development,Ch Exec Mainstream Grants,Third Party Payments - Voluntary Associations,20/07/2020,5446274,500,TEVIOT BANGLADESHI CULTURAL GROUP
Governance,Corporate & Democratic Core,Corporate Management,Safeguarding Legal Costs,Services - Professional Fees - Counsel's Fees,20/07/2020,5446788,700,CORAM CHAMBERS LTD
Governance,Corporate & Democratic Core,Corporate Management,Safeguarding Legal Costs,Services - Professional Fees - Counsel's Fees,20/07/2020,5446791,550,CORAM CHAMBERS LTD
Governance,Corporate & Democratic Core,Corporate Management,Safeguarding Legal Costs,Services - Professional Fees - Counsel's Fees,20/07/2020,5446792,930,5 Pump Court CDS
Governance,Corporate & Democratic Core,Corporate Management,Safeguarding Legal Costs,Services - Professional Fees - Counsel's Fees,20/07/2020,5446794,360,5 Pump Court CDS
Governance,Corporate & Democratic Core,Corporate Management,Tower Design,Printing - External,22/07/2020,5437488,325,Full Spectrum Print Media Limited
Governance,Planning Services,Community Development,Controlling Migration Fund (CMF),Third Party Payments - Voluntary Associations,22/07/2020,5440251,"4,714.33",East London Advanced Technology Training
Governance,Planning Services,Community Development,Controlling Migration Fund (CMF),Third Party Payments - Voluntary Associations,22/07/2020,5440252,"4,714.33",East London Advanced Technology Training
Governance,Corporate & Democratic Core,Corporate Management,Tower Design,Printing - External,22/07/2020,5440299,310,SLS Print LTD
Governance,Corporate & Democratic Core,Corporate Management,Tower Design,Printing - External,22/07/2020,5440302,"1,945.00",SLS Print LTD
Governance,Corporate & Democratic Core,Corporate Management,External Communications,Computing - Licences - Software,22/07/2020,5440378,"6,226.75",NLA MEDIA ACCESS LIMITED
Governance,Corporate & Democratic Core,Corporate Management,Tower Design,Printing - External,22/07/2020,5443314,360,Room for Design
Governance,Corporate & Democratic Core,Corporate Management,Safeguarding Legal Costs,Services - Professional Fees - Counsel's Fees,22/07/2020,5446559,"2,187.50",4 Paper Buildings (Client Account)
Governance,Corporate & Democratic Core,Corporate Management,Safeguarding Legal Costs,Services - Professional Fees - Legal Fees/Expenses,22/07/2020,5446988,436.8,Dr Bradley Mann Psychological Services Ltd
Governance,Corporate & Democratic Core,Corporate Management,Safeguarding Legal Costs,Services - Professional Fees - Legal Fees/Expenses,22/07/2020,5446989,"1,069.20",Bourne Medicolegal Limited
Governance,Corporate & Democratic Core,Corporate Management,Safeguarding Legal Costs,Services - Professional Fees - Counsel's Fees,22/07/2020,5446999,"7,380.00",IGC Family Law
Governance,Corporate & Democratic Core,Corporate Management,Safeguarding Legal Costs,Services - Professional Fees - Counsel's Fees,22/07/2020,5447001,950,East Anglian Chambers
Governance,Corporate & Democratic Core,Corporate Management,Safeguarding Legal Costs,Services - Professional Fees - Legal Fees/Expenses,22/07/2020,5447008,774,EXPERT IN MIND LIMITED
